Workbook

Sheet Schedule 1
A1: Rate=G | B1: SCHEDULE 1 - PRELIMINARY AND GENERAL
A2: <NewDataSet>· <xs:schema id="NewDataSet" xmlns="" xmlns:xs="http://www.w3.org/2001/XMLSchema" xmlns:msdata="urn:schemas-microsoft-com:xml-msdata">· <xs:element name="NewDataSet" msdata:IsDataSet="true" msdata:MainDataTable="SummaryItems" msdata:UseCurrentLocale="true">· <xs:complexType>· <xs:choice minOccurs="0" maxOccurs="unbounded">· <xs:element name="SummaryItems">· <xs:complexType>· <xs:sequence>· <xs:element name="ContractNo" type="xs:short" minOccurs="0" />· <xs:element name="ScheduleNo" type="xs:short" minOccurs="0" />· <xs:element name="SortNo" type="xs:short" minOccurs="0" />· <xs:element name="Item" type="xs:string" minOccurs="0" />· <xs:element name="SubTotalText" type="xs:string" minOccurs="0" />· <xs:element name="Description" type="xs:string" minOccurs="0" />· <xs:element name="CalcType" type="xs:string" minOccurs="0" />· <xs:element name="CalcValue" type="xs:double" minOccurs="0" />· <xs:element name="UseFirstSubTotal" type="xs:boolean" minOccurs="0" />· <xs:element name="ExclFromWorks" type="xs:boolean" minOccurs="0" />· <xs:element name="ExclFromProjected" type="xs:boolean" minOccurs="0" />· </xs:sequence>· </xs:complexType>· </xs:element>· </xs:choice>· </xs:complexType>· </xs:element>· </xs:schema>·</NewDataSet> | H2: SECTION 1.1: FIXED CHARGED ITEMS
B3: ITEM NO | C3: PAYMENT | D3: DESCRIPTION | E3: UNIT | F3: QTY | G3: RATE | H3: AMOUNT (RAND)
A4: 1688 | B4: 1.1 | C4: SABS 1200 A | D4: PRELIMINARY AND GENERAL FIXED CHARGED ITEMS
A6: 2246 | B6: 1.1.1 | C6: 8.3.1 | D6: CONTRACTUAL REQUIREMENTS
A8: 1690 | B8: 1.1.1.1 | C8: 8.3.1 | D8: Contractual Requirements for the duration of the Contract | E8: Sum | F8: 1.00 | G8: 0.00 | H8: =IF(E8 = CHAR(37), F8*G8/100,F8*G8) -> 0.00
A10: 1691 | B10: 1.1.2 | C10: 8.3.2.1 | D10: ESTABLISH FACILITIES ON THE SITE (SABS 1200 AB):
A12: 1692 | B12: 1.1.2.1 | C12: 8.3.2.1 (a) PSAB 3.2 | D12: Furnished office building for Engineer & Employer including parking (2 No.) | E12: Sum | F12: 1.00 | G12: 0.00 | H12: =IF(E12 = CHAR(37), F12*G12/100,F12*G12) -> 0.00
A14: 1693 | B14: 1.1.2.2 | C14: 8.3.2.1 (b) PSAB 4.1 | D14: Airtime and wireless internet facilities for Engineer and Employer | E14: Sum | F14: 1.00 | G14: 0.00 | H14: =IF(E14 = CHAR(37), F14*G14/100,F14*G14) -> 0.00
A16: 1694 | B16: 1.1.2.3 | C16: PSAB 3.2 | D16: Meeting room facilities. | E16: Sum | F16: 1.00 | G16: 0.00 | H16: =IF(E16 = CHAR(37), F16*G16/100,F16*G16) -> 0.00
A18: 2079 | B18: 1.1.2.4 | C18: 8.3.2.1 (c) PSAB 3.1 | D18: Project name board (2 No.) Refer to C4.3 for details | E18: Sum | F18: 1.00 | G18: 0.00 | H18: =IF(E18 = CHAR(37), F18*G18/100,F18*G18) -> 0.00
A20: 2550 | B20: 1.1.2.5 | C20: PS 3.6.5.3 | D20: Ablution facilities for Engineer and Employer | E20: Sum | F20: 1.00 | G20: 0.00 | H20: =IF(E20 = CHAR(37), F20*G20/100,F20*G20) -> 0.00
A22: 25630 | B22: 1.1.2.6 | C22: PSAB3.3 | D22: Temporary Offices for Employers Personnel | E22: Sum | F22: 1.00 | G22: 0.00 | H22: =IF(E22 = CHAR(37), F22*G22/100,F22*G22) -> 0.00
A24: 1695 | B24: 1.1.3 | C24: 8.3.2.2 | D24: ESTABLISH FACILITIES ON THE SITE FOR CONTRACTOR:
A26: 1696 | B26: 1.1.3.1 | C26: 8.3.2.2 (a) | D26: Offices & storage sheds | E26: Sum | F26: 1.00 | G26: 0.00 | H26: =IF(E26 = CHAR(37), F26*G26/100,F26*G26) -> 0.00
A28: 1697 | B28: 1.1.3.2 | C28: 8.3.2.2 (e) | D28: Ablution & latrine facilities | E28: Sum | F28: 1.00 | G28: 0.00 | H28: =IF(E28 = CHAR(37), F28*G28/100,F28*G28) -> 0.00
A30: 1698 | B30: 1.1.3.3 | C30: 8.3.2.2 (f) | D30: Tools & equipment | E30: Sum | F30: 1.00 | G30: 0.00 | H30: =IF(E30 = CHAR(37), F30*G30/100,F30*G30) -> 0.00
A32: 1699 | B32: 1.1.3.4 | C32: 8.3.2.2 (g) PS 3.6 | D32: Water supplies, electric power and communications | E32: Sum | F32: 1.00 | G32: 0.00 | H32: =IF(E32 = CHAR(37), F32*G32/100,F32*G32) -> 0.00
A34: 1700 | B34: 1.1.3.5 | C34: 8.3.2.2 (h) PS 4.7 PSA 8.8 | D34: Dealing with water | E34: Sum | F34: 1.00 | G34: 0.00 | H34: =IF(E34 = CHAR(37), F34*G34/100,F34*G34) -> 0.00
A36: 1701 | B36: 1.1.3.6 | C36: 8.3.2.2 (i) | D36: Access | E36: Sum | F36: 1.00 | G36: 0.00 | H36: =IF(E36 = CHAR(37), F36*G36/100,F36*G36) -> 0.00
A38: 1899 | B38: 1.1.3.7 | C38: 8.3.4 | D38: Removal of site establishment | E38: Sum | F38: 1.00 | G38: 0.00 | H38: =IF(E38 = CHAR(37), F38*G38/100,F38*G38) -> 0.00
A40: 7889 | B40: 1.1.3.8 | C40: PSA 8.3.5 | D40: De-establishment of site (provisional quantity) | E40: No. | F40: 2.00 | G40: 0.00 | H40: =IF(E40 = CHAR(37), F40*G40/100,F40*G40) -> 0.00
A42: 10541 | B42: 1.1.3.9 | C42: PSA 8.3.6 | D42: Re-establishment on site (provisional quantity) | E42: No. | F42: 2.00 | G42: 0.00 | H42: =IF(E42 = CHAR(37), F42*G42/100,F42*G42) -> 0.00
A44: 9461 | B44: 1.1.3.10 | C44: PEM, PS4.12 | D44: Environmental Management Plan Obligations | E44: Sum | F44: 1.00 | G44: 0.00 | H44: =IF(E44 = CHAR(37), F44*G44/100,F44*G44) -> 0.00
A46: 9462 | B46: 1.1.3.11 | C46: PS 4.13 | D46: Site security for the duration of the contract | E46: Sum | F46: 1.00 | G46: 0.00 | H46: =IF(E46 = CHAR(37), F46*G46/100,F46*G46) -> 0.00
B48: Total Carried Forward | H48: =SUM(H4:H47) -> 0.00
B49: SCHEDULE 1 - PRELIMINARY AND GENERAL
H50: SECTION 1.1: FIXED CHARGED ITEMS
B51: ITEM NO | C51: PAYMENT | D51: DESCRIPTION | E51: UNIT | F51: QTY | G51: RATE | H51: AMOUNT (RAND)
B52: Brought Forward | H52: =H48 -> 0.00
A53: 7890 | B53: 1.1.4 | C53: PSOH, PS4.21 | D53: OCCUPATIONAL HEALTH & SAFETY
A55: 7891 | B55: 1.1.4.1 | D55: General safety (Fixed Charges) | E55: Sum | F55: 1.00 | G55: 0.00 | H55: =IF(E55 = CHAR(37), F55*G55/100,F55*G55) -> 0.00
A57: 7892 | B57: 1.1.4.2 | D57: Health & safety plan | E57: Sum | F57: 1.00 | G57: 0.00 | H57: =IF(E57 = CHAR(37), F57*G57/100,F57*G57) -> 0.00
A59: 10680 | B59: 1.1.4.3 | D59: Contractors responsibility in terms of Quality Assurance, Construction Records and Construction Dossier | E59: Sum | F59: 1.00 | G59: 0.00 | H59: =IF(E59 = CHAR(37), F59*G59/100,F59*G59) -> 0.00
A61: 1703 | B61: 1.1.5 | D61: ALLOW FOR THE FOLLOWING ADDITIONAL ITEMS WHICH THE TENDERER REQUIRES TO BE PRICED SEPARATELY
A63: 10681 | D63: Note: A breakdown to be attached for each additional item
A65: 1704 | B65: 1.1.5.1 | D65: a) | E65: Sum | F65: 1.00 | G65: 0.00 | H65: =IF(E65 = CHAR(37), F65*G65/100,F65*G65) -> 0.00
A67: 1705 | B67: 1.1.5.2 | D67: b) | E67: Sum | F67: 1.00 | G67: 0.00 | H67: =IF(E67 = CHAR(37), F67*G67/100,F67*G67) -> 0.00
A69: 1706 | B69: 1.1.5.3 | D69: c) | E69: Sum | F69: 1.00 | G69: 0.00 | H69: =IF(E69 = CHAR(37), F69*G69/100,F69*G69) -> 0.00
B105: Total Carried Forward To Summary | H105: =SUM(H52:H104) -> 0.00
B106: SCHEDULE 1 - PRELIMINARY AND GENERAL
H107: SECTION 1.2: TIME RELATED ITEMS
B108: ITEM NO | C108: PAYMENT | D108: DESCRIPTION | E108: UNIT | F108: QTY | G108: RATE | H108: AMOUNT (RAND)
A109: 1957 | B109: 1.2 | C109: SABS 1200 A | D109: PRELIMINARY AND GENERAL TIME RELATED ITEMS
A111: 2069 | D111: Operation and maintenance of facilities on site, for duration of construction, except where otherwise stated:
A113: 2247 | B113: 1.2.1 | D113: CONTRACTUAL REQUIREMENTS
A115: 1977 | B115: 1.2.1.1 | C115: 8.4.1 | D115: Contractual Requirements for the duration of the Contract | E115: Sum | F115: 1.00 | G115: 0.00 | H115: =IF(E115 = CHAR(37), F115*G115/100,F115*G115) -> 0.00
A117: 1978 | B117: 1.2.2 | C117: 8.4.2.1 | D117: FACILITIES FOR ENGINEER FOR DURATION OF CONSTRUCTION (SABS 1200 AB):
A119: 2072 | B119: 1.2.2.1 | C119: PSAB 3.2 8.4.2.1(a) | D119: Furnished offices for Engineer and Employer including parking (2 No.) | E119: Sum | F119: 1.00 | G119: 0.00 | H119: =IF(E119 = CHAR(37), F119*G119/100,F119*G119) -> 0.00
A121: 2073 | B121: 1.2.2.2 | C121: 8.4.2.1(b) PSAB 4.1 | D121: Airtime and wireless internet for Engineer and Employer | E121: Sum | F121: 1.00 | G121: 0.00 | H121: =IF(E121 = CHAR(37), F121*G121/100,F121*G121) -> 0.00
A123: 2076 | B123: 1.2.2.3 | C123: PSAB 3.2 | D123: Meeting room facilities | E123: Sum | F123: 1.00 | G123: 0.00 | H123: =IF(E123 = CHAR(37), F123*G123/100,F123*G123) -> 0.00
A125: 2552 | B125: 1.2.2.4 | C125: PS3.6.5.3 | D125: Ablution facilities for Engineer and Employer | E125: Sum | F125: 1.00 | G125: 0.00 | H125: =IF(E125 = CHAR(37), F125*G125/100,F125*G125) -> 0.00
A127: 25631 | B127: 1.2.2.5 | C127: PSAB3.3 | D127: Temporary Offices for Employers Personnel | E127: Sum | F127: 1.00 | G127: 0.00 | H127: =IF(E127 = CHAR(37), F127*G127/100,F127*G127) -> 0.00
A129: 1983 | B129: 1.2.3 | C129: 8.4.2.2 | D129: FACILITIES FOR CONTRACTOR FOR DURATION OF CONSTRUCTION:
A131: 2020 | B131: 1.2.3.1 | C131: 8.4.2.2 (a) | D131: Offices & storage sheds | E131: Sum | F131: 1.00 | G131: 0.00 | H131: =IF(E131 = CHAR(37), F131*G131/100,F131*G131) -> 0.00
A133: 2023 | B133: 1.2.3.2 | C133: 8.4.2.2 (e) | D133: Ablution & latrine facilities | E133: Sum | F133: 1.00 | G133: 0.00 | H133: =IF(E133 = CHAR(37), F133*G133/100,F133*G133) -> 0.00
A135: 2024 | B135: 1.2.3.3 | C135: 8.4.2.2 (f) | D135: Tools & equipment | E135: Sum | F135: 1.00 | G135: 0.00 | H135: =IF(E135 = CHAR(37), F135*G135/100,F135*G135) -> 0.00
A137: 2025 | B137: 1.2.3.4 | C137: 8.4.2.2 (g) PS3.6 | D137: Water supplies, electric power and communications | E137: Sum | F137: 1.00 | G137: 0.00 | H137: =IF(E137 = CHAR(37), F137*G137/100,F137*G137) -> 0.00
A139: 2026 | B139: 1.2.3.5 | C139: 8.4.2.2 (h) PSA 8.8 | D139: Dealing with water | E139: Sum | F139: 1.00 | G139: 0.00 | H139: =IF(E139 = CHAR(37), F139*G139/100,F139*G139) -> 0.00
A141: 2027 | B141: 1.2.3.6 | C141: 8.4.2.2 (i) | D141: Access | E141: Sum | F141: 1.00 | G141: 0.00 | H141: =IF(E141 = CHAR(37), F141*G141/100,F141*G141) -> 0.00
A143: 2029 | B143: 1.2.3.7 | C143: 8.4.3 PS 4 PS 4.14 | D143: Supervision for the duration of the Contract | E143: Sum | F143: 1.00 | G143: 0.00 | H143: =IF(E143 = CHAR(37), F143*G143/100,F143*G143) -> 0.00
A145: 2030 | B145: 1.2.3.8 | C145: 8.4.4 | D145: Company and head office overhead costs for the duration of the Contract | E145: Sum | F145: 1.00 | G145: 0.00 | H145: =IF(E145 = CHAR(37), F145*G145/100,F145*G145) -> 0.00
A147: 9458 | B147: 1.2.3.9 | C147: PS4.12 PEM | D147: Environmental Management Plan Obligations | E147: Sum | F147: 1.00 | G147: 0.00 | H147: =IF(E147 = CHAR(37), F147*G147/100,F147*G147) -> 0.00
B150: Total Carried Forward | H150: =SUM(H109:H149) -> 0.00
B151: SCHEDULE 1 - PRELIMINARY AND GENERAL
H152: SECTION 1.2: TIME RELATED ITEMS
B153: ITEM NO | C153: PAYMENT | D153: DESCRIPTION | E153: UNIT | F153: QTY | G153: RATE | H153: AMOUNT (RAND)
B154: Brought Forward | H154: =H150 -> 0.00
A155: 9459 | B155: 1.2.3.10 | C155: PS4.13 | D155: Site security for the duration of the contract | E155: Sum | F155: 1.00 | G155: 0.00 | H155: =IF(E155 = CHAR(37), F155*G155/100,F155*G155) -> 0.00
A157: 10540 | B157: 1.2.3.11 | D157: Communication and Public Relations | E157: Sum | F157: 1.00 | G157: 0.00 | H157: =IF(E157 = CHAR(37), F157*G157/100,F157*G157) -> 0.00
A159: 7897 | C159: 8.4.5 | D159: Other time-related obligations (Contractor to Specify)
A161: 7898 | B161: 1.2.3.12 | D161: a) | E161: Sum | F161: 1.00 | G161: 0.00 | H161: =IF(E161 = CHAR(37), F161*G161/100,F161*G161) -> 0.00
A163: 7899 | B163: 1.2.3.13 | D163: b) | E163: Sum | F163: 1.00 | G163: 0.00 | H163: =IF(E163 = CHAR(37), F163*G163/100,F163*G163) -> 0.00
A165: 7900 | B165: 1.2.3.14 | D165: c) | E165: Sum | F165: 1.00 | G165: 0.00 | H165: =IF(E165 = CHAR(37), F165*G165/100,F165*G165) -> 0.00
A167: 7901 | B167: 1.2.4 | C167: PSOH PS4.21 | D167: OCCUPATIONAL HEALTH & SAFETY
A169: 7902 | B169: 1.2.4.1 | D169: General Safety (Time Related) | E169: Sum | F169: 1.00 | G169: 0.00 | H169: =IF(E169 = CHAR(37), F169*G169/100,F169*G169) -> 0.00
A171: 7903 | B171: 1.2.4.2 | D171: Training (time related) - Duration of training and detail of training to be specified | E171: Sum | F171: 1.00 | G171: 0.00 | H171: =IF(E171 = CHAR(37), F171*G171/100,F171*G171) -> 0.00
A173: 10398 | B173: 1.2.4.3 | D173: Contractors responsibility in terms of quality control and quality assurance, including method statements | E173: Sum | F173: 1.00 | G173: 0.00 | H173: =IF(E173 = CHAR(37), F173*G173/100,F173*G173) -> 0.00
B207: Total Carried Forward To Summary | H207: =SUM(H154:H206) -> 0.00
B208: SCHEDULE 1 - PRELIMINARY AND GENERAL
H209: SECTION 1.3: OTHER PRELIMINARY AND GENERAL ITEMS
B210: ITEM NO | C210: PAYMENT | D210: DESCRIPTION | E210: UNIT | F210: QTY | G210: RATE | H210: AMOUNT (RAND)
A211: 1802 | B211: 1.3 | D211: OTHER PRELIMINARY AND GENERAL ITEMS
A213: 1803 | B213: 1.3.1 | C213: 8.8 | D213: TEMPORARY WORKS
A215: 2529 | B215: 1.3.1.1 | D215: Deal with traffic and maintain existing roads | E215: Sum | F215: 1.00 | G215: 0.00 | H215: =IF(E215 = CHAR(37), F215*G215/100,F215*G215) -> 0.00
A217: 8622 | B217: 1.3.1.2 | C217: 8.8.2 SANS1921 | D217: Accommodation of traffic for construction vehicles entering and leaving the construction site | E217: Sum | F217: 1.00 | G217: 0.00 | H217: =IF(E217 = CHAR(37), F217*G217/100,F217*G217) -> 0.00
A219: 8623 | B219: 1.3.1.3 | C219: 8.8.4 (c) | D219: Excavation by hand in soft material to expose suspected but unknown existing services. | E219: m³ | F219: 30.00 | G219: 0.00 | H219: =IF(E219 = CHAR(37), F219*G219/100,F219*G219) -> 0.00
A221: 20871 | B221: 1.3.1.4 | C221: PS 4.22 | D221: Access to Site and access road for the entire duration of the Contract | E221: Sum | F221: 1.00 | G221: 0.00 | H221: =IF(E221 = CHAR(37), F221*G221/100,F221*G221) -> 0.00
A223: 1806 | B223: 1.3.2 | C223: PS 4.11.5 PS 4.11 | D223: AS-BUILTS AND DOCUMENTATION
A225: 1794 | D225: As-Built Survey, for:
A227: 2545 | B227: 1.3.2.1 | D227: All pipelines and ancillary works | E227: Sum | F227: 1.00 | G227: 0.00 | H227: =IF(E227 = CHAR(37), F227*G227/100,F227*G227) -> 0.00
A229: 1798 | B229: 1.3.2.2 | D229: Process units, chambers, channels, concrete structures, brickwork structures, pipework, valves, fittings and telemetry room, including cables, conduits, manholes and other electrical equipment installed under the Contract. | E229: Sum | F229: 1.00 | G229: 0.00 | H229: =IF(E229 = CHAR(37), F229*G229/100,F229*G229) -> 0.00
A231: 1799 | B231: 1.3.2.3 | D231: Provision of full set of dimensioned marked up Record Drawings in A0 Hardcopy and Electronic PDF format | E231: Sum | F231: 1.00 | G231: 0.00 | H231: =IF(E231 = CHAR(37), F231*G231/100,F231*G231) -> 0.00
A233: 20872 | B233: 1.3.3 | D233: PRODUCTION OF A FULL SET OF ASBUILT DRAWINGS
A235: 20873 | B235: 1.3.3.1 | D235: Asbuilt drawings of the entire Treatment Works site (Civil, Structural, Mechanical, Electrical, Instrumentation). This includes all applicable process units and structures/buildings on site. Including a consolidated and federated Revit Model of the entire works. | E235: Sum | F235: 1.00 | G235: 0.00 | H235: =IF(E235 = CHAR(37), F235*G235/100,F235*G235) -> 0.00
A237: 19983 | B237: 1.3.4 | C237: PSCOM | D237: TRIAL OPERATIONAL PERIOD
A239: 19984 | B239: 1.3.4.1 | C239: PSCOM 7 | D239: Contractors Responsibility in terms of the Trial Operational Period | E239: Sum | F239: 1.00 | G239: 0.00 | H239: =IF(E239 = CHAR(37), F239*G239/100,F239*G239) -> 0.00
A241: 19985 | B241: 1.3.5 | D241: CONDITIONAL ASSESSMENTS
A243: 19986 | B243: 1.3.5.1 | D243: Contractors Assessment of the entire site and compilation of structural defects and applicable remedial works | E243: Sum | F243: 1.00 | G243: 0.00 | H243: =IF(E243 = CHAR(37), F243*G243/100,F243*G243) -> 0.00
B244: Total Carried Forward | H244: =SUM(H211:H243) -> 0.00
B245: SCHEDULE 1 - PRELIMINARY AND GENERAL
H246: SECTION 1.3: OTHER PRELIMINARY AND GENERAL ITEMS
B247: ITEM NO | C247: PAYMENT | D247: DESCRIPTION | E247: UNIT | F247: QTY | G247: RATE | H247: AMOUNT (RAND)
B248: Brought Forward | H248: =H244 -> 0.00
A249: 20885 | B249: 1.3.6 | D249: EXPERIENTIAL TRAINING
A251: 20886 | B251: 1.3.6.1 | C251: PS4.20 | D251: Experiential training - local students | E251: Sum | F251: 1.00 | G251: 0.00 | H251: =IF(E251 = CHAR(37), F251*G251/100,F251*G251) -> 0.00
A253: 22394 | B253: 1.3.7 | D253: EQUIPMENT APPROVALS
A255: 22395 | B255: 1.3.7.1 | C255: PS1.4 | D255: Submission of associated documentation within 30 days of commencement of the Contract. Including monthly updates to the documentation | E255: Sum | F255: 1.00 | G255: 0.00 | H255: =IF(E255 = CHAR(37), F255*G255/100,F255*G255) -> 0.00
A257: 24195 | B257: 1.3.8 | D257: HAZOP
A259: 24196 | B259: 1.3.8.1 | D259: HAZOP covering all scope of works within this Contract (Inclusive of the submission of HAZOP report & remedial works) | E259: Sum | F259: 1.00 | G259: 0.00 | H259: =IF(E259 = CHAR(37), F259*G259/100,F259*G259) -> 0.00
A261: 24197 | B261: 1.3.9 | D261: SHUTDOWNS/TIE-INS
A263: 24198 | B263: 1.3.9.1 | C263: PS4.4.8 | D263: Associated works for all shutdowns including the removal of sufficient existing pipe/structure to make way for new works, arranging shut-downs with eThekwini Municipality, cleaning and preparing the works for cutting, removal of blank flanges, dealing with all water (including that from leaking valves), preparing pipe ends for jointing, re-commissioning the pipeline/system and making good on site including all temporary supports. Inclusive of temporary supply systems to ensure the works remains operational. Note: Item to cover all planned shuts on the system for tie-ins | E263: Sum | F263: 1.00 | G263: 0.00 | H263: =IF(E263 = CHAR(37), F263*G263/100,F263*G263) -> 0.00
A265: 25626 | D265: APPOINTMENT OF A PROCESS ENGINEER
A267: 25627 | D267: Appointment of a Professionally Registered Process Engineer. Responsibilities include process design support, performance monitoring, troubleshooting for all works undertaken on this contract | E267: Sum | F267: 1.00 | G267: 0.00 | H267: =IF(E267 = CHAR(37), F267*G267/100,F267*G267) -> 0.00
B280: Total Carried Forward To Summary | H280: =SUM(H248:H279) -> 0.00
B281: SCHEDULE 1 - PRELIMINARY AND GENERAL
D282: SUMMARY OF SECTIONS
C283: SECTION | D283: DESCRIPTION | H283: AMOUNT (RAND)
C284: 1.1 | D284: SECTION 1.1: FIXED CHARGED ITEMS | H284: =H105 -> 0.00
C286: 1.2 | D286: SECTION 1.2: TIME RELATED ITEMS | H286: =H207 -> 0.00
C288: 1.3 | D288: SECTION 1.3: OTHER PRELIMINARY AND GENERAL ITEMS | H288: =H280 -> 0.00
C342: Total Carried Forward To Summary Of Schedules | D342: Total Carried Forward To Summary Of Schedules | H342: =SUM(H284:H341) -> 0.00

Sheet Schedule 2
A1: Rate=G | B1: SCHEDULE 2 - PROVISIONAL SUMS
H2: SECTION 2.1: PROVISIONAL SUMS
B3: ITEM NO | C3: PAYMENT | D3: DESCRIPTION | E3: UNIT | F3: QTY | G3: RATE | H3: AMOUNT (RAND)
A4: 7273 | B4: 2.1 | C4: 8.5 | D4: SUMS STATED PROVISIONALLY BY EMPLOYERS AGENT
A6: 7911 | B6: 2.1.1 | D6: Provisional sum for concrete cube strength and durability tests ordered by the Employer’s Agent | E6: Prov Sum | F6: 1.00 | G6: 100,000.00 | H6: 100,000.00
A8: 7920 | B8: 2.1.2 | D8: Overheads, charges and profit on above item | E8: % | F8: =H6 -> 100,000.00 | G8: 0.00 | H8: =IF(E8 = CHAR(37), F8*G8/100,F8*G8) -> 0.00
A10: 8227 | B10: 2.1.3 | D10: Provisional Sum for non destructive testing of steel pipelines | E10: Prov Sum | F10: 1.00 | G10: 100,000.00 | H10: 100,000.00
A12: 8228 | B12: 2.1.4 | D12: Overheads, charges and profit on above item | E12: % | F12: =H10 -> 100,000.00 | G12: 0.00 | H12: =IF(E12 = CHAR(37), F12*G12/100,F12*G12) -> 0.00
A14: 7921 | B14: 2.1.5 | C14: PS4.23, PCL | D14: Provisional sum for employment CLO. | E14: Prov Sum | F14: 1.00 | G14: 500,000.00 | H14: 500,000.00
A16: 7922 | B16: 2.1.6 | D16: Overheads, charges and profit on above item | E16: % | F16: =H14 -> 500,000.00 | G16: 0.00 | H16: =IF(E16 = CHAR(37), F16*G16/100,F16*G16) -> 0.00
A18: 7923 | B18: 2.1.7 | C18: PS4.11.4 | D18: Provisional sum for progress photographs/photographic record including drone imagery | E18: Prov Sum | F18: 1.00 | G18: 35,000.00 | H18: 35,000.00
A20: 7924 | B20: 2.1.8 | D20: Overheads, charges and profit on above item | E20: % | F20: =H18 -> 35,000.00 | G20: 0.00 | H20: =IF(E20 = CHAR(37), F20*G20/100,F20*G20) -> 0.00
A22: 7925 | B22: 2.1.9 | D22: Provisional sum for equipment for Employer’s Agent as directed | E22: Prov Sum | F22: 1.00 | G22: 50,000.00 | H22: 50,000.00
A24: 7926 | B24: 2.1.10 | D24: Overheads, charges and profit on above item | E24: % | F24: =H22 -> 50,000.00 | G24: 0.00 | H24: =IF(E24 = CHAR(37), F24*G24/100,F24*G24) -> 0.00
A26: 8606 | B26: 2.1.11 | C26: PSD 8.3.7 | D26: Additional lateral support where ordered by the Engineer (provisional) | E26: Prov Sum | F26: 1.00 | G26: 250,000.00 | H26: 250,000.00
A28: 8607 | B28: 2.1.12 | D28: Overheads, charges and profit on above item | E28: % | F28: =H26 -> 250,000.00 | G28: 0.00 | H28: =IF(E28 = CHAR(37), F28*G28/100,F28*G28) -> 0.00
A30: 8229 | B30: 2.1.13 | D30: Provisional sum for additional specialised Engineering services as directed by the Employers Agent | E30: Prov Sum | F30: 1.00 | G30: 500,000.00 | H30: 500,000.00
A32: 8230 | B32: 2.1.14 | D32: Overheads, charges and profit on above item | E32: % | F32: =H30 -> 500,000.00 | G32: 0.00 | H32: =IF(E32 = CHAR(37), F32*G32/100,F32*G32) -> 0.00
A34: 7912 | B34: 2.1.15 | D34: Provisional sum for additional surveying as directed by the Employer’s Agent | E34: Prov Sum | F34: 1.00 | G34: 75,000.00 | H34: 75,000.00
A36: 7913 | B36: 2.1.16 | D36: Overheads, charges and profit on above item | E36: % | F36: =H34 -> 75,000.00 | G36: 0.00 | H36: =IF(E36 = CHAR(37), F36*G36/100,F36*G36) -> 0.00
A38: 7315 | B38: 2.1.17 | D38: Provisional sum for a weather station | E38: Prov Sum | F38: 1.00 | G38: 25,000.00 | H38: 25,000.00
A40: 7275 | B40: 2.1.18 | D40: Overheads, charges and profit on above item | E40: % | F40: =H38 -> 25,000.00 | G40: 0.00 | H40: =IF(E40 = CHAR(37), F40*G40/100,F40*G40) -> 0.00
B41: Total Carried Forward | H41: =SUM(H4:H40) -> 1,635,000.00
B42: SCHEDULE 2 - PROVISIONAL SUMS
H43: SECTION 2.1: PROVISIONAL SUMS
B44: ITEM NO | C44: PAYMENT | D44: DESCRIPTION | E44: UNIT | F44: QTY | G44: RATE | H44: AMOUNT (RAND)
B45: Brought Forward | H45: =H41 -> 1,635,000.00
A46: 18613 | B46: 2.1.19 | D46: Provisional Sum for ancillary civil and structural remedial works | E46: Prov Sum | F46: 1.00 | G46: 500,000.00 | H46: 500,000.00
A48: 18614 | B48: 2.1.20 | D48: Overheads, charges and profit on above item | E48: % | F48: =H46 -> 500,000.00 | G48: 0.00 | H48: =IF(E48 = CHAR(37), F48*G48/100,F48*G48) -> 0.00
A50: 19993 | B50: 2.1.21 | D50: Provisional Sum for ancillary mechanical, electrical and instrumentation remedial works/equipment | E50: Prov Sum | F50: 1.00 | G50: 500,000.00 | H50: 500,000.00
A52: 19994 | B52: 2.1.22 | D52: Overheads, charges and profit on above item | E52: % | F52: =H50 -> 500,000.00 | G52: 0.00 | H52: =IF(E52 = CHAR(37), F52*G52/100,F52*G52) -> 0.00
A54: 18922 | B54: 2.1.23 | D54: Provisional sum for additional geotechnical investigations / monitoring | E54: Prov Sum | F54: 1.00 | G54: 150,000.00 | H54: 150,000.00
A56: 18923 | B56: 2.1.24 | D56: Overheads, charges and profit on above item | E56: % | F56: =H54 -> 150,000.00 | G56: 0.00 | H56: =IF(E56 = CHAR(37), F56*G56/100,F56*G56) -> 0.00
A58: 24190 | B58: 2.1.25 | C58: PSCLR | D58: Provisional Sum for colour coding painting of pipework | E58: Prov Sum | F58: 1.00 | G58: 200,000.00 | H58: 200,000.00
A60: 24191 | B60: 2.1.26 | D60: Overheads, charges and profit on above item | E60: % | F60: =H58 -> 200,000.00 | G60: 0.00 | H60: =IF(E60 = CHAR(37), F60*G60/100,F60*G60) -> 0.00
A62: 25620 | B62: 2.1.27 | D62: Provisional Sum for lock out boards | E62: Prov Sum | F62: 1.00 | G62: 25,000.00 | H62: 25,000.00
A64: 25621 | B64: 2.1.28 | D64: Overheads, charges and profit on above item | E64: % | F64: =H62 -> 25,000.00 | G64: 0.00 | H64: =IF(E64 = CHAR(37), F64*G64/100,F64*G64) -> 0.00
A66: 25622 | B66: 2.1.29 | D66: Provisional Sum for ISD Consultant | E66: Prov Sum | F66: 1.00 | G66: 800,000.00 | H66: 800,000.00
A68: 25623 | B68: 2.1.30 | D68: Overheads, charges and profit on above item | E68: % | F68: =H66 -> 800,000.00 | G68: 0.00 | H68: =IF(E68 = CHAR(37), F68*G68/100,F68*G68) -> 0.00
A70: 25624 | B70: 2.1.31 | D70: Provisional Sum for painting of walls, floors and ceilings as directed by the Engineer | E70: Prov Sum | F70: 1.00 | G70: 200,000.00 | H70: 200,000.00
A72: 25625 | B72: 2.1.32 | D72: Overheads, charges and profit on above item | E72: % | F72: =H70 -> 200,000.00 | G72: 0.00 | H72: =IF(E72 = CHAR(37), F72*G72/100,F72*G72) -> 0.00
A74: 25628 | B74: 2.1.33 | D74: Provisional Sum for Chlorine Building Extension | E74: Prov Sum | F74: 1.00 | G74: 200,000.00 | H74: 200,000.00
A76: 25629 | B76: 2.1.34 | D76: Overheads, charges and profit on above item | E76: % | F76: =H74 -> 200,000.00 | G76: 0.00 | H76: =IF(E76 = CHAR(37), F76*G76/100,F76*G76) -> 0.00
A78: 26131 | B78: 2.1.35 | D78: Provisional Sum for improvements to on site storage | E78: Prov Sum | F78: 1.00 | G78: 5,000,000.00 | H78: 5,000,000.00
A80: 26132 | B80: 2.1.36 | D80: Overheads, charges and profit on above item | E80: % | F80: =H78 -> 5,000,000.00 | G80: 0.00 | H80: =IF(E80 = CHAR(37), F80*G80/100,F80*G80) -> 0.00
B83: Total Carried Forward To Summary | H83: =SUM(H45:H82) -> 9,210,000.00
B84: SCHEDULE 2 - PROVISIONAL SUMS
H85: SECTION 2.2: DAYWORKS
B86: ITEM NO | C86: PAYMENT | D86: DESCRIPTION | E86: UNIT | F86: QTY | G86: RATE | H86: AMOUNT (RAND)
A87: 7209 | B87: 2.2 | C87: SABS 1200A 8.7 | D87: DAYWORKS
A89: 7210 | B89: 2.2.1 | D89: LABOUR
A91: 7211 | B91: 2.2.1.1 | D91: Foreman | E91: hr | F91: 30.00 | G91: 0.00 | H91: =IF(E91 = CHAR(37), F91*G91/100,F91*G91) -> 0.00
A93: 7214 | B93: 2.2.1.2 | D93: Semi-skilled | E93: hr | F93: 50.00 | G93: 0.00 | H93: =IF(E93 = CHAR(37), F93*G93/100,F93*G93) -> 0.00
A95: 7215 | B95: 2.2.1.3 | D95: Unskilled | E95: hr | F95: 200.00 | G95: 0.00 | H95: =IF(E95 = CHAR(37), F95*G95/100,F95*G95) -> 0.00
A97: 7216 | B97: 2.2.1.4 | D97: Surveyor with transport, instruments and labour | E97: hr | F97: 40.00 | G97: 0.00 | H97: =IF(E97 = CHAR(37), F97*G97/100,F97*G97) -> 0.00
A99: 7217 | B99: 2.2.2 | D99: PLANT
A101: 7218 | B101: 2.2.2.1 | D101: CAT 930 (75kW) or similar including establishment and de-establishment | E101: hr | F101: 10.00 | G101: 0.00 | H101: =IF(E101 = CHAR(37), F101*G101/100,F101*G101) -> 0.00
A103: 7219 | B103: 2.2.2.2 | D103: Other (Contractor to specify) | E103: hr | F103: 20.00 | G103: 0.00 | H103: =IF(E103 = CHAR(37), F103*G103/100,F103*G103) -> 0.00
A105: 7220 | D105: Bulldozer with ripper:
A107: 7223 | B107: 2.2.2.3 | D107: CAT D8 or similar | E107: hr | F107: 30.00 | G107: 0.00 | H107: =IF(E107 = CHAR(37), F107*G107/100,F107*G107) -> 0.00
A109: 7225 | D109: Motor Grader:
A111: 7226 | B111: 2.2.2.4 | D111: 110 kW | E111: hr | F111: 30.00 | G111: 0.00 | H111: =IF(E111 = CHAR(37), F111*G111/100,F111*G111) -> 0.00
A113: 7227 | B113: 2.2.2.5 | D113: Other (Contractor to specify) | E113: hr | F113: 20.00 | G113: 0.00 | H113: =IF(E113 = CHAR(37), F113*G113/100,F113*G113) -> 0.00
A115: 7228 | D115: Tip Truck:
A117: 7230 | B117: 2.2.2.6 | D117: 10m³ | E117: hr | F117: 50.00 | G117: 0.00 | H117: =IF(E117 = CHAR(37), F117*G117/100,F117*G117) -> 0.00
A119: 8244 | B119: 2.2.2.7 | D119: 6m³ | E119: hr | F119: 50.00 | G119: 0.00 | H119: =IF(E119 = CHAR(37), F119*G119/100,F119*G119) -> 0.00
A121: 7231 | B121: 2.2.2.8 | D121: Other (Contractor to specify) | E121: hr | F121: 20.00 | G121: 0.00 | H121: =IF(E121 = CHAR(37), F121*G121/100,F121*G121) -> 0.00
A123: 7232 | D123: Backactor:
A125: 7233 | B125: 2.2.2.9 | D125: 100kW, 23 ton | E125: hr | F125: 50.00 | G125: 0.00 | H125: =IF(E125 = CHAR(37), F125*G125/100,F125*G125) -> 0.00
A127: 7234 | B127: 2.2.2.10 | D127: 30 ton | E127: hr | F127: 10.00 | G127: 0.00 | H127: =IF(E127 = CHAR(37), F127*G127/100,F127*G127) -> 0.00
A129: 7235 | B129: 2.2.2.11 | D129: TLB | E129: hr | F129: 80.00 | G129: 0.00 | H129: =IF(E129 = CHAR(37), F129*G129/100,F129*G129) -> 0.00
A131: 7236 | B131: 2.2.2.12 | D131: Other (Contractor to specify) | E131: hr | F131: 20.00 | G131: 0.00 | H131: =IF(E131 = CHAR(37), F131*G131/100,F131*G131) -> 0.00
A133: 7237 | D133: Compactors:
A135: 7238 | B135: 2.2.2.13 | D135: Self propelled vibrating roller, 9 ton | E135: hr | F135: 20.00 | G135: 0.00 | H135: =IF(E135 = CHAR(37), F135*G135/100,F135*G135) -> 0.00
A137: 7239 | B137: 2.2.2.14 | D137: Bomag 60 or similar | E137: hr | F137: 20.00 | G137: 0.00 | H137: =IF(E137 = CHAR(37), F137*G137/100,F137*G137) -> 0.00
A139: 7240 | B139: 2.2.2.15 | D139: Plate compactor | E139: hr | F139: 20.00 | G139: 0.00 | H139: =IF(E139 = CHAR(37), F139*G139/100,F139*G139) -> 0.00
A141: 7241 | B141: 2.2.2.16 | D141: Other (Contractor to specify) | E141: hr | F141: 20.00 | G141: 0.00 | H141: =IF(E141 = CHAR(37), F141*G141/100,F141*G141) -> 0.00
A143: 7242 | B143: 2.2.2.17 | D143: Pneumatic Roller | E143: hr | F143: 20.00 | G143: 0.00 | H143: =IF(E143 = CHAR(37), F143*G143/100,F143*G143) -> 0.00
B144: Total Carried Forward | H144: =SUM(H87:H143) -> 0.00
B145: SCHEDULE 2 - PROVISIONAL SUMS
H146: SECTION 2.2: DAYWORKS
B147: ITEM NO | C147: PAYMENT | D147: DESCRIPTION | E147: UNIT | F147: QTY | G147: RATE | H147: AMOUNT (RAND)
B148: Brought Forward | H148: =H144 -> 0.00
A149: 7243 | D149: Water Tankers:
A151: 7245 | B151: 2.2.2.18 | D151: Water Tanker 9000 litres | E151: hr | F151: 100.00 | G151: 0.00 | H151: =IF(E151 = CHAR(37), F151*G151/100,F151*G151) -> 0.00
A153: 7246 | D153: Self propelled Crane:
A155: 7247 | B155: 2.2.2.19 | D155: 20 Tonne | E155: hr | F155: 20.00 | G155: 0.00 | H155: =IF(E155 = CHAR(37), F155*G155/100,F155*G155) -> 0.00
A157: 7249 | B157: 2.2.2.20 | D157: Generator and Breaker 5KVA | E157: hr | F157: 50.00 | G157: 0.00 | H157: =IF(E157 = CHAR(37), F157*G157/100,F157*G157) -> 0.00
A159: 7250 | B159: 2.2.2.21 | D159: Water/Sludge Pump 50mm | E159: hr | F159: 10.00 | G159: 0.00 | H159: =IF(E159 = CHAR(37), F159*G159/100,F159*G159) -> 0.00
A161: 7251 | D161: Welding Equipment:
A163: 7252 | B163: 2.2.2.22 | D163: Heavy duty, self powered welding machine 400A | E163: hr | F163: 20.00 | G163: 0.00 | H163: =IF(E163 = CHAR(37), F163*G163/100,F163*G163) -> 0.00
A165: 7253 | B165: 2.2.2.23 | D165: Welder ( Coded) with assistant | E165: hr | F165: 20.00 | G165: 0.00 | H165: =IF(E165 = CHAR(37), F165*G165/100,F165*G165) -> 0.00
A167: 7254 | D167: Various Other:
A169: 7255 | B169: 2.2.2.24 | D169: Compressor 400 cuft/min - with 2 breakers | E169: hr | F169: 30.00 | G169: 0.00 | H169: =IF(E169 = CHAR(37), F169*G169/100,F169*G169) -> 0.00
A171: 7257 | B171: 2.2.2.25 | D171: Electric breaker - single phase | E171: day | F171: 5.00 | G171: 0.00 | H171: =IF(E171 = CHAR(37), F171*G171/100,F171*G171) -> 0.00
A173: 7258 | B173: 2.2.2.26 | D173: Angle Grinder - 230mm | E173: day | F173: 5.00 | G173: 0.00 | H173: =IF(E173 = CHAR(37), F173*G173/100,F173*G173) -> 0.00
A175: 7259 | B175: 2.2.2.27 | D175: Pneumatic Hammer Drill - 1500Watt | E175: day | F175: 5.00 | G175: 0.00 | H175: =IF(E175 = CHAR(37), F175*G175/100,F175*G175) -> 0.00
A177: 7260 | B177: 2.2.2.28 | D177: Concrete mixer - 360l capacity | E177: day | F177: 5.00 | G177: 0.00 | H177: =IF(E177 = CHAR(37), F177*G177/100,F177*G177) -> 0.00
A179: 7261 | B179: 2.2.2.29 | D179: 7 Tonne flat bed with mounted crane and driver | E179: hr | F179: 10.00 | G179: 0.00 | H179: =IF(E179 = CHAR(37), F179*G179/100,F179*G179) -> 0.00
A181: 7262 | B181: 2.2.2.30 | D181: 1 Tonne LDV with driver | E181: km | F181: 200.00 | G181: 0.00 | H181: =IF(E181 = CHAR(37), F181*G181/100,F181*G181) -> 0.00
A183: 7263 | B183: 2.2.2.31 | D183: Tractor 30 kW or similar | E183: hr | F183: 10.00 | G183: 0.00 | H183: =IF(E183 = CHAR(37), F183*G183/100,F183*G183) -> 0.00
A185: 7212 | B185: 2.2.2.32 | D185: 3 Disk Plow | E185: hr | F185: 10.00 | G185: 0.00 | H185: =IF(E185 = CHAR(37), F185*G185/100,F185*G185) -> 0.00
A187: 7213 | B187: 2.2.3 | D187: MATERIALS
A189: 7264 | B189: 2.2.3.1 | D189: Sand (building) | E189: m³ | F189: 100.00 | G189: 0.00 | H189: =IF(E189 = CHAR(37), F189*G189/100,F189*G189) -> 0.00
A191: 7931 | B191: 2.2.3.2 | D191: Sand (river) | E191: m³ | F191: 50.00 | G191: 0.00 | H191: =IF(E191 = CHAR(37), F191*G191/100,F191*G191) -> 0.00
A193: 7265 | B193: 2.2.3.3 | D193: 50kg pocket of Cement | E193: No. | F193: 30.00 | G193: 0.00 | H193: =IF(E193 = CHAR(37), F193*G193/100,F193*G193) -> 0.00
A195: 7266 | B195: 2.2.3.4 | D195: Dump Rock 150mm | E195: m³ | F195: 10.00 | G195: 0.00 | H195: =IF(E195 = CHAR(37), F195*G195/100,F195*G195) -> 0.00
A197: 7267 | B197: 2.2.3.5 | D197: Crusher Run 28mm | E197: m³ | F197: 20.00 | G197: 0.00 | H197: =IF(E197 = CHAR(37), F197*G197/100,F197*G197) -> 0.00
A199: 7268 | B199: 2.2.3.6 | D199: G5 material | E199: m³ | F199: 20.00 | G199: 0.00 | H199: =IF(E199 = CHAR(37), F199*G199/100,F199*G199) -> 0.00
A201: 7932 | B201: 2.2.3.7 | D201: G2 material | E201: m³ | F201: 20.00 | G201: 0.00 | H201: =IF(E201 = CHAR(37), F201*G201/100,F201*G201) -> 0.00
A203: 8245 | B203: 2.2.3.8 | D203: Provisional sum for cost of other materials | E203: Prov Sum | F203: 1.00 | G203: 50,000.00 | H203: 50,000.00
B204: Total Carried Forward | H204: =SUM(H148:H203) -> 50,000.00
B205: SCHEDULE 2 - PROVISIONAL SUMS
H206: SECTION 2.2: DAYWORKS
B207: ITEM NO | C207: PAYMENT | D207: DESCRIPTION | E207: UNIT | F207: QTY | G207: RATE | H207: AMOUNT (RAND)
B208: Brought Forward | H208: =H204 -> 50,000.00
A209: 7269 | D209: Other (To be specified by Contractor, a breakdown to be attached)
A211: 7270 | D211: a)
A213: 7271 | D213: b)
A215: 7272 | D215: c)
B267: Total Carried Forward To Summary | H267: =SUM(H208:H266) -> 50,000.00
B268: SCHEDULE 2 - PROVISIONAL SUMS
D269: SUMMARY OF SECTIONS
C270: SECTION | D270: DESCRIPTION | H270: AMOUNT (RAND)
C271: 2.1 | D271: SECTION 2.1: PROVISIONAL SUMS | H271: =H83 -> 9,210,000.00
C273: 2.2 | D273: SECTION 2.2: DAYWORKS | H273: =H267 -> 50,000.00
C329: Total Carried Forward To Summary Of Schedules | D329: Total Carried Forward To Summary Of Schedules | H329: =SUM(H271:H328) -> 9,260,000.00

Sheet Schedule 3
A1: Rate=G | B1: SCHEDULE 3 - HEAD OF WORKS
H2: SECTION 3: HEAD OF WORKS
B3: ITEM NO | C3: PAYMENT | D3: DESCRIPTION | E3: UNIT | F3: QTY | G3: RATE | H3: AMOUNT (RAND)
A4: 25379 | B4: 3.1 | D4: SECTION 3: HEAD OF WORKS EARTHWORKS
A6: 25380 | B6: 3.1.1 | C6: SANS 1200D | D6: EARTHWORKS
A8: 25463 | B8: 3.1.1.1 | C8: 8.3.3 | D8: Excavate by hand around existing Mixing structure and/or existing offtake to works to prove existing pipelines for proposed bypass | E8: m³ | F8: 10.00 | G8: 0.00 | H8: =IF(E8 = CHAR(37), F8*G8/100,F8*G8) -> 0.00
A10: 25464 | B10: 3.1.2 | C10: SANS 1200DB PSDB | D10: EARTHWORKS (PIPE TRENCHES)
A12: 25465 | B12: 3.1.2.1 | C12: 8.3.5 | D12: Excavate by hand for proofing of existing Rising main | E12: m³ | F12: 30.00 | G12: 0.00 | H12: =IF(E12 = CHAR(37), F12*G12/100,F12*G12) -> 0.00
A14: 25466 | B14: 3.1.2.2 | C14: 8.3.2 a | D14: Remove topsoil to nominal depth of 150mm, stockpile and maintain | E14: m² | F14: 60.00 | G14: 0.00 | H14: =IF(E14 = CHAR(37), F14*G14/100,F14*G14) -> 0.00
A16: 25467 | B16: 3.1.2.3 | C16: 8.3.6 | D16: Topsoil from stockpile provided for under item 3.2.2 | E16: m² | F16: 60.00 | G16: 0.00 | H16: =IF(E16 = CHAR(37), F16*G16/100,F16*G16) -> 0.00
A18: 25468 | B18: 3.1.2.4 | C18: 8.3.7 | D18: Supply and lay approved grassing as specified in the EMP | E18: m² | F18: 60.00 | G18: 0.00 | H18: =IF(E18 = CHAR(37), F18*G18/100,F18*G18) -> 0.00
A20: 25469 | C20: 8.3.2 PSDB | D20: Excavate in all materials for pipe trench up to DN500 pipe, backfill, compact & dispose of surplus material for depths:
A22: 25470 | D22: Over and up to:
A24: 25471 | B24: 3.1.2.5 | D24: 0.0 - 0.5m | E24: m | F24: 5.00 | G24: 0.00 | H24: =IF(E24 = CHAR(37), F24*G24/100,F24*G24) -> 0.00
A26: 25472 | B26: 3.1.2.6 | D26: 0.51 - 1.0m | E26: m | F26: 50.00 | G26: 0.00 | H26: =IF(E26 = CHAR(37), F26*G26/100,F26*G26) -> 0.00
A28: 25473 | B28: 3.1.2.7 | D28: 1.01 - 2m | E28: m | F28: 10.00 | G28: 0.00 | H28: =IF(E28 = CHAR(37), F28*G28/100,F28*G28) -> 0.00
A30: 25474 | B30: 3.1.2.8 | C30: 8.3.2 | D30: Extra over items 3.2.5 to 3.2.7 for excavation in hard rock | E30: m³ | F30: 5.00 | G30: 0.00 | H30: =IF(E30 = CHAR(37), F30*G30/100,F30*G30) -> 0.00
A32: 25475 | B32: 3.1.2.9 | C32: 8.3.3.4(b) | D32: Overhaul for spoil material under item 3.2.5 to 3.2.7 as instructed by the Engineer | E32: m³.km | F32: 15.00 | G32: 0.00 | H32: =IF(E32 = CHAR(37), F32*G32/100,F32*G32) -> 0.00
A34: 25476 | B34: 3.1.2.10 | D34: Extra over items 3.2.1 to 3.2.3 for saw cutting of asphalt surface | E34: m | F34: 80.00 | G34: 0.00 | H34: =IF(E34 = CHAR(37), F34*G34/100,F34*G34) -> 0.00
A36: 25477 | C36: 8.3.5 | D36: Services that intersect or adjoin a trench
A38: 25478 | B38: 3.1.2.11 | D38: a) Services that intersect a trench | E38: No. | F38: 10.00 | G38: 0.00 | H38: =IF(E38 = CHAR(37), F38*G38/100,F38*G38) -> 0.00
A40: 25479 | B40: 3.1.2.12 | D40: b) Services that adjoin a trench | E40: m | F40: 40.00 | G40: 0.00 | H40: =IF(E40 = CHAR(37), F40*G40/100,F40*G40) -> 0.00
A42: 25480 | B42: 3.1.3 | C42: SANS 1200M | D42: ROAD WORKS
A44: 25481 | D44: Re-instatement of road surfaces, including all layer works as detailed below:
B45: Total Carried Forward | H45: =SUM(H4:H44) -> 0.00
B46: SCHEDULE 3 - HEAD OF WORKS
H47: SECTION 3: HEAD OF WORKS
B48: ITEM NO | C48: PAYMENT | D48: DESCRIPTION | E48: UNIT | F48: QTY | G48: RATE | H48: AMOUNT (RAND)
B49: Brought Forward | H49: =H45 -> 0.00
A50: 25482 | B50: 3.1.3.1 | C50: 8.3.6.1 | D50: 40mm asphalt surfacing including tack coat | E50: m² | F50: 50.00 | G50: 0.00 | H50: =IF(E50 = CHAR(37), F50*G50/100,F50*G50) -> 0.00
A52: 25483 | B52: 3.1.3.2 | C52: 8.3.6.1 | D52: 150mm thick G7 sub base compacted to 98% ModAASHO | E52: m² | F52: 50.00 | G52: 0.00 | H52: =IF(E52 = CHAR(37), F52*G52/100,F52*G52) -> 0.00
A54: 25484 | B54: 3.1.3.3 | C54: 8.3.6.1 | D54: 150mm thick G7 sub base compacted to 95% ModAASHO | E54: m² | F54: 50.00 | G54: 0.00 | H54: =IF(E54 = CHAR(37), F54*G54/100,F54*G54) -> 0.00
A56: 25485 | B56: 3.1.3.4 | D56: Compaction of pipe trenches in gravel road to 90% mod AASHTO | E56: m³ | F56: 35.00 | G56: 0.00 | H56: =IF(E56 = CHAR(37), F56*G56/100,F56*G56) -> 0.00
A58: 25486 | B58: 3.1.3.5 | D58: Replacement of kerbs to roadway including concrete support | E58: m | F58: 70.00 | G58: 0.00 | H58: =IF(E58 = CHAR(37), F58*G58/100,F58*G58) -> 0.00
A60: 25487 | B60: 3.1.4 | D60: BEDDING (PIPE)
A62: 25488 | D62: Selected granular material for Class C bedding and fill where ordered, obtained from:
A64: 25489 | B64: 3.1.4.1 | C64: 8.2.2.1 | D64: Trench excavations | E64: m³ | F64: 10.00 | G64: 0.00 | H64: =IF(E64 = CHAR(37), F64*G64/100,F64*G64) -> 0.00
A66: 25490 | B66: 3.1.4.2 | C66: 8.2.2.3 | D66: Commercial sources | E66: m³ | F66: 90.00 | G66: 0.00 | H66: =IF(E66 = CHAR(37), F66*G66/100,F66*G66) -> 0.00
A68: 25491 | B68: 3.1.5 | C68: SANS 1200L PSL | D68: MEDIUM PRESSURE PIPELINES
A70: 25492 | D70: Note: The tendered prices for pipes, valves & specials to include for the cost of necessary couplings, sockets, or flange jointing material scarfing, cutting, welding, jointing and repairs to coatings and linings as necessary. This section allows provisional quantities, however final measurement will depend on agreed option for tie-in
A72: 25493 | C72: 8.2.1 PSL | D72: Supply, lay, bed & test pipes complete with all field welds and repairs to coating and lining the following grade X42 Steel (Plain Ended, suitable for VJ) epoxy coated and lined pipes to specification, including the manufacture, coating, lining, repair, installation and testing complete of all bends up to 5 deg. :
A74: 25494 | B74: 3.1.5.1 | D74: DN400mm OD, 4,5mm wall thickness epoxy coated and lined X42 steel site run pipeline (VJ jointed) wrapped with 55% overlap 1250 micron Denso Ultraflex (or similar approved) | E74: m | F74: 20.00 | G74: 0.00 | H74: =IF(E74 = CHAR(37), F74*G74/100,F74*G74) -> 0.00
B79: Total Carried Forward | H79: =SUM(H49:H78) -> 0.00
B80: SCHEDULE 3 - HEAD OF WORKS
H81: SECTION 3: HEAD OF WORKS
B82: ITEM NO | C82: PAYMENT | D82: DESCRIPTION | E82: UNIT | F82: QTY | G82: RATE | H82: AMOUNT (RAND)
B83: Brought Forward | H83: =H79 -> 0.00
A84: 25495 | B84: 3.1.5.2 | D84: DN400 VJ coupling to suit DN400mm OD 4,5mm X42 steel pipe, with central register, together with petromastic, petrolatum, and topping tape (or similar approved) | E84: No. | F84: 8.00 | G84: 0.00 | H84: =IF(E84 = CHAR(37), F84*G84/100,F84*G84) -> 0.00
A86: 25496 | C86: 8.2.5 PSL | D86: Extra over item 3.5.1 for supplying, laying & bedding of the following DN400mm OD 4,5mm wall thickness steel coated and lined Grade X42 special bends and reducers to specification including welding and repairs to coatings and linings, all bends and reducers to include DN200 flanged stub complete with blank flange and ball valve and precast manhole as detailed for inspection purposes. All ends prepared for VJ coupling wrapped with 1250 micron Denso Ultraflex (or similar approved) at 55% overlap:
A88: 25497 | B88: 3.1.5.3 | D88: >5° - 11¼° long radius bend | E88: No. | F88: 2.00 | G88: 0.00 | H88: =IF(E88 = CHAR(37), F88*G88/100,F88*G88) -> 0.00
A90: 25498 | B90: 3.1.5.4 | D90: >11¼° - 22½° long radius bend | E90: No. | F90: 1.00 | G90: 0.00 | H90: =IF(E90 = CHAR(37), F90*G90/100,F90*G90) -> 0.00
A92: 25499 | B92: 3.1.5.5 | D92: >22½° - 45° long radius bend | E92: No. | F92: 2.00 | G92: 0.00 | H92: =IF(E92 = CHAR(37), F92*G92/100,F92*G92) -> 0.00
A94: 25500 | B94: 3.1.5.6 | D94: >45° - 90° long radius bend | E94: No. | F94: 1.00 | G94: 0.00 | H94: =IF(E94 = CHAR(37), F94*G94/100,F94*G94) -> 0.00
A96: 25501 | B96: 3.1.5.7 | D96: DN500mm OD, 4,5mm wall thickness epoxy coated and lined X42 steel site run pipeline (VJ jointed) wrapped with 55% overlap 1250 micron Denso Ultraflex (or similar approved) | E96: m | F96: 40.00 | G96: 0.00 | H96: =IF(E96 = CHAR(37), F96*G96/100,F96*G96) -> 0.00
A98: 25502 | B98: 3.1.5.8 | D98: DN500 VJ coupling to suit DN500mm OD 4,5mm X42 steel pipe, with central register, together with petromastic, petrolatum, and topping tape (or similar approved) | E98: No. | F98: 10.00 | G98: 0.00 | H98: =IF(E98 = CHAR(37), F98*G98/100,F98*G98) -> 0.00
A100: 25503 | C100: 8.2.5 PSL | D100: Extra over item 3.5.7 for supplying, laying & bedding of the following DN500mm OD 4,5mm wall thickness steel coated and lined Grade X42 special bends and reducers to specification including welding and repairs to coatings and linings, all bends and reducers to include DN200 flanged stub complete with blank flange and ball valve and precast manhole as detailed for inspection purposes. All ends prepared for VJ coupling wrapped with 1250 micron Denso Ultraflex (or similar approved) at 55% overlap:
B102: Total Carried Forward | H102: =SUM(H83:H101) -> 0.00
B103: SCHEDULE 3 - HEAD OF WORKS
H104: SECTION 3: HEAD OF WORKS
B105: ITEM NO | C105: PAYMENT | D105: DESCRIPTION | E105: UNIT | F105: QTY | G105: RATE | H105: AMOUNT (RAND)
B106: Brought Forward | H106: =H102 -> 0.00
A107: 25504 | B107: 3.1.5.9 | D107: >5° - 11¼° long radius bend | E107: No. | F107: 3.00 | G107: 0.00 | H107: =IF(E107 = CHAR(37), F107*G107/100,F107*G107) -> 0.00
A109: 25505 | B109: 3.1.5.10 | D109: >11¼° - 22½° long radius bend | E109: No. | F109: 1.00 | G109: 0.00 | H109: =IF(E109 = CHAR(37), F109*G109/100,F109*G109) -> 0.00
A111: 25506 | B111: 3.1.5.11 | D111: >22½° - 45° long radius bend | E111: No. | F111: 1.00 | G111: 0.00 | H111: =IF(E111 = CHAR(37), F111*G111/100,F111*G111) -> 0.00
A113: 25507 | B113: 3.1.5.12 | D113: >45° - 90° long radius bend | E113: No. | F113: 1.00 | G113: 0.00 | H113: =IF(E113 = CHAR(37), F113*G113/100,F113*G113) -> 0.00
A115: 25604 | D115: OFFTAKE (ISOLATION AND METER) CHAMBER AND ROAD CROSSING (Ref drawing 60398/38, 60398/39)
A117: 25508 | B117: 3.1.6 | C117: SANS 1200D PSD | D117: EARTHWORKS
A119: 25509 | B119: 3.1.6.1 | C119: 8.3.1.2 | D119: Remove topsoil to a normal depth of 150mm stockpile & maintain | E119: m² | F119: 80.00 | G119: 0.00 | H119: =IF(E119 = CHAR(37), F119*G119/100,F119*G119) -> 0.00
A121: 25510 | B121: 3.1.6.2 | C121: 8.3.3 | D121: Restricted excavation in all materials irrespective of depth for chambers | E121: m³ | F121: 100.00 | G121: 0.00 | H121: =IF(E121 = CHAR(37), F121*G121/100,F121*G121) -> 0.00
A123: 25511 | B123: 3.1.6.3 | C123: 8.3.6 | D123: Overhaul for spoil material under item 3.6.1.1/2 as instructed by the Engineer | E123: m³.km | F123: 20.00 | G123: 0.00 | H123: =IF(E123 = CHAR(37), F123*G123/100,F123*G123) -> 0.00
A125: 25512 | B125: 3.1.7 | C125: SANS 1200D PSD | D125: FINISHES | F125: 160.00
A127: 25513 | B127: 3.1.7.1 | C127: 8.3.10 | D127: Topsoiling from stockpile under item 3.6.1.1 | E127: m² | F127: 70.00 | G127: 0.00 | H127: =IF(E127 = CHAR(37), F127*G127/100,F127*G127) -> 0.00
A129: 25514 | B129: 3.1.7.2 | C129: 8.3.11 | D129: Supply and lay approved grass sodding as specified in the EMP | E129: m² | F129: 70.00 | G129: 0.00 | H129: =IF(E129 = CHAR(37), F129*G129/100,F129*G129) -> 0.00
A131: 25515 | C131: SANS 1200G PSG | D131: CONCRETE WORKS (STRUCTURAL)
A133: 25516 | B133: 3.1.8 | C133: 8.1.1 | D133: FORMWORK
A135: 25517 | D135: Supply, install and remove upon completion all necessary formwork shutters, propping, scaffold support work, ledges, soldiers, keys, wedges and ferrels complete. Rate inclusive of boxing out for pipework and manholes.
A137: 25518 | C137: 8.2.2 | D137: Smooth vertical to chambers
A139: 25519 | B139: 3.1.8.1 | D139: Vertical wall surfaces to chambers | E139: m² | F139: 70.00 | G139: 0.00 | H139: =IF(E139 = CHAR(37), F139*G139/100,F139*G139) -> 0.00
A141: 25520 | C141: 8.2.5 | D141: Narrow Widths to chambers not exceeding 250mm
A143: 25521 | B143: 3.1.8.2 | D143: External floor slab | E143: m | F143: 16.00 | G143: 0.00 | H143: =IF(E143 = CHAR(37), F143*G143/100,F143*G143) -> 0.00
A145: 25522 | B145: 3.1.8.3 | D145: 25 x 25mm extra over for chamfer to all exposed edges | E145: m | F145: 15.00 | G145: 0.00 | H145: =IF(E145 = CHAR(37), F145*G145/100,F145*G145) -> 0.00
B147: Total Carried Forward | H147: =SUM(H106:H146) -> 0.00
B148: SCHEDULE 3 - HEAD OF WORKS
H149: SECTION 3: HEAD OF WORKS
B150: ITEM NO | C150: PAYMENT | D150: DESCRIPTION | E150: UNIT | F150: QTY | G150: RATE | H150: AMOUNT (RAND)
B151: Brought Forward | H151: =H147 -> 0.00
A152: 25523 | C152: 8.2.2 | D152: Smooth horizontal soffits to chambers including propped to:
A154: 25524 | B154: 3.1.8.4 | D154: Soffit for roof slab 2.4m | E154: m² | F154: 10.00 | G154: 0.00 | H154: =IF(E154 = CHAR(37), F154*G154/100,F154*G154) -> 0.00
A156: 25525 | D156: Rough vertical to thrust blocks
A158: 25526 | B158: 3.1.8.5 | D158: Side walls of thrust blocks | E158: m² | F158: 10.00 | G158: 0.00 | H158: =IF(E158 = CHAR(37), F158*G158/100,F158*G158) -> 0.00
A160: 25527 | D160: Narrow widths to road crossing pipe protection slab
A162: 25528 | B162: 3.1.8.6 | C162: 8.2.5 | D162: Road crossing pipe protection slab (internal to 300mm width) | E162: m | F162: 20.00 | G162: 0.00 | H162: =IF(E162 = CHAR(37), F162*G162/100,F162*G162) -> 0.00
A164: 25529 | B164: 3.1.8.7 | C164: 8.2.5 | D164: Road crossing pipe protection slab (external to 150mm width) | E164: m | F164: 20.00 | G164: 0.00 | H164: =IF(E164 = CHAR(37), F164*G164/100,F164*G164) -> 0.00
A166: 25530 | B166: 3.1.9 | C166: 8.1.2 | D166: REINFORCEMENT
A168: 25531 | B168: 3.1.9.1 | C168: 8.3.1 | D168: High tensile steel reinforcement of all diameters between 8mm and 25mm in chamber floors, walls and roofs. | E168: t | F168: 3.00 | G168: 0.00 | H168: =IF(E168 = CHAR(37), F168*G168/100,F168*G168) -> 0.00
A170: 25532 | B170: 3.1.9.2 | C170: 8.3.1 | D170: MS reinforcement of all diameters between 8mm and 32mm | E170: t | F170: 0.10 | G170: 0.00 | H170: =IF(E170 = CHAR(37), F170*G170/100,F170*G170) -> 0.00
A172: 25533 | B172: 3.1.9.3 | C172: 8.3.2 | D172: Mesh ref 888 | E172: m² | F172: 50.00 | G172: 0.00 | H172: =IF(E172 = CHAR(37), F172*G172/100,F172*G172) -> 0.00
A174: 25534 | B174: 3.1.9.4 | D174: 25mm galvanised round bar dowels 500mm long cast halfway into road protection slab (inner) and coated with debonding agent for outer slab (300 centres) | E174: No. | F174: 90.00 | G174: 0.00 | H174: =IF(E174 = CHAR(37), F174*G174/100,F174*G174) -> 0.00
A176: 25535 | B176: 3.1.10 | C176: 8.1.3 | D176: CONCRETE
A178: 25607 | B178: 3.1.10.1 | C178: PSG 5.5.3.2 | D178: Concrete Mix Designs | E178: Sum | F178: 1.00 | G178: 0.00 | H178: =IF(E178 = CHAR(37), F178*G178/100,F178*G178) -> 0.00
A180: 25536 | B180: 3.1.10.2 | C180: 8.4.2 | D180: Blinding layer 40mm thick in grade 15/19 concrete to chambers | E180: m² | F180: 16.00 | G180: 0.00 | H180: =IF(E180 = CHAR(37), F180*G180/100,F180*G180) -> 0.00
A182: 25537 | C182: 8.4.3 | D182: Grade 25/19 concrete in chambers
A184: 25538 | B184: 3.1.10.3 | D184: Chamber | E184: m³ | F184: 17.00 | G184: 0.00 | H184: =IF(E184 = CHAR(37), F184*G184/100,F184*G184) -> 0.00
A186: 25539 | C186: 8.4.3 | D186: Grade 25/19 concrete
A188: 25540 | B188: 3.1.10.4 | D188: Road crossing pipe protection slab | E188: m³ | F188: 8.00 | G188: 0.00 | H188: =IF(E188 = CHAR(37), F188*G188/100,F188*G188) -> 0.00
A190: 25541 | C190: 8.4.3 | D190: Grade 15/19 concrete
A192: 25542 | B192: 3.1.10.5 | D192: For thrust blocks/anchor blocks/valve supports | E192: m³ | F192: 15.00 | G192: 0.00 | H192: =IF(E192 = CHAR(37), F192*G192/100,F192*G192) -> 0.00
A194: 25543 | B194: 3.1.11 | D194: UNFORMED SURFACE FINISHES
A196: 25544 | C196: 8.4.4 (b) | D196: Steel float finish
B197: Total Carried Forward | H197: =SUM(H151:H196) -> 0.00
B198: SCHEDULE 3 - HEAD OF WORKS
H199: SECTION 3: HEAD OF WORKS
B200: ITEM NO | C200: PAYMENT | D200: DESCRIPTION | E200: UNIT | F200: QTY | G200: RATE | H200: AMOUNT (RAND)
B201: Brought Forward | H201: =H197 -> 0.00
A202: 25545 | B202: 3.1.11.1 | D202: Chamber Floor Slabs | E202: m² | F202: 9.00 | G202: 0.00 | H202: =IF(E202 = CHAR(37), F202*G202/100,F202*G202) -> 0.00
A204: 25546 | B204: 3.1.11.2 | D204: Chamber Roof Slabs | E204: m² | F204: 12.00 | G204: 0.00 | H204: =IF(E204 = CHAR(37), F204*G204/100,F204*G204) -> 0.00
A206: 25547 | B206: 3.1.11.3 | D206: Road crossing pipe protection slab | E206: m² | F206: 50.00 | G206: 0.00 | H206: =IF(E206 = CHAR(37), F206*G206/100,F206*G206) -> 0.00
A208: 25608 | B208: 3.1.12 | C208: PSG 5.5.8 PSG 8.4.7 | D208: CURING AND PROTECTION
A210: 25609 | B210: 3.1.12.1 | D210: Wall slab | E210: m² | F210: 70.00 | G210: 0.00 | H210: =IF(E210 = CHAR(37), F210*G210/100,F210*G210) -> 0.00
A212: 25610 | B212: 3.1.12.2 | D212: Floor and roof slabs | E212: m² | F212: 21.00 | G212: 0.00 | H212: =IF(E212 = CHAR(37), F212*G212/100,F212*G212) -> 0.00
A214: 25611 | B214: 3.1.12.3 | D214: Road crossing slab | E214: m² | F214: 50.00 | G214: 0.00 | H214: =IF(E214 = CHAR(37), F214*G214/100,F214*G214) -> 0.00
A216: 25548 | B216: 3.1.13 | C216: 8.5 | D216: JOINTS
A218: 25549 | B218: 3.1.13.1 | D218: Glassgrid to under asphalt at road crossing protection slab detail | E218: m² | F218: 25.00 | G218: 0.00 | H218: =IF(E218 = CHAR(37), F218*G218/100,F218*G218) -> 0.00
A220: 25550 | B220: 3.1.13.2 | D220: Concrete debonding agent to inner road crossing protection slab sides | E220: m² | F220: 8.00 | G220: 0.00 | H220: =IF(E220 = CHAR(37), F220*G220/100,F220*G220) -> 0.00
A222: 25551 | B222: 3.1.13.3 | D222: 20mm polystyrene under road crossing protection slab | E222: m² | F222: 7.00 | G222: 0.00 | H222: =IF(E222 = CHAR(37), F222*G222/100,F222*G222) -> 0.00
A224: 25559 | D224: OFFTAKE CHAMBER DN500/400 PIPELINE OPTIONS ANALYSIS AND DESIGN
A226: 25560 | B226: 3.1.13.4 | C226: SANS 1200A 8.5(a) | D226: Provide the provisional sum for the implementation of final agreed inlet works configuration including tie into existing raw water line, site run pipe, and other materials and works deemed necessary not included elsewhere within the BOQ to the screening structure. | E226: Prov Sum | F226: 1.00 | G226: 750,000.00 | H226: 750,000.00
A228: 25561 | B228: 3.1.13.5 | D228: Contractors markup on the above direct proven costs | E228: % | F228: =H226 -> 750,000.00 | G228: 0.00 | H228: =IF(E228 = CHAR(37), F228*G228/100,F228*G228) -> 0.00
A230: 25562 | B230: 3.1.13.6 | D230: Contractor to present options (inclusive of preliminary cost estimates) , workshop and finalise design including implementation methodology for the final agreed inlet works configuration. | E230: Sum | F230: 1.00 | G230: 0.00 | H230: =IF(E230 = CHAR(37), F230*G230/100,F230*G230) -> 0.00
A232: 25605 | B232: 3.1.14 | C232: SANS 1200L PSL | D232: PIPE FITTINGS
B240: Total Carried Forward | H240: =SUM(H201:H239) -> 750,000.00
B241: SCHEDULE 3 - HEAD OF WORKS
H242: SECTION 3: HEAD OF WORKS
B243: ITEM NO | C243: PAYMENT | D243: DESCRIPTION | E243: UNIT | F243: QTY | G243: RATE | H243: AMOUNT (RAND)
B244: Brought Forward | H244: =H240 -> 750,000.00
A245: 25563 | D245: Supply deliver, install to site the following fittings to test and commission. All pressure rating PN10 and all Flange Drilling to match existing. Rates to include necessary couplings, sockets, flange jointing material, cutting, welding, joining, lining, coating, and coating repair on site as necessary.:
A247: 25564 | B247: 3.1.14.1 | D247: Item 1, DN500, PN10 Epoxy coated and lined flanged restrained VJ coupling | E247: No | F247: 2.00 | G247: 0.00 | H247: =IF(E247 = CHAR(37), F247*G247/100,F247*G247) -> 0.00
A249: 25565 | B249: 3.1.14.2 | D249: Item 2, DN500, PN10 Epoxy coated and lined flanged pipe with puddle 1200mm long, 25mm stub, ball valve and pressure gauge | E249: No | F249: 1.00 | G249: 0.00 | H249: =IF(E249 = CHAR(37), F249*G249/100,F249*G249) -> 0.00
A251: 25566 | B251: 3.1.14.3 | D251: Item 4, DN500/400, PN10 Epoxy coated and lined flanged/plain ended concentric reducer 2300mm long | E251: No | F251: 1.00 | G251: 0.00 | H251: =IF(E251 = CHAR(37), F251*G251/100,F251*G251) -> 0.00
A253: 25567 | B253: 3.1.14.4 | D253: Item 5, DN400, PN10 Epoxy coated and lined flanged restrained VJ coupling | E253: No | F253: 1.00 | G253: 0.00 | H253: =IF(E253 = CHAR(37), F253*G253/100,F253*G253) -> 0.00
A255: 25568 | B255: 3.1.14.5 | D255: Item 7, DN400/500, PN10 Epoxy coated and lined flanged reducer special with puddle 1700mm long. | E255: No | F255: 1.00 | G255: 0.00 | H255: =IF(E255 = CHAR(37), F255*G255/100,F255*G255) -> 0.00
A257: 25569 | B257: 3.1.14.6 | D257: Item 8, DN80, PN10 Epoxy coated GMS flanged/plain ended pipe with puddle 400mm long. | E257: No | F257: 1.00 | G257: 0.00 | H257: =IF(E257 = CHAR(37), F257*G257/100,F257*G257) -> 0.00
A259: 25570 | B259: 3.1.14.7 | D259: Item 9, DN80, PN10 Epoxy coated GMS flange adaptor for HDPe | E259: No | F259: 1.00 | G259: 0.00 | H259: =IF(E259 = CHAR(37), F259*G259/100,F259*G259) -> 0.00
A261: 25571 | B261: 3.1.14.8 | D261: DN500 Insulating flange as specified | E261: No | F261: 2.00 | G261: 0.00 | H261: =IF(E261 = CHAR(37), F261*G261/100,F261*G261) -> 0.00
A263: 25572 | B263: 3.1.15 | C263: SANS 1200HA | D263: SUNDRY ITEMS
A265: 25573 | B265: 3.1.15.1 | D265: GMS access ladder fabricated to details on drawings and fixed to internal wall of chamber. Overall length 2.4m | E265: No. | F265: 2.00 | G265: 0.00 | H265: =IF(E265 = CHAR(37), F265*G265/100,F265*G265) -> 0.00
A267: 25574 | B267: 3.1.15.2 | D267: GMS hand grip fabricated to detail on drawing and cast into slab | E267: No. | F267: 2.00 | G267: 0.00 | H267: =IF(E267 = CHAR(37), F267*G267/100,F267*G267) -> 0.00
A269: 25575 | B269: 3.1.15.3 | D269: GMS pipe brackets for DN400 pipes as detailed | E269: No. | F269: 1.00 | G269: 0.00 | H269: =IF(E269 = CHAR(37), F269*G269/100,F269*G269) -> 0.00
A271: 25576 | B271: 3.1.15.4 | D271: GMS pipe brackets for DN500 pipes as detailed | E271: No. | F271: 1.00 | G271: 0.00 | H271: =IF(E271 = CHAR(37), F271*G271/100,F271*G271) -> 0.00
A273: 25577 | D273: GALVANISED/SS STEEL VENTILATORS
B274: Total Carried Forward | H274: =SUM(H244:H273) -> 750,000.00
B275: SCHEDULE 3 - HEAD OF WORKS
H276: SECTION 3: HEAD OF WORKS
B277: ITEM NO | C277: PAYMENT | D277: DESCRIPTION | E277: UNIT | F277: QTY | G277: RATE | H277: AMOUNT (RAND)
B278: Brought Forward | H278: =H274 -> 750,000.00
A279: 25578 | B279: 3.1.15.5 | D279: Fabricate and install GMS ventilators to detail on drawings | E279: No. | F279: 2.00 | G279: 0.00 | H279: =IF(E279 = CHAR(37), F279*G279/100,F279*G279) -> 0.00
A281: 25579 | B281: 3.1.16 | C281: SANS 1200HA | D281: MISCELLANEOUS ITEMS
A283: 25580 | D283: MANHOLE COVER
A285: 25581 | B285: 3.1.16.1 | D285: Supply and install into roof of chambers 1.8x0.9m GMS lockable manhole cover and frame complete as detailed on the drawings | E285: No. | F285: 2.00 | G285: 0.00 | H285: =IF(E285 = CHAR(37), F285*G285/100,F285*G285) -> 0.00
A287: 25582 | B287: 3.1.17 | C287: SANS 1200A | D287: PROVISIONAL SUM
A289: 25583 | B289: 3.1.17.1 | C289: 8.5(a) | D289: Provide the Provisional Sum of R50 000 for signage and life saving equipment as instructed by the Engineer | E289: Prov Sum | F289: 1.00 | G289: 0.00 | H289: =IF(E289 = CHAR(37), F289*G289/100,F289*G289) -> 0.00
A291: 25584 | B291: 3.1.17.2 | D291: Contractors markup on above | E291: % | F291: =H289 -> 0.00 | G291: 0.00 | H291: =IF(E291 = CHAR(37), F291*G291/100,F291*G291) -> 0.00
A293: 25585 | D293: FLOW CONTROL VALVE CHAMBER AND SCREEN (Ref Drawing 60398/37)
A295: 25606 | B295: 3.1.18 | C295: SANS 1200D PSD | D295: EARTHWORKS
A297: 25586 | B297: 3.1.18.1 | C297: 8.3.1.2 | D297: Remove topsoil to a normal depth of 150mm stockpile & maintain | E297: m² | F297: 90.00 | G297: 0.00 | H297: =IF(E297 = CHAR(37), F297*G297/100,F297*G297) -> 0.00
A299: 25587 | B299: 3.1.18.2 | C299: 8.3.3 | D299: Restricted excavation in all materials irrespective of depth for chambers | E299: m³ | F299: 110.00 | G299: 0.00 | H299: =IF(E299 = CHAR(37), F299*G299/100,F299*G299) -> 0.00
A301: 25588 | B301: 3.1.18.3 | C301: 8.3.6 | D301: Overhaul for spoil material under item 3.8.1.1/2 as instructed by the Engineer | E301: m³.km | F301: 500.00 | G301: 0.00 | H301: =IF(E301 = CHAR(37), F301*G301/100,F301*G301) -> 0.00
A303: 25589 | B303: 3.1.19 | D303: FINISHES
A305: 25590 | B305: 3.1.19.1 | C305: 8.3.10 | D305: Topsoiling from stockpile under item 3.8.1.1 | E305: m² | F305: 60.00 | G305: 0.00 | H305: =IF(E305 = CHAR(37), F305*G305/100,F305*G305) -> 0.00
A307: 25591 | B307: 3.1.19.2 | C307: 8.3.11 | D307: Supply and lay approved grassing as specified in the EMP | E307: m² | F307: 60.00 | G307: 0.00 | H307: =IF(E307 = CHAR(37), F307*G307/100,F307*G307) -> 0.00
A309: 25592 | C309: SANS 1200G PSG | D309: CONCRETE WORKS (STRUCTURAL)
A311: 25593 | B311: 3.1.20 | C311: 8.1.1 | D311: FORMWORK
A313: 25594 | D313: Supply, install and remove upon completion all necessary formwork shutters, propping, scaffold support work, ledges, soldiers, keys, wedges and ferrels complete. Rate inclusive of boxing out for pipework and manholes.
B315: Total Carried Forward | H315: =SUM(H278:H314) -> 750,000.00
B316: SCHEDULE 3 - HEAD OF WORKS
H317: SECTION 3: HEAD OF WORKS
B318: ITEM NO | C318: PAYMENT | D318: DESCRIPTION | E318: UNIT | F318: QTY | G318: RATE | H318: AMOUNT (RAND)
B319: Brought Forward | H319: =H315 -> 750,000.00
A320: 25595 | D320: Smooth vertical to chambers
A322: 25596 | B322: 3.1.20.1 | C322: 8.2.2 | D322: Vertical wall surfaces to chambers | E322: m² | F322: 85.00 | G322: 0.00 | H322: =IF(E322 = CHAR(37), F322*G322/100,F322*G322) -> 0.00
A324: 25597 | D324: Narrow Widths to chambers not exceeding 250mm
A326: 25598 | B326: 3.1.20.2 | C326: 8.2.5 | D326: External floor slab | E326: m | F326: 26.00 | G326: 0.00 | H326: =IF(E326 = CHAR(37), F326*G326/100,F326*G326) -> 0.00
A328: 25599 | B328: 3.1.20.3 | C328: 8.2.2 | D328: 25 x 25mm extra over for chamfer to all exposed edges | E328: m | F328: 60.00 | G328: 0.00 | H328: =IF(E328 = CHAR(37), F328*G328/100,F328*G328) -> 0.00
A330: 25600 | D330: Smooth horizontal soffits to chambers including propped to:
A332: 25601 | B332: 3.1.20.4 | D332: Soffit for roof slab 2.4m | E332: m² | F332: 2.00 | G332: 0.00 | H332: =IF(E332 = CHAR(37), F332*G332/100,F332*G332) -> 0.00
A334: 25602 | B334: 3.1.21 | C334: 8.1.2 | D334: REINFORCEMENT
A336: 25603 | B336: 3.1.21.1 | C336: 8.3.1 | D336: High tensile steel reinforcement of all diameters between 8mm and 25mm in chamber floors, walls and roofs. | E336: t | F336: 5.00 | G336: 0.00 | H336: =IF(E336 = CHAR(37), F336*G336/100,F336*G336) -> 0.00
A338: 25552 | B338: 3.1.21.2 | D338: MS reinforcement of all diameters between 8mm and 32mm | E338: t | F338: 0.10 | G338: 0.00 | H338: =IF(E338 = CHAR(37), F338*G338/100,F338*G338) -> 0.00
A340: 25553 | B340: 3.1.21.3 | C340: 8.3.2 | D340: Mesh ref. 888 | E340: m² | F340: 5.00 | G340: 0.00 | H340: =IF(E340 = CHAR(37), F340*G340/100,F340*G340) -> 0.00
A342: 25554 | B342: 3.1.22 | C342: 8.1.3 | D342: CONCRETE
A344: 25612 | B344: 3.1.22.1 | C344: PSG 5.5.3.2 | D344: Concrete mix designs | E344: Sum | F344: 1.00 | G344: 0.00 | H344: =IF(E344 = CHAR(37), F344*G344/100,F344*G344) -> 0.00
A346: 25555 | B346: 3.1.22.2 | C346: 8.4.2 | D346: Blinding layer 50mm thick in grade 15/19 concrete to chambers | E346: m² | F346: 35.00 | G346: 0.00 | H346: =IF(E346 = CHAR(37), F346*G346/100,F346*G346) -> 0.00
A348: 25556 | C348: 8.4.3 | D348: Grade 30/19 concrete (min. cement content to be 350kg/m3) in chambers
A350: 25557 | B350: 3.1.22.3 | D350: Chamber | E350: m³ | F350: 5.00 | G350: 0.00 | H350: =IF(E350 = CHAR(37), F350*G350/100,F350*G350) -> 0.00
A352: 25558 | B352: 3.1.22.4 | D352: Screening Structure incl. skip slab | E352: m³ | F352: 18.00 | G352: 0.00 | H352: =IF(E352 = CHAR(37), F352*G352/100,F352*G352) -> 0.00
A354: 25381 | B354: 3.1.23 | D354: UNFORMED SURFACE FINISHES
A356: 25382 | C356: 8.4.4 (b) | D356: Steel float finish
A358: 25383 | B358: 3.1.23.1 | D358: Chamber Floor Slabs | E358: m² | F358: 2.00 | G358: 0.00 | H358: =IF(E358 = CHAR(37), F358*G358/100,F358*G358) -> 0.00
A360: 25384 | B360: 3.1.23.2 | D360: Chamber Roof Slabs | E360: m² | F360: 4.00 | G360: 0.00 | H360: =IF(E360 = CHAR(37), F360*G360/100,F360*G360) -> 0.00
A362: 25385 | B362: 3.1.23.3 | D362: Screens Floor Slab | E362: m² | F362: 20.00 | G362: 0.00 | H362: =IF(E362 = CHAR(37), F362*G362/100,F362*G362) -> 0.00
... 120 more rows

Sheet Schedule 4
A1: Rate=G | B1: SCHEDULE 4 - FLOCCULATION TANKS
H2: SECTION 4: FLOCCULATION TANKS
B3: ITEM NO | C3: PAYMENT | D3: DESCRIPTION | E3: UNIT | F3: QTY | G3: RATE | H3: AMOUNT (RAND)
A4: 25127 | B4: 4.1 | D4: SECTION 4: FLOCCULATION TANKS
A6: 25128 | B6: 4.1.1 | C6: SANS 1200C PSC | D6: SITE CLEARANCE
A8: 25129 | B8: 4.1.1.1 | C8: 8.2.1 | D8: Clear and grub site | E8: m² | F8: 300.00 | G8: 0.00 | H8: =IF(E8 = CHAR(37), F8*G8/100,F8*G8) -> 0.00
A10: 25130 | B10: 4.1.1.2 | C10: 8.2.8 | D10: Demolition of existing inlet works to limit of demolition as shown, including removal from site to registered land fill. Demolition to only commence when new inlet works with temporary bypass line has been completed (including dosing and mechanicals etc. complete) and water redirected. | E10: Sum | F10: 1.00 | G10: 0.00 | H10: =IF(E10 = CHAR(37), F10*G10/100,F10*G10) -> 0.00
A12: 25131 | B12: 4.1.2 | C12: SANS 1200 D PSD | D12: EARTHWORKS
A14: 25132 | B14: 4.1.2.1 | C14: 8.3.1.2 | D14: Remove topsoil to a normal depth of 150mm stockpile & maintain in accordance with the environmental specifications. | E14: m² | F14: 300.00 | G14: 0.00 | H14: =IF(E14 = CHAR(37), F14*G14/100,F14*G14) -> 0.00
A16: 25133 | B16: 4.1.3 | C16: 8.3.3 | D16: RESTRICTED EXCAVATION
A18: 25134 | B18: 4.1.3.1 | C18: 8.3.3 | D18: Restricted excavation in all materials and use for embankment or backfill or dispose, as ordered (freehaul of 1.0km) | E18: m³ | F18: 600.00 | G18: 0.00 | H18: =IF(E18 = CHAR(37), F18*G18/100,F18*G18) -> 0.00
A20: 25135 | C20: 8.3.3.2 | D20: Extra-over items 4.3.1 for in:
A22: 25136 | B22: 4.1.3.2 | D22: 2) Hard Rock excavation | E22: m³ | F22: 30.00 | G22: 0.00 | H22: =IF(E22 = CHAR(37), F22*G22/100,F22*G22) -> 0.00
A24: 25137 | B24: 4.1.4 | C24: 8.3.4 | D24: IMPORTED MATERIAL
A26: 25138 | B26: 4.1.4.1 | D26: a) One layer 150mm G5 from commercial source compacted to 93% mod Aashto under blinding. | E26: m³ | F26: 30.00 | G26: 0.00 | H26: =IF(E26 = CHAR(37), F26*G26/100,F26*G26) -> 0.00
A28: 25139 | B28: 4.1.5 | C28: 8.3.6 | D28: OVERHAUL
A30: 25140 | B30: 4.1.5.1 | D30: b) Long Overhaul (provisional) for material to spoil | E30: m³.km | F30: 1,200.00 | G30: 0.00 | H30: =IF(E30 = CHAR(37), F30*G30/100,F30*G30) -> 0.00
A32: 25141 | B32: 4.1.6 | D32: FINISHING
A34: 25142 | B34: 4.1.6.1 | C34: 8.3.10 | D34: Top soiling 150mm thick from stock pile item above. | E34: m² | F34: 140.00 | G34: 0.00 | H34: =IF(E34 = CHAR(37), F34*G34/100,F34*G34) -> 0.00
A36: 25143 | B36: 4.1.6.2 | C36: 8.3.11 | D36: Grassing as specified in the environmental specifications. | E36: m² | F36: 140.00 | G36: 0.00 | H36: =IF(E36 = CHAR(37), F36*G36/100,F36*G36) -> 0.00
A38: 25144 | B38: 4.1.7 | C38: SANS 1200F | D38: PILING
B43: Total Carried Forward | H43: =SUM(H4:H42) -> 0.00
B44: SCHEDULE 4 - FLOCCULATION TANKS
H45: SECTION 4: FLOCCULATION TANKS
B46: ITEM NO | C46: PAYMENT | D46: DESCRIPTION | E46: UNIT | F46: QTY | G46: RATE | H46: AMOUNT (RAND)
B47: Brought Forward | H47: =H43 -> 0.00
A48: 25145 | D48: End-bearing auger/bore replacement type piling designed by specialist piling (550 kN max load, 150kN max. tension load) contractor including minimum 3 x Diameter rock socket, freehaul of 1.0km, reinforcing, concrete, etc. complete. The pile design should allow for 55kN horizontal load and top connection moment of 100kN.m. To be designed for severe exposure conditions and 50 year life span. To be submitted for approval.
A50: 25146 | B50: 4.1.7.1 | C50: 8.2.1 | D50: Establishment on Site for Piling | E50: Sum | F50: 1.00 | G50: 0.00 | H50: =IF(E50 = CHAR(37), F50*G50/100,F50*G50) -> 0.00
A52: 25147 | B52: 4.1.7.2 | C52: 8.2.2 | D52: Move Equipment to and set up at each Pile Position | E52: No. | F52: 18.00 | G52: 0.00 | H52: =IF(E52 = CHAR(37), F52*G52/100,F52*G52) -> 0.00
A54: 25148 | D54: Piling though material situated in the following successive depth ranges. Including auguring/boring through obstructions, temporary casings, reinforcing, concrete, stripping/cutting pile head, etc complete as deemed required.
A56: 25149 | B56: 4.1.7.3 | D56: a) over 0m and up to 10m | E56: m | F56: 180.00 | G56: 0.00 | H56: =IF(E56 = CHAR(37), F56*G56/100,F56*G56) -> 0.00
A58: 25150 | B58: 4.1.7.4 | D58: b) over 10m and up to 15m | E58: m | F58: 27.00 | G58: 0.00 | H58: =IF(E58 = CHAR(37), F58*G58/100,F58*G58) -> 0.00
A60: 25151 | B60: 4.1.7.5 | D60: c) over 15m and up to 20m | E60: m | F60: 5.00 | G60: 0.00 | H60: =IF(E60 = CHAR(37), F60*G60/100,F60*G60) -> 0.00
A62: 25152 | B62: 4.1.7.6 | D62: Low energy Frequency Response dynamic pile integrity testing on all piles by independent specialist consultant. | E62: No. | F62: 18.00 | G62: 0.00 | H62: =IF(E62 = CHAR(37), F62*G62/100,F62*G62) -> 0.00
A64: 25153 | B64: 4.1.7.7 | D64: Installation of (complete), and Load testing of additional piles to destruction (Dynamic Load Test) | E64: No. | F64: 2.00 | G64: 0.00 | H64: =IF(E64 = CHAR(37), F64*G64/100,F64*G64) -> 0.00
A66: 25154 | B66: 4.1.8 | C66: SANS 1200G PSG | D66: CONCRETE (STRUCTURAL)
A68: 25257 | D68: SUPPLEMENTARY PREAMBLES:
A70: 25258 | D70: Cost of tests
B81: Total Carried Forward | H81: =SUM(H47:H80) -> 0.00
B82: SCHEDULE 4 - FLOCCULATION TANKS
H83: SECTION 4: FLOCCULATION TANKS
B84: ITEM NO | C84: PAYMENT | D84: DESCRIPTION | E84: UNIT | F84: QTY | G84: RATE | H84: AMOUNT (RAND)
B85: Brought Forward | H85: =H81 -> 0.00
A86: 25259 | D86: The costs of making, storing and testing of concrete test cubes as required under clause 7 "Tests" of SANS 1200 G shall include the cost of providing cube moulds necessary for the purpose, for testing costs and for submitting reports on the tests to the Engineer. The testing shall be undertaken by an independent firm or institution nominated by the contractor to the approval of the Engineer. (Number of test to be included in accordance with SANS1200G)
A88: 25260 | D88: Formwork
A90: 25261 | D90: Descriptions of formwork shall be deemed to include use and waste only (except where described as "left in" or "permanent"), for fitting together in the required forms, wedging, plumbing and fixing to true angles and surfaces as necessary to ensure easy release during stripping and for reconditioning as necessary before re-use
A92: 25262 | D92: The vertical strutting shall be carried down to such construction as is sufficiently strong to afford the required support without damage and shall remain in position until the newly constructed work is able to support itself
A94: 25263 | D94: Formwork to soffits of solid slabs etc shall be deemed to be to slabs not exceeding 250mm thick unless otherwise described
A96: 25264 | D96: Formwork to soffits of slabs, beams, etc shall be deemed to be propped up exceeding 1,5m and not exceeding 3,5m high unless otherwise described
A98: 25265 | D98: Formwork to sides of bases, ground beams, etc will only be measured where it is prescribed by the engineer for design reasons. Formwork necessitated by irregularity or collapse of excavated faces will not be measured and the cost thereof shall be deemed to be included in the allowance for taking the risk of collapse of the sides of the excavations, provision for which is made in "Earthworks"
B101: Total Carried Forward | H101: =SUM(H85:H100) -> 0.00
B102: SCHEDULE 4 - FLOCCULATION TANKS
H103: SECTION 4: FLOCCULATION TANKS
B104: ITEM NO | C104: PAYMENT | D104: DESCRIPTION | E104: UNIT | F104: QTY | G104: RATE | H104: AMOUNT (RAND)
B105: Brought Forward | H105: =H101 -> 0.00
A106: 25155 | B106: 4.1.9 | C106: 8.1.1 PSG8.2.2 | D106: FORMWORK
A108: 25156 | D108: Vertical formwork
A110: 25157 | B110: 4.1.9.1 | D110: Screed/plaster vertical sides to pile caps (to serve as external pile cap permanent shutter. | E110: m² | F110: 30.00 | G110: 0.00 | H110: =IF(E110 = CHAR(37), F110*G110/100,F110*G110) -> 0.00
A112: 25158 | B112: 4.1.9.2 | C112: 8.2.1 | D112: Rough vertical to Sides of flocculation tank base | E112: m² | F112: 16.00 | G112: 0.00 | H112: =IF(E112 = CHAR(37), F112*G112/100,F112*G112) -> 0.00
A114: 25159 | B114: 4.1.9.3 | C114: 8.2.2 | D114: Smooth vertical to Flocculation tank | E114: m² | F114: 280.00 | G114: 0.00 | H114: =IF(E114 = CHAR(37), F114*G114/100,F114*G114) -> 0.00
A116: 25160 | B116: 4.1.9.4 | C116: 8.2.2 | D116: Smooth vertical to Inlet channel and chamber | E116: m² | F116: 120.00 | G116: 0.00 | H116: =IF(E116 = CHAR(37), F116*G116/100,F116*G116) -> 0.00
A118: 25161 | B118: 4.1.9.5 | C118: 8.2.2 | D118: Smooth vertical to baffle walls (rapid mix inlet channel) | E118: m² | F118: 12.00 | G118: 0.00 | H118: =IF(E118 = CHAR(37), F118*G118/100,F118*G118) -> 0.00
A120: 25162 | B120: 4.1.9.6 | C120: 8.2.2 | D120: Smooth vertical to Outlet channel | E120: m² | F120: 32.00 | G120: 0.00 | H120: =IF(E120 = CHAR(37), F120*G120/100,F120*G120) -> 0.00
A122: 25163 | B122: 4.1.9.7 | C122: 8.2.2 | D122: Smooth vertical (including curved) to connecting channel | E122: m² | F122: 43.00 | G122: 0.00 | H122: =IF(E122 = CHAR(37), F122*G122/100,F122*G122) -> 0.00
A124: 25164 | B124: 4.1.9.8 | C124: 8.2.2 | D124: Smooth vertical to stairs | E124: m² | F124: 3.00 | G124: 0.00 | H124: =IF(E124 = CHAR(37), F124*G124/100,F124*G124) -> 0.00
A126: 25165 | B126: 4.1.9.9 | D126: Formwork for steps | E126: No | F126: 12.00 | G126: 0.00 | H126: =IF(E126 = CHAR(37), F126*G126/100,F126*G126) -> 0.00
A128: 25166 | D128: Horizontal formwork
A130: 25167 | B130: 4.1.9.10 | C130: 8.2.2 | D130: Smooth horizontal to walkway slabs | E130: m² | F130: 38.00 | G130: 0.00 | H130: =IF(E130 = CHAR(37), F130*G130/100,F130*G130) -> 0.00
A132: 25168 | D132: Narrow widths
A134: 25169 | B134: 4.1.9.11 | C134: 8.2.5 | D134: 150mm Smooth horizontal narrow to walkway sides | E134: m | F134: 53.00 | G134: 0.00 | H134: =IF(E134 = CHAR(37), F134*G134/100,F134*G134) -> 0.00
A136: 25170 | B136: 4.1.9.12 | C136: 8.2.5 | D136: 250mm Smooth horizontal narrow to underside of walls (inlet chamber, inlet channel, and central wall openings) | E136: m | F136: 12.00 | G136: 0.00 | H136: =IF(E136 = CHAR(37), F136*G136/100,F136*G136) -> 0.00
A138: 25171 | B138: 4.1.9.13 | C138: 8.2.5 | D138: 250x250 vertical smooth column shutter to central wall column, flocculation tanks | E138: m | F138: 2.00 | G138: 0.00 | H138: =IF(E138 = CHAR(37), F138*G138/100,F138*G138) -> 0.00
A140: 25172 | B140: 4.1.9.14 | C140: 8.2.5 | D140: 250mm smooth vertical narrow widths to wall openings (sides of weirs, outlets, and central wall bottom holes) | E140: m | F140: 20.00 | G140: 0.00 | H140: =IF(E140 = CHAR(37), F140*G140/100,F140*G140) -> 0.00
A142: 25173 | D142: Box-outs / form voids
A144: 25174 | B144: 4.1.9.15 | C144: 8.2.6 (b) | D144: Form voids in walkway slab for mixers, 300 dia. | E144: No. | F144: 8.00 | G144: 0.00 | H144: =IF(E144 = CHAR(37), F144*G144/100,F144*G144) -> 0.00
A146: 25175 | B146: 4.1.9.16 | D146: 50mm PVC pipes cast into baffle walls | E146: No. | F146: 35.00 | G146: 0.00 | H146: =IF(E146 = CHAR(37), F146*G146/100,F146*G146) -> 0.00
B149: Total Carried Forward | H149: =SUM(H105:H148) -> 0.00
B150: SCHEDULE 4 - FLOCCULATION TANKS
H151: SECTION 4: FLOCCULATION TANKS
B152: ITEM NO | C152: PAYMENT | D152: DESCRIPTION | E152: UNIT | F152: QTY | G152: RATE | H152: AMOUNT (RAND)
B153: Brought Forward | H153: =H149 -> 0.00
A154: 25176 | B154: 4.1.9.17 | C154: 8.2.6 (d) | D154: Other than circular, up to and including 0.1m² up to 350 deep | E154: No. | F154: 4.00 | G154: 0.00 | H154: =IF(E154 = CHAR(37), F154*G154/100,F154*G154) -> 0.00
A156: 25177 | B156: 4.1.9.18 | C156: 8.2.6 (d) | D156: Other than circular, up to and including 0.5m² up to 350 deep | E156: No. | F156: 8.00 | G156: 0.00 | H156: =IF(E156 = CHAR(37), F156*G156/100,F156*G156) -> 0.00
A158: 25178 | B158: 4.1.9.19 | C158: 8.2.6 (d) | D158: Square up to and including 0,5m² up to 350 deep | E158: No. | F158: 1.00 | G158: 0.00 | H158: =IF(E158 = CHAR(37), F158*G158/100,F158*G158) -> 0.00
A160: 25179 | B160: 4.1.9.20 | D160: Box-out special for temporary interconnecting of the outlet channel during operation of temporary bypass line, including coating of reinforcing as shown on the drawings.(60398/36) | E160: No. | F160: 1.00 | G160: 0.00 | H160: =IF(E160 = CHAR(37), F160*G160/100,F160*G160) -> 0.00
A162: 25180 | B162: 4.1.9.21 | D162: Box-out special circular for temporary connection to the bypass line, including coating of reinforcing as shown on the drawings. (60398/36) | E162: No. | F162: 1.00 | G162: 0.00 | H162: =IF(E162 = CHAR(37), F162*G162/100,F162*G162) -> 0.00
A164: 25181 | B164: 4.1.10 | C164: 8.1.2 PSG 8.1.2 | D164: REINFORCING
A166: 25182 | B166: 4.1.10.1 | C166: 8.3.1 | D166: High tensile Reinforcing bars up to 32mm dia. | E166: t | F166: 23.00 | G166: 0.00 | H166: =IF(E166 = CHAR(37), F166*G166/100,F166*G166) -> 0.00
A168: 25183 | B168: 4.1.10.2 | C168: 8.3.2 | D168: Mesh ref 888 | E168: m² | F168: 45.00 | G168: 0.00 | H168: =IF(E168 = CHAR(37), F168*G168/100,F168*G168) -> 0.00
A170: 25184 | B170: 4.1.11 | C170: 8.1.3 | D170: CONCRETE
A172: 25266 | B172: 4.1.11.1 | C172: PSG 5.5.3.2 | D172: Concrete mix designs | E172: Sum | F172: 1.00 | G172: 0.00 | H172: =IF(E172 = CHAR(37), F172*G172/100,F172*G172) -> 0.00
A174: 25185 | D174: Blinding in 15MPa/19mm
A176: 25186 | B176: 4.1.11.2 | C176: 8.4.2 | D176: 50mm blinding below pile caps | E176: m² | F176: 13.00 | G176: 0.00 | H176: =IF(E176 = CHAR(37), F176*G176/100,F176*G176) -> 0.00
A178: 25187 | B178: 4.1.11.3 | C178: 8.4.2 | D178: 50mm blinding under structure | E178: m² | F178: 110.00 | G178: 0.00 | H178: =IF(E178 = CHAR(37), F178*G178/100,F178*G178) -> 0.00
A180: 25188 | B180: 4.1.11.4 | C180: 8.4.2 | D180: 50mm blinding under inlet/outlet channels/chambers | E180: m² | F180: 50.00 | G180: 0.00 | H180: =IF(E180 = CHAR(37), F180*G180/100,F180*G180) -> 0.00
A182: 25189 | B182: 4.1.11.5 | C182: 8.4.2 | D182: 50mm blinding under connecting channel | E182: m² | F182: 17.00 | G182: 0.00 | H182: =IF(E182 = CHAR(37), F182*G182/100,F182*G182) -> 0.00
A184: 25190 | C184: 8.4.3 | D184: 35MPa/19mm watertight concrete to:
A186: 25191 | B186: 4.1.11.6 | C186: 8.4.3 | D186: Pile Caps | E186: m³ | F186: 7.00 | G186: 0.00 | H186: =IF(E186 = CHAR(37), F186*G186/100,F186*G186) -> 0.00
A188: 25192 | B188: 4.1.11.7 | C188: 8.4.3 | D188: 350mm floor slab to pile caps | E188: m³ | F188: 40.00 | G188: 0.00 | H188: =IF(E188 = CHAR(37), F188*G188/100,F188*G188) -> 0.00
A190: 25193 | B190: 4.1.11.8 | C190: 8.4.3 | D190: Flocculation tank walls | E190: m³ | F190: 40.00 | G190: 0.00 | H190: =IF(E190 = CHAR(37), F190*G190/100,F190*G190) -> 0.00
A192: 25194 | B192: 4.1.11.9 | C192: 8.4.3 | D192: Walkway slabs | E192: m³ | F192: 9.00 | G192: 0.00 | H192: =IF(E192 = CHAR(37), F192*G192/100,F192*G192) -> 0.00
A194: 25195 | B194: 4.1.11.10 | C194: 8.4.3 | D194: Inlet chamber and channel | E194: m³ | F194: 23.00 | G194: 0.00 | H194: =IF(E194 = CHAR(37), F194*G194/100,F194*G194) -> 0.00
A196: 25196 | B196: 4.1.11.11 | C196: 8.4.3 | D196: Outlet channel | E196: m³ | F196: 7.00 | G196: 0.00 | H196: =IF(E196 = CHAR(37), F196*G196/100,F196*G196) -> 0.00
B198: Total Carried Forward | H198: =SUM(H153:H197) -> 0.00
B199: SCHEDULE 4 - FLOCCULATION TANKS
H200: SECTION 4: FLOCCULATION TANKS
B201: ITEM NO | C201: PAYMENT | D201: DESCRIPTION | E201: UNIT | F201: QTY | G201: RATE | H201: AMOUNT (RAND)
B202: Brought Forward | H202: =H198 -> 0.00
A203: 25197 | B203: 4.1.11.12 | C203: 8.4.3 | D203: Connecting channel | E203: m³ | F203: 9.50 | G203: 0.00 | H203: =IF(E203 = CHAR(37), F203*G203/100,F203*G203) -> 0.00
A205: 25198 | D205: 25MPa/19mm concrete to:
A207: 25199 | B207: 4.1.11.13 | C207: 8.4.3 | D207: Stairs | E207: m³ | F207: 1.50 | G207: 0.00 | H207: =IF(E207 = CHAR(37), F207*G207/100,F207*G207) -> 0.00
A209: 25200 | D209: 15MPa/19mm concrete to:
A211: 25201 | B211: 4.1.11.14 | C211: 8.4.3 | D211: Thickenings to temporary bypass line pipe | E211: m³ | F211: 0.75 | G211: 0.00 | H211: =IF(E211 = CHAR(37), F211*G211/100,F211*G211) -> 0.00
A213: 25202 | D213: No-fines concrete:
A215: 25203 | B215: 4.1.11.15 | C215: PSG 5.5.b11 | D215: No-fines concrete to toe of base slab as shown. | E215: m³ | F215: 5.00 | G215: 0.00 | H215: =IF(E215 = CHAR(37), F215*G215/100,F215*G215) -> 0.00
A217: 25204 | D217: Special concrete:
A219: 25205 | D219: 45MPa no/low shrink quick set repair concrete to fill in temporary bypass box-outs (placed and cured under shut-down conditions). Side walls to be primed with dry to wet concrete primer, and a central bead of sikaswell (or similar approved). (Ref drawing 60398/36)
A221: 25206 | B221: 4.1.11.16 | D221: Outlet channel interconnection box-out. | E221: Sum | F221: 1.00 | G221: 0.00 | H221: =IF(E221 = CHAR(37), F221*G221/100,F221*G221) -> 0.00
A223: 25207 | B223: 4.1.11.17 | D223: Circular box out for temporary connection to the bypass line | E223: Sum | F223: 1.00 | G223: 0.00 | H223: =IF(E223 = CHAR(37), F223*G223/100,F223*G223) -> 0.00
A225: 25208 | B225: 4.1.11.18 | D225: Circular break-out in existing inlet channel for temporary connection to bypass line. | E225: Sum | F225: 1.00 | G225: 0.00 | H225: =IF(E225 = CHAR(37), F225*G225/100,F225*G225) -> 0.00
A227: 25209 | C227: 8.4.4 PSG 5.2.1 | D227: Unformed Surface Finish
A229: 25210 | B229: 4.1.11.19 | C229: 8.4.4 (a) | D229: Wood floated finish to base toe | E229: m² | F229: 22.00 | G229: 0.00 | H229: =IF(E229 = CHAR(37), F229*G229/100,F229*G229) -> 0.00
A231: 25211 | B231: 4.1.11.20 | C231: 8.4.4 (b) | D231: Steel-floated finish to flocculation tank floor | E231: m² | F231: 80.00 | G231: 0.00 | H231: =IF(E231 = CHAR(37), F231*G231/100,F231*G231) -> 0.00
A233: 25212 | B233: 4.1.11.21 | C233: 8.4.4 (b) | D233: Steel-floated finish to walkway slab | E233: m² | F233: 55.00 | G233: 0.00 | H233: =IF(E233 = CHAR(37), F233*G233/100,F233*G233) -> 0.00
A235: 25213 | B235: 4.1.11.22 | C235: 8.4.4 (b) | D235: Steel-floated finish to top of walls (excluding sloped) | E235: m² | F235: 17.00 | G235: 0.00 | H235: =IF(E235 = CHAR(37), F235*G235/100,F235*G235) -> 0.00
A237: 25214 | B237: 4.1.11.23 | C237: 8.4.4 (b) | D237: Steel-floated finish to inlet channel and chamber slab (excluding sloped) | E237: m² | F237: 17.00 | G237: 0.00 | H237: =IF(E237 = CHAR(37), F237*G237/100,F237*G237) -> 0.00
A239: 25215 | B239: 4.1.11.24 | C239: 8.4.4 (b) | D239: Steel-floated finish to outlet channel slab | E239: m² | F239: 12.00 | G239: 0.00 | H239: =IF(E239 = CHAR(37), F239*G239/100,F239*G239) -> 0.00
A241: 25216 | B241: 4.1.11.25 | C241: 8.4.4 (b) | D241: Steel-floated finish, sloped, to rapid mixing channel floor | E241: m² | F241: 10.00 | G241: 0.00 | H241: =IF(E241 = CHAR(37), F241*G241/100,F241*G241) -> 0.00
B242: Total Carried Forward | H242: =SUM(H202:H241) -> 0.00
B243: SCHEDULE 4 - FLOCCULATION TANKS
H244: SECTION 4: FLOCCULATION TANKS
B245: ITEM NO | C245: PAYMENT | D245: DESCRIPTION | E245: UNIT | F245: QTY | G245: RATE | H245: AMOUNT (RAND)
B246: Brought Forward | H246: =H242 -> 0.00
A247: 25217 | B247: 4.1.11.26 | C247: 8.4.4 (b) | D247: Steel-floated finish, sloped, to rapid mixing channel walls | E247: m² | F247: 4.00 | G247: 0.00 | H247: =IF(E247 = CHAR(37), F247*G247/100,F247*G247) -> 0.00
A249: 25218 | B249: 4.1.11.27 | C249: 8.4.4 (b) | D249: Steel-floated finish to connecting channel floor | E249: m² | F249: 13.00 | G249: 0.00 | H249: =IF(E249 = CHAR(37), F249*G249/100,F249*G249) -> 0.00
A251: 25219 | B251: 4.1.11.28 | C251: 8.4.4 (b) | D251: Steel-floated finish to top of connecting channel walls | E251: m² | F251: 5.00 | G251: 0.00 | H251: =IF(E251 = CHAR(37), F251*G251/100,F251*G251) -> 0.00
A253: 25267 | B253: 4.1.12 | C253: PSG 5.5.8 PSG 8.4.7 | D253: CURING AND PROTECTION
A255: 25268 | B255: 4.1.12.1 | D255: Flocculation Tank base | E255: m² | F255: 16.00 | G255: 0.00 | H255: =IF(E255 = CHAR(37), F255*G255/100,F255*G255) -> 0.00
A257: 25269 | B257: 4.1.12.2 | D257: Flocculation Tank walls | E257: m² | F257: 280.00 | G257: 0.00 | H257: =IF(E257 = CHAR(37), F257*G257/100,F257*G257) -> 0.00
A259: 25270 | B259: 4.1.12.3 | D259: Inlet channel and chamber walls | E259: m² | F259: 120.00 | G259: 0.00 | H259: =IF(E259 = CHAR(37), F259*G259/100,F259*G259) -> 0.00
A261: 25271 | B261: 4.1.12.4 | D261: Baffle walls | E261: m² | F261: 12.00 | G261: 0.00 | H261: =IF(E261 = CHAR(37), F261*G261/100,F261*G261) -> 0.00
A263: 25272 | B263: 4.1.12.5 | D263: Outlet channel | E263: m² | F263: 32.00 | G263: 0.00 | H263: =IF(E263 = CHAR(37), F263*G263/100,F263*G263) -> 0.00
A265: 25273 | B265: 4.1.12.6 | D265: Connecting channel | E265: m² | F265: 43.00 | G265: 0.00 | H265: =IF(E265 = CHAR(37), F265*G265/100,F265*G265) -> 0.00
A267: 25274 | B267: 4.1.12.7 | D267: Stairs | E267: m² | F267: 5.00 | G267: 0.00 | H267: =IF(E267 = CHAR(37), F267*G267/100,F267*G267) -> 0.00
A269: 25275 | B269: 4.1.12.8 | D269: Walkway edges | E269: m² | F269: 9.00 | G269: 0.00 | H269: =IF(E269 = CHAR(37), F269*G269/100,F269*G269) -> 0.00
A271: 25276 | B271: 4.1.12.9 | D271: Flocculation Tank base toe top | E271: m² | F271: 22.00 | G271: 0.00 | H271: =IF(E271 = CHAR(37), F271*G271/100,F271*G271) -> 0.00
A273: 25277 | B273: 4.1.12.10 | D273: Flocculation tank floor top | E273: m² | F273: 80.00 | G273: 0.00 | H273: =IF(E273 = CHAR(37), F273*G273/100,F273*G273) -> 0.00
A275: 25278 | B275: 4.1.12.11 | D275: Walkway slab top | E275: m² | F275: 55.00 | G275: 0.00 | H275: =IF(E275 = CHAR(37), F275*G275/100,F275*G275) -> 0.00
A277: 25279 | B277: 4.1.12.12 | D277: Top of walls | E277: m² | F277: 30.00 | G277: 0.00 | H277: =IF(E277 = CHAR(37), F277*G277/100,F277*G277) -> 0.00
A279: 25280 | B279: 4.1.12.13 | D279: Chamber slab | E279: m² | F279: 12.00 | G279: 0.00 | H279: =IF(E279 = CHAR(37), F279*G279/100,F279*G279) -> 0.00
A281: 25281 | B281: 4.1.12.14 | D281: Mixing channel floor | E281: m² | F281: 10.00 | G281: 0.00 | H281: =IF(E281 = CHAR(37), F281*G281/100,F281*G281) -> 0.00
A283: 25282 | B283: 4.1.12.15 | D283: Connecting channel floor | E283: m² | F283: 13.00 | G283: 0.00 | H283: =IF(E283 = CHAR(37), F283*G283/100,F283*G283) -> 0.00
A285: 25220 | B285: 4.1.13 | D285: JOINTS
A287: 25221 | B287: 4.1.13.1 | C287: 8.5 | D287: 200 x 2mm thick sikadur combiflex system or similar approved | E287: m | F287: 350.00 | G287: 0.00 | H287: =IF(E287 = CHAR(37), F287*G287/100,F287*G287) -> 0.00
A289: 25222 | B289: 4.1.13.2 | C289: 8.5 | D289: 250 x 3mm thick plasticized PVC type control waterbar with clips to reinforcing | E289: m | F289: 260.00 | G289: 0.00 | H289: =IF(E289 = CHAR(37), F289*G289/100,F289*G289) -> 0.00
A291: 25223 | B291: 4.1.13.3 | C291: 8.5 | D291: "Sikaswell P" Extrudable Water swelling Profile joint sealing waterstop (Provisional) | E291: m | F291: 5.00 | G291: 0.00 | H291: =IF(E291 = CHAR(37), F291*G291/100,F291*G291) -> 0.00
A293: 25224 | B293: 4.1.14 | C293: SANS 1200HA PSHA | D293: STRUCTURAL STEELWORK
B295: Total Carried Forward | H295: =SUM(H246:H294) -> 0.00
B296: SCHEDULE 4 - FLOCCULATION TANKS
H297: SECTION 4: FLOCCULATION TANKS
B298: ITEM NO | C298: PAYMENT | D298: DESCRIPTION | E298: UNIT | F298: QTY | G298: RATE | H298: AMOUNT (RAND)
B299: Brought Forward | H299: =H295 -> 0.00
A300: 25225 | B300: 4.1.14.1 | C300: 8.3.2 | D300: Supply, fabricate, deliver and install coated GMS ball type handrailing, Height & style to match existing. (including sloped as shown), complete. | E300: m | F300: 160.00 | G300: 0.00 | H300: =IF(E300 = CHAR(37), F300*G300/100,F300*G300) -> 0.00
A302: 25226 | B302: 4.1.14.2 | C302: 8.3.2 | D302: Supply, fabricate, deliver and install coated GMS ball type handrailing to existing clarifier wall. Height & style to match existing. | E302: m | F302: 20.00 | G302: 0.00 | H302: =IF(E302 = CHAR(37), F302*G302/100,F302*G302) -> 0.00
A304: 25227 | B304: 4.1.14.3 | D304: Swing gate to ball type handrailing as detailed | E304: No. | F304: 2.00 | G304: 0.00 | H304: =IF(E304 = CHAR(37), F304*G304/100,F304*G304) -> 0.00
A306: 25228 | B306: 4.1.14.4 | D306: Stainless steel ladder to flocculation tank walls to 2,5m high with extended lugs for handgrip | E306: No. | F306: 2.00 | G306: 0.00 | H306: =IF(E306 = CHAR(37), F306*G306/100,F306*G306) -> 0.00
A308: 25229 | B308: 4.1.14.5 | D308: Supply, fabricate, deliver and install 40x40 GMS grating (40x3 bearer bar). Grating segments to be banded. Holes to manufactured for items such as hand railing stanchions, hand stop slits, and jib crane support. | E308: m² | F308: 28.00 | G308: 0.00 | H308: =IF(E308 = CHAR(37), F308*G308/100,F308*G308) -> 0.00
A310: 25230 | B310: 4.1.14.6 | D310: Supply, fabricate, deliver and install 50x50(x5mm) GMS support beam for grating, fixed to wall with galv. M12 chemical anchors at 300mm spacing | E310: m | F310: 10.00 | G310: 0.00 | H310: =IF(E310 = CHAR(37), F310*G310/100,F310*G310) -> 0.00
A312: 25231 | B312: 4.1.14.7 | D312: Supply, fabricate, deliver and cast in 40x40(x3mm) GMS support bracket for grating, cast in with fishtails at 300mm centres. | E312: m | F312: 45.00 | G312: 0.00 | H312: =IF(E312 = CHAR(37), F312*G312/100,F312*G312) -> 0.00
A314: 25232 | B314: 4.1.15 | D314: MISCELLANEOUS WORK
A316: 25233 | D316: DRAINAGE
A318: 25234 | B318: 4.1.15.1 | D318: 110mm PVC Drain pipe under gully drain, laid to minimum 2% fall to daylight. | E318: m | F318: 40.00 | G318: 0.00 | H318: =IF(E318 = CHAR(37), F318*G318/100,F318*G318) -> 0.00
A320: 25235 | D320: DUCTS
A322: 25236 | B322: 4.1.15.2 | D322: DN50 PN12 HDPE sleeves with SS draw wire | E322: m | F322: 50.00 | G322: 0.00 | H322: =IF(E322 = CHAR(37), F322*G322/100,F322*G322) -> 0.00
A324: 25237 | D324: FIRE SAFETY
A326: 25238 | B326: 4.1.15.3 | D326: Supply and install 9kg DCP fire extinguisher to wall, complete with weather cabinet and signage. | E326: No. | F326: 1.00 | G326: 0.00 | H326: =IF(E326 = CHAR(37), F326*G326/100,F326*G326) -> 0.00
A328: 25239 | B328: 4.1.15.4 | D328: Supply and install 5kg CO2 fire extinguisher to wall, complete with weather cabinet and signage. | E328: No. | F328: 2.00 | G328: 0.00 | H328: =IF(E328 = CHAR(37), F328*G328/100,F328*G328) -> 0.00
A330: 25240 | B330: 4.1.16 | C330: PSG 7.3.9 | D330: TESTING AND COMMISSIONING
B331: Total Carried Forward | H331: =SUM(H299:H330) -> 0.00
B332: SCHEDULE 4 - FLOCCULATION TANKS
H333: SECTION 4: FLOCCULATION TANKS
B334: ITEM NO | C334: PAYMENT | D334: DESCRIPTION | E334: UNIT | F334: QTY | G334: RATE | H334: AMOUNT (RAND)
B335: Brought Forward | H335: =H331 -> 0.00
A336: 25241 | B336: 4.1.16.1 | D336: Testing of flocculation tank for water tightness in accordance with the specifications. | E336: Sum | F336: 1.00 | G336: 0.00 | H336: =IF(E336 = CHAR(37), F336*G336/100,F336*G336) -> 0.00
A338: 25242 | B338: 4.1.16.2 | D338: Temporary blocking off the inlet chamber and testing for water tightness in accordance with the specifications | E338: Sum | F338: 1.00 | G338: 0.00 | H338: =IF(E338 = CHAR(37), F338*G338/100,F338*G338) -> 0.00
A340: 25243 | B340: 4.1.17 | C340: SANS 1200ME, MJ, MK, MF | D340: SEGMENTED PAVED WALKWAY
A342: 25244 | B342: 4.1.17.1 | D342: Compaction to 95% Mod AASHTO of 150mm thick insitu layer under C4 (priced below) | E342: m² | F342: 45.00 | G342: 0.00 | H342: =IF(E342 = CHAR(37), F342*G342/100,F342*G342) -> 0.00
A344: 25245 | B344: 4.1.17.2 | C344: MF8.3.3-8 | D344: Supply from commercial sources, construct, stabilise with 4% cement 125mm thick gravel sub-base C4 layer compacted to 97% mod AASHTO | E344: m² | F344: 45.00 | G344: 0.00 | H344: =IF(E344 = CHAR(37), F344*G344/100,F344*G344) -> 0.00
A346: 25246 | B346: 4.1.17.3 | C346: MK8.2.2 | D346: Supply, lay to levels and bed precast concrete half-round drain 330mm wide | E346: m | F346: 15.00 | G346: 0.00 | H346: =IF(E346 = CHAR(37), F346*G346/100,F346*G346) -> 0.00
A348: 25247 | B348: 4.1.17.4 | C348: MK8.2.2 | D348: Cast in situ segments with gully grid, complete with SS gully grid and sweep tee connection to drain pipe, in 20MPa/19mm concrete. | E348: No. | F348: 4.00 | G348: 0.00 | H348: =IF(E348 = CHAR(37), F348*G348/100,F348*G348) -> 0.00
A350: 25248 | B350: 4.1.17.5 | C350: MK8.2.2 | D350: Cast in situ 200x200 concrete edge beam in 20MPa/19mm concrete | E350: m | F350: 20.00 | G350: 0.00 | H350: =IF(E350 = CHAR(37), F350*G350/100,F350*G350) -> 0.00
A352: 25249 | B352: 4.1.17.6 | C352: MK8.2.2 | D352: Supply, lay and bed including 20mm sand bedding, jointing sand, and edge trimming as required, 60mm type S-A paving in herringbone. | E352: m² | F352: 65.00 | G352: 0.00 | H352: =IF(E352 = CHAR(37), F352*G352/100,F352*G352) -> 0.00
A354: 25250 | B354: 4.1.18 | C354: SANS 1200L PSL | D354: PIPEWORK
A356: 25251 | D356: Rates to include necessary couplings, sockets, flange jointing material, cutting, welding, joining, lining, coating, and coating repair on site as necessary.
A358: 25252 | B358: 4.1.18.1 | D358: DN500 PN10 epoxy coated and lined flanged / bell ended (DN700) bend special to bypass line, with puddle. | E358: No. | F358: 1.00 | G358: 0.00 | H358: =IF(E358 = CHAR(37), F358*G358/100,F358*G358) -> 0.00
A360: 25253 | B360: 4.1.18.2 | D360: DN500 PN10 epoxy coated and lined flanged / bell ended (DN700) pipe 3400 long to bypass line, with puddle. | E360: No. | F360: 1.00 | G360: 0.00 | H360: =IF(E360 = CHAR(37), F360*G360/100,F360*G360) -> 0.00
A362: 25254 | B362: 4.1.19 | C362: SANS 1200A | D362: PROVISIONAL SUMS
B365: Total Carried Forward | H365: =SUM(H335:H364) -> 0.00
B366: SCHEDULE 4 - FLOCCULATION TANKS
H367: SECTION 4: FLOCCULATION TANKS
... 10 more rows

Sheet Schedule 5
A1: Rate=G | B1: SCHEDULE 5 - WATERWORKS EQUIPMENT
H2: SECTION 5: WATERWORKS EQUIPMENT
B3: ITEM NO | C3: PAYMENT | D3: DESCRIPTION | E3: UNIT | F3: QTY | G3: RATE | H3: AMOUNT (RAND)
A4: 25283 | B4: 5.1 | D4: SECTION 5: WATERWORKS EQUIPMENT
A6: 25284 | B6: 5.1.1 | C6: PWW | D6: WATERWORKS EQUIPMENT: PWW
A8: 25285 | D8: HEAD OF WORKS EQUIPMENT (Ref Drawing 60398/35-60398/39)
A10: 25286 | B10: 5.1.1.1 | C10: PWW 8.1 | D10: Supply and install DN500 PN10 clockwise closing wedge gate valve with rising spindle (AIWC) | E10: No. | F10: 1.00 | G10: 0.00 | H10: =IF(E10 = CHAR(37), F10*G10/100,F10*G10) -> 0.00
A12: 25287 | B12: 5.1.1.2 | C12: PWW 8.2 | D12: Supply and install DN400 PN10 electromagnetic flowmeter (AIWC) | E12: No. | F12: 1.00 | G12: 0.00 | H12: =IF(E12 = CHAR(37), F12*G12/100,F12*G12) -> 0.00
A14: 25288 | B14: 5.1.1.3 | C14: PWW8.3,8.4 | D14: Supply and install DN500 PN10 knife gate valve complete with electric actuator suitable for flow modulation | E14: No. | F14: 1.00 | G14: 0.00 | H14: =IF(E14 = CHAR(37), F14*G14/100,F14*G14) -> 0.00
A16: 25289 | B16: 5.1.1.4 | C16: PWW 9.1 | D16: Supply and install automated inclined stainless steel racked screen with bottom turnabout (Huber RakeMax or similar approved) complete with shaftless screw conveyor | E16: No. | F16: 1.00 | G16: 0.00 | H16: =IF(E16 = CHAR(37), F16*G16/100,F16*G16) -> 0.00
A18: 25290 | B18: 5.1.1.5 | C18: PWW 9.2 | D18: Supply and Install manually racked standby stainless steel screen | E18: No. | F18: 1.00 | G18: 0.00 | H18: =IF(E18 = CHAR(37), F18*G18/100,F18*G18) -> 0.00
A20: 25291 | B20: 5.1.1.6 | C20: PWW 9.3 | D20: Supply and install 500X500mm stainless steel penstock and frame (Penstock to be lockable in position) | E20: No. | F20: 1.00 | G20: 0.00 | H20: =IF(E20 = CHAR(37), F20*G20/100,F20*G20) -> 0.00
A22: 25292 | B22: 5.1.1.7 | C22: PWW 9.3 | D22: Supply and install 1.32x1.2m stainless steel penstock and frame | E22: No. | F22: 1.00 | G22: 0.00 | H22: =IF(E22 = CHAR(37), F22*G22/100,F22*G22) -> 0.00
A24: 25293 | B24: 5.1.1.8 | C24: PWW 9.3 | D24: Supply and install 1.12x0.7m stainless steel penstock and frame | E24: No. | F24: 2.00 | G24: 0.00 | H24: =IF(E24 = CHAR(37), F24*G24/100,F24*G24) -> 0.00
A26: 25294 | B26: 5.1.1.9 | C26: PWW 9.3 | D26: Supply and install 1.12x0.97m stainless steel penstock and frame | E26: No. | F26: 1.00 | G26: 0.00 | H26: =IF(E26 = CHAR(37), F26*G26/100,F26*G26) -> 0.00
A28: 25295 | B28: 5.1.1.10 | C28: PWW9.5 | D28: Supply and install ultrasonic depth indicator complete with DN300 PVC stilling well | E28: No. | F28: 1.00 | G28: 0.00 | H28: =IF(E28 = CHAR(37), F28*G28/100,F28*G28) -> 0.00
A30: 25296 | B30: 5.1.1.11 | C30: PWW 9.6 | D30: Supply, deliver and install inlet chamber weir plate (SS304L) for inlet level control and flow measurement, as detailed on the drawings. | E30: No. | F30: 1.00 | G30: 0.00 | H30: =IF(E30 = CHAR(37), F30*G30/100,F30*G30) -> 0.00
A32: 25297 | B32: 5.1.1.12 | C32: PWW 9.6 | D32: Supply, deliver and install 1200x200x2mm thick (SS304L) inlet weir plates to +/- 2mm level accuracy. | E32: No. | F32: 4.00 | G32: 0.00 | H32: =IF(E32 = CHAR(37), F32*G32/100,F32*G32) -> 0.00
A34: 25298 | B34: 5.1.1.13 | C34: PWW13.2 | D34: Supply and install streaming current detector in IP67 wall mounted enclosure complete with sample pump and pipework | E34: No. | F34: 1.00 | G34: 0.00 | H34: =IF(E34 = CHAR(37), F34*G34/100,F34*G34) -> 0.00
B37: Total Carried Forward | H37: =SUM(H4:H36) -> 0.00
B38: SCHEDULE 5 - WATERWORKS EQUIPMENT
H39: SECTION 5: WATERWORKS EQUIPMENT
B40: ITEM NO | C40: PAYMENT | D40: DESCRIPTION | E40: UNIT | F40: QTY | G40: RATE | H40: AMOUNT (RAND)
B41: Brought Forward | H41: =H37 -> 0.00
A42: 25299 | B42: 5.1.1.14 | C42: PWW 9.4 | D42: 1,04x0.26m aluminium hand stop complete with frame and lifting hook as detailed. | E42: No. | F42: 4.00 | G42: 0.00 | H42: =IF(E42 = CHAR(37), F42*G42/100,F42*G42) -> 0.00
A44: 25300 | B44: 5.1.1.15 | C44: PWW 9.6 | D44: Extra over item above for bracket(by contractor) for storage of handstops when not in use | E44: No. | F44: 4.00 | G44: 0.00 | H44: =IF(E44 = CHAR(37), F44*G44/100,F44*G44) -> 0.00
A46: 25301 | B46: 5.1.1.16 | C46: PWW 9.3 | D46: Supply and install 1.0x0.7m stainless steel penstock and frame | E46: No. | F46: 2.00 | G46: 0.00 | H46: =IF(E46 = CHAR(37), F46*G46/100,F46*G46) -> 0.00
A48: 25302 | B48: 5.1.1.17 | C48: PWW 10.1 | D48: Supply, deliver and install vertical mechanical mixers with VSDs in flocculation tank, in accordance with specification. | E48: No. | F48: 8.00 | G48: 0.00 | H48: =IF(E48 = CHAR(37), F48*G48/100,F48*G48) -> 0.00
A50: 25303 | B50: 5.1.1.18 | C50: SANS 1200HA PSHA | D50: Design, supply, and install complete (SS316) swing jib crane to 200kg rated load, maximum x/500 deflection, complete with load test and certificate. (See drawings 60398/35 and 60398/36 for concept). | E50: No. | F50: 4.00 | G50: 0.00 | H50: =IF(E50 = CHAR(37), F50*G50/100,F50*G50) -> 0.00
A52: 25304 | B52: 5.1.1.19 | D52: Supply removable / easy assembly hoist chain trolley (stainless steel) to the above jib crane, min. 200kg rated capacity | E52: No. | F52: 1.00 | G52: 0.00 | H52: =IF(E52 = CHAR(37), F52*G52/100,F52*G52) -> 0.00
A54: 25305 | B54: 5.1.1.20 | D54: Supply chain block to min. 5m lifting height, rated to min. 200kg capacity. | E54: No. | F54: 1.00 | G54: 0.00 | H54: =IF(E54 = CHAR(37), F54*G54/100,F54*G54) -> 0.00
A56: 25306 | B56: 5.1.1.21 | D56: Provisional sum for the provision of additional safety equipment and signage as directed by the Engineer. | E56: Prov Sum | F56: 1.00 | G56: 0.00 | H56: =IF(E56 = CHAR(37), F56*G56/100,F56*G56) -> 0.00
A58: 25307 | B58: 5.1.1.22 | D58: Contractor's mark-up for overheads and profit on item above | E58: % | F58: =H56 -> 0.00 | G58: 0.00 | H58: =IF(E58 = CHAR(37), F58*G58/100,F58*G58) -> 0.00
A60: 25308 | B60: 5.1.1.23 | D60: Supply heavy duty platform trolley to minimum 200kg load capacity with minimum 350mm dia. Wheels (Min. 1.0mx0.6m platform size) | E60: Sum | F60: 1.00 | G60: 0.00 | H60: =IF(E60 = CHAR(37), F60*G60/100,F60*G60) -> 0.00
A62: 25309 | B62: 5.1.2 | D62: TEMPORARY BYPASS WORKS
A64: 25367 | D64: (Ref Drawing 60398/36)
A66: 25310 | B66: 5.1.2.1 | D66: Design, supply, and install (under shutdown conditions) complete temporary channel isolation plug (epoxy coated MS) to block backflow into existing inlet channel during operation of temporary bypass line from new flocculation tanks, as shown in concept on the drawings, complete with all materials as required (sealants, epoxy bolts assemblies, etc). | E66: No. | F66: 1.00 | G66: 0.00 | H66: =IF(E66 = CHAR(37), F66*G66/100,F66*G66) -> 0.00
B67: Total Carried Forward | H67: =SUM(H41:H66) -> 0.00
B68: SCHEDULE 5 - WATERWORKS EQUIPMENT
H69: SECTION 5: WATERWORKS EQUIPMENT
B70: ITEM NO | C70: PAYMENT | D70: DESCRIPTION | E70: UNIT | F70: QTY | G70: RATE | H70: AMOUNT (RAND)
B71: Brought Forward | H71: =H67 -> 0.00
A72: 25311 | B72: 5.1.2.2 | D72: Design, supply, and install complete temporary flocculation tank outlet plates (primary leak protection) to prevent water passing through to final flow path during operation of temporary bypass line, as shown in concept on the drawings, complete with all materials as required (sealants, epoxy bolts assemblies, etc). | E72: No. | F72: 2.00 | G72: 0.00 | H72: =IF(E72 = CHAR(37), F72*G72/100,F72*G72) -> 0.00
A74: 25312 | B74: 5.1.3 | D74: CLARIFIER COMPLEX
A76: 25368 | D76: (Ref Drawing 60398/40)
A78: 25313 | B78: 5.1.3.1 | C78: PWW 11.1 | D78: Drain and clean Dortmund clarifiers | E78: No. | F78: 6.00 | G78: 0.00 | H78: =IF(E78 = CHAR(37), F78*G78/100,F78*G78) -> 0.00
A80: 25314 | B80: 5.1.3.2 | C80: PWW11.2 | D80: Removal of redundant clarifier equipment, including asbestos cement launder pipes, sludge hoppers, steel support structures etc to EWS stores or Municipal waste site as instructed, in accordance with applicable Health and Safety and Environmental legislation | E80: Sum | F80: 1.00 | G80: 0.00 | H80: =IF(E80 = CHAR(37), F80*G80/100,F80*G80) -> 0.00
A82: 25315 | B82: 5.1.3.3 | D82: Manufacture, supply, and install new sludge hopper/concentrator cone and launder support structure (Epoxy coated heavy duty galvanised structural steel grade S355) as shown on the drawings. The rate shall cover the cost of preparing shop drawings, supply of all materials, fabrication, loading, transporting to site, off loading, erection, anchoring (chemical anchors) and supports, all fasteners, washers, isolation/bearing strips and bolt assemblies, temporary bracing as necessary, etc. complete. | E82: No. | F82: 6.00 | G82: 0.00 | H82: =IF(E82 = CHAR(37), F82*G82/100,F82*G82) -> 0.00
A84: 25316 | B84: 5.1.3.4 | D84: Extra over above for additional on-site Epoxy coating complete launder support assembly once installed, including prepping and coating galv. Bolts, touch ups, etc. Measured per clarifier. To be levelled to +/-2mm across all launders and including across all clarifiers. | E84: No. | F84: 6.00 | G84: 0.00 | H84: =IF(E84 = CHAR(37), F84*G84/100,F84*G84) -> 0.00
B94: Total Carried Forward | H94: =SUM(H71:H93) -> 0.00
B95: SCHEDULE 5 - WATERWORKS EQUIPMENT
H96: SECTION 5: WATERWORKS EQUIPMENT
B97: ITEM NO | C97: PAYMENT | D97: DESCRIPTION | E97: UNIT | F97: QTY | G97: RATE | H97: AMOUNT (RAND)
B98: Brought Forward | H98: =H94 -> 0.00
A99: 25317 | B99: 5.1.3.5 | D99: Prepare shop drawings for approval, manufacture, supply, deliver, and install new launders (SS316) as detailed (each launder length to be seamless), to support structure and to walls as shown. No Ferro-magnetic metal to non Ferro-magnetic metal contact shall rely on insulation through coating only, and shall instead have proper isolating bearing/pad/etc. | E99: m | F99: 440.00 | G99: 0.00 | H99: =IF(E99 = CHAR(37), F99*G99/100,F99*G99) -> 0.00
A101: 25318 | B101: 5.1.3.6 | D101: Design, submit for approval, manufacture, and installation of Non-ferro-magnetic (300 range) Stainless Steel pulley system as detailed on the drawings, including ss wire-rope, ss pulley blocks, ss wire-rope winch, and winch support. No Ferro-magnetic metal to non-ferro-magnetic metal contact shall rely on insulation through coating only, and shall instead have proper isolating bearing/pad/etc. design. To suit up to 8m lifting range. | E101: No. | F101: 6.00 | G101: 0.00 | H101: =IF(E101 = CHAR(37), F101*G101/100,F101*G101) -> 0.00
A103: 25319 | B103: 5.1.3.7 | C103: PWW11.4 | D103: Deliver, supply and install new 2.5m diameter sludge hopper/concentrator complete as per specification including flexible pipe with couplings etc. complete. | E103: No. | F103: 6.00 | G103: 0.00 | H103: =IF(E103 = CHAR(37), F103*G103/100,F103*G103) -> 0.00
A105: 25320 | B105: 5.1.3.8 | D105: Squaring off of Launder outlet holes, including breaking back concrete and trowel applied repair grout to suit new launder profile. | E105: No. | F105: 48.00 | G105: 0.00 | H105: =IF(E105 = CHAR(37), F105*G105/100,F105*G105) -> 0.00
A107: 25321 | B107: 5.1.4 | D107: FILTER COMPLEX
A109: 25322 | B109: 5.1.4.1 | C109: PWW 12.1 | D109: Supply, deliver and install new removable clear FRP/Perspex covers to clearwells. | E109: No | F109: 6.00 | G109: 0.00 | H109: =IF(E109 = CHAR(37), F109*G109/100,F109*G109) -> 0.00
A111: 25323 | B111: 5.1.4.2 | C111: PWW12.2 | D111: Supply and install filter media depth indicator plates | E111: No. | F111: 6.00 | G111: 0.00 | H111: =IF(E111 = CHAR(37), F111*G111/100,F111*G111) -> 0.00
A113: 25324 | B113: 5.1.4.3 | C113: PWW12.3 | D113: Provide the Provisional sum of R200 000 for top-up of filter media | E113: Prov Sum | F113: 1.00 | G113: 0.00 | H113: =IF(E113 = CHAR(37), F113*G113/100,F113*G113) -> 0.00
A115: 25325 | B115: 5.1.4.4 | D115: Contractor's mark-up for overheads and profit on item above | E115: % | F115: =H113 -> 0.00 | G115: 0.00 | H115: =IF(E115 = CHAR(37), F115*G115/100,F115*G115) -> 0.00
A117: 25326 | B117: 5.1.4.5 | C117: PWW | D117: Provide the Provisional Sum of R120 000 for the rehabilitation of inlet clack valves | E117: Prov Sum | F117: 1.00 | G117: 0.00 | H117: =IF(E117 = CHAR(37), F117*G117/100,F117*G117) -> 0.00
A119: 25327 | B119: 5.1.4.6 | D119: Contractors mark-up for overheads and profits on item above | E119: % | F119: =H117 -> 0.00 | G119: 0.00 | H119: =IF(E119 = CHAR(37), F119*G119/100,F119*G119) -> 0.00
B121: Total Carried Forward | H121: =SUM(H98:H120) -> 0.00
B122: SCHEDULE 5 - WATERWORKS EQUIPMENT
H123: SECTION 5: WATERWORKS EQUIPMENT
B124: ITEM NO | C124: PAYMENT | D124: DESCRIPTION | E124: UNIT | F124: QTY | G124: RATE | H124: AMOUNT (RAND)
B125: Brought Forward | H125: =H121 -> 0.00
A126: 25328 | B126: 5.1.5 | D126: POLYMER SYSTEM - FILLING, STORAGE, DOSING, MONITORING AND CONTROL
A128: 25369 | D128: (Ref Drawing 60398/41)
A130: 25329 | B130: 5.1.5.1 | C130: PWW13.1 | D130: Design, supply and install polymer storage and dosing facility complete as specified. The rate to also include for coring of concrete walls to accommodate pipework as per the Contractor's design and excavation and bedding for buried pipe between the dosing pumps and sparge pipe at the new inlet. | E130: Sum | F130: 1.00 | G130: 0.00 | H130: =IF(E130 = CHAR(37), F130*G130/100,F130*G130) -> 0.00
A132: 25330 | B132: 5.1.5.2 | D132: Provide the Provisional sum of R35 000 for an allowance for refurbishment and or replacement of existing polymer dosing equipment and pipework's. | E132: Prov Sum | F132: 1.00 | G132: 0.00 | H132: =IF(E132 = CHAR(37), F132*G132/100,F132*G132) -> 0.00
A134: 25331 | B134: 5.1.5.3 | D134: Contractor's mark-up for overheads and profit on item above | E134: % | F134: =H132 -> 0.00 | G134: 0.00 | H134: =IF(E134 = CHAR(37), F134*G134/100,F134*G134) -> 0.00
A136: 25332 | B136: 5.1.5.4 | C136: PWW 13.2 | D136: Refurbish and deliver to stores existing Streaming Current Detector (SCD) complete | E136: No | F136: 1.00 | G136: 0.00 | H136: =IF(E136 = CHAR(37), F136*G136/100,F136*G136) -> 0.00
A138: 25333 | B138: 5.1.5.5 | C138: PWW13.2 | D138: Supply and deliver to EWS stores new SCD sample pump as per that specified in PWW 13.2. | E138: No | F138: 1.00 | G138: 0.00 | H138: =IF(E138 = CHAR(37), F138*G138/100,F138*G138) -> 0.00
A140: 25334 | B140: 5.1.5.6 | D140: Provide the Provisional sum of R15 000 for the supply and deliver safety signage | E140: Prov Sum | F140: 1.00 | G140: 0.00 | H140: =IF(E140 = CHAR(37), F140*G140/100,F140*G140) -> 0.00
A142: 25335 | B142: 5.1.5.7 | D142: Contractor's mark-up for overheads and profit on item above | E142: % | F142: =H140 -> 0.00 | G142: 0.00 | H142: =IF(E142 = CHAR(37), F142*G142/100,F142*G142) -> 0.00
A144: 25336 | B144: 5.1.5.8 | C144: PWW13.1 | D144: Testing and commissioning of the existing and new polymer dosing system. | E144: Sum | F144: 1.00 | G144: 0.00 | H144: =IF(E144 = CHAR(37), F144*G144/100,F144*G144) -> 0.00
A146: 25370 | B146: 5.1.5.9 | D146: Supply and install backflow prevention valve on the polymer dosing motive water supply line. | E146: No | F146: 1.00 | G146: 0.00 | H146: =IF(E146 = CHAR(37), F146*G146/100,F146*G146) -> 0.00
A148: 25337 | B148: 5.1.6 | D148: DISINFECTION - CHLORINE SYSTEM
A150: 25338 | B150: 5.1.6.1 | C150: PWW 13.3a | D150: Supply, deliver and install new standby chlorinator and associated works complete as specified to the "Vacuum Room". | E150: Sum | F150: 1.00 | G150: 0.00 | H150: =IF(E150 = CHAR(37), F150*G150/100,F150*G150) -> 0.00
B154: Total Carried Forward | H154: =SUM(H125:H153) -> 0.00
B155: SCHEDULE 5 - WATERWORKS EQUIPMENT
H156: SECTION 5: WATERWORKS EQUIPMENT
B157: ITEM NO | C157: PAYMENT | D157: DESCRIPTION | E157: UNIT | F157: QTY | G157: RATE | H157: AMOUNT (RAND)
B158: Brought Forward | H158: =H154 -> 0.00
A159: 25339 | B159: 5.1.6.2 | C159: PWW 13.3b | D159: Supply, deliver and install new DN50 Class 12 chlorine dosing pipework from the existing chlorine room to the new head of works, including all excavation, bedding, backfill, pipework, bends, valves, couplings, connections, pipe supports and DN50 Class 12 PVC perforated sparge pipe and tie into motive water system complete as specified. | E159: Sum | F159: 1.00 | G159: 0.00 | H159: =IF(E159 = CHAR(37), F159*G159/100,F159*G159) -> 0.00
A161: 25340 | B161: 5.1.6.3 | D161: Provision sum for the provision of additional safety equipment and signage to improve the safety of the installation as directed by the Engineer. | E161: Prov Sum | F161: 1.00 | G161: 0.00 | H161: =IF(E161 = CHAR(37), F161*G161/100,F161*G161) -> 0.00
A163: 25341 | B163: 5.1.6.4 | D163: Contractor's mark-up for overheads and profit on item above | E163: % | F163: =H161 -> 0.00 | G163: 0.00 | H163: =IF(E163 = CHAR(37), F163*G163/100,F163*G163) -> 0.00
A165: 25342 | B165: 5.1.6.5 | C165: PWW 13.3 | D165: Allowance for the assessment, testing, report, recommendation, rehabilitation/servicing of the existing chlorine dosing system. Including for the testing, servicing, and calibration of the existing load cells for the 1t chlorine tanks. | E165: Prov Sum | F165: 1.00 | G165: 0.00 | H165: =IF(E165 = CHAR(37), F165*G165/100,F165*G165) -> 0.00
A167: 25343 | B167: 5.1.6.6 | D167: Contractor's mark-up for overheads and profit on item above | E167: % | F167: =H165 -> 0.00 | G167: 0.00 | H167: =IF(E167 = CHAR(37), F167*G167/100,F167*G167) -> 0.00
A169: 25344 | B169: 5.1.6.7 | D169: Facilitation of HAZOP study and preparation of report as specified. | E169: Sum | F169: 1.00 | G169: 0.00 | H169: =IF(E169 = CHAR(37), F169*G169/100,F169*G169) -> 0.00
A171: 25345 | B171: 5.1.6.8 | D171: Facilitation of MHI study and preparation of report as specified. | E171: Sum | F171: 1.00 | G171: 0.00 | H171: =IF(E171 = CHAR(37), F171*G171/100,F171*G171) -> 0.00
A173: 25346 | B173: 5.1.6.9 | D173: Civil works for bollard protection and chain at chlorine house to protect from skip loading/unloading etc. | E173: Prov Sum | F173: 1.00 | G173: 0.00 | H173: =IF(E173 = CHAR(37), F173*G173/100,F173*G173) -> 0.00
A175: 25371 | B175: 5.1.6.10 | D175: Supply and install backflow prevention valve on the chlorine dosing motive water supply line. | E175: No | F175: 1.00 | G175: 0.00 | H175: =IF(E175 = CHAR(37), F175*G175/100,F175*G175) -> 0.00
A177: 25347 | B177: 5.1.7 | D177: MEASUREMENT OF KEY DETERMINANDS
A179: 25348 | D179: Supply and install online analysers complete with sample pump, sample pipework, rotameter etc. complete as specified to:
A181: 25349 | B181: 5.1.7.1 | C181: PWW14.1 | D181: Turbidity: Raw Water | E181: No | F181: 1.00 | G181: 0.00 | H181: =IF(E181 = CHAR(37), F181*G181/100,F181*G181) -> 0.00
A183: 25350 | B183: 5.1.7.2 | C183: PWW14.2 | D183: pH: Raw Water | E183: No | F183: 1.00 | G183: 0.00 | H183: =IF(E183 = CHAR(37), F183*G183/100,F183*G183) -> 0.00
A185: 25351 | B185: 5.1.7.3 | C185: PWW14.3 | D185: Conductivity: Raw Water | E185: No | F185: 1.00 | G185: 0.00 | H185: =IF(E185 = CHAR(37), F185*G185/100,F185*G185) -> 0.00
B186: Total Carried Forward | H186: =SUM(H158:H185) -> 0.00
B187: SCHEDULE 5 - WATERWORKS EQUIPMENT
H188: SECTION 5: WATERWORKS EQUIPMENT
B189: ITEM NO | C189: PAYMENT | D189: DESCRIPTION | E189: UNIT | F189: QTY | G189: RATE | H189: AMOUNT (RAND)
B190: Brought Forward | H190: =H186 -> 0.00
A191: 25352 | B191: 5.1.7.4 | C191: PWW14.4 | D191: Free Chlorine: Clarified Water | E191: No | F191: 1.00 | G191: 0.00 | H191: =IF(E191 = CHAR(37), F191*G191/100,F191*G191) -> 0.00
A193: 25353 | B193: 5.1.7.5 | C193: PWW14.5 | D193: Turbidity: Clarified Water | E193: No | F193: 1.00 | G193: 0.00 | H193: =IF(E193 = CHAR(37), F193*G193/100,F193*G193) -> 0.00
A195: 25354 | B195: 5.1.7.6 | C195: PWW14.6 | D195: Turbidity: Filtered Water | E195: No | F195: 6.00 | G195: 0.00 | H195: =IF(E195 = CHAR(37), F195*G195/100,F195*G195) -> 0.00
A197: 25355 | B197: 5.1.7.7 | C197: PWW14.7 | D197: Turbidity: Potable Water | E197: No | F197: 1.00 | G197: 0.00 | H197: =IF(E197 = CHAR(37), F197*G197/100,F197*G197) -> 0.00
A199: 25356 | B199: 5.1.7.8 | C199: PWW14.8 | D199: pH: Potable Water | E199: No | F199: 1.00 | G199: 0.00 | H199: =IF(E199 = CHAR(37), F199*G199/100,F199*G199) -> 0.00
A201: 25357 | B201: 5.1.7.9 | C201: PWW14.10 | D201: Free Chlorine: Potable Water | E201: No | F201: 1.00 | G201: 0.00 | H201: =IF(E201 = CHAR(37), F201*G201/100,F201*G201) -> 0.00
A203: 25358 | B203: 5.1.8 | D203: REVIEW FOR COMPLIANCE
A205: 25359 | B205: 5.1.8.1 | D205: Preparation of shop drawings and "goodness of fit" of mechanical pipework and fittings | E205: Sum | F205: 1.00 | G205: 0.00 | H205: =IF(E205 = CHAR(37), F205*G205/100,F205*G205) -> 0.00
A207: 25360 | B207: 5.1.8.2 | D207: Provision of laboratory equipment | E207: Prov Sum | F207: 1.00 | G207: 0.00 | H207: =IF(E207 = CHAR(37), F207*G207/100,F207*G207) -> 0.00
A209: 25361 | B209: 5.1.8.3 | D209: Contractor's mark-up for overheads and profit on item above | E209: % | F209: =H207 -> 0.00 | G209: 0.00 | H209: =IF(E209 = CHAR(37), F209*G209/100,F209*G209) -> 0.00
A211: 25362 | B211: 5.1.9 | D211: ASSET MANAGEMENT AND PROVISION OF LIST OF SPARES
A213: 25363 | B213: 5.1.9.1 | D213: Provision for critical spares | E213: Prov Sum | F213: 1.00 | G213: 0.00 | H213: =IF(E213 = CHAR(37), F213*G213/100,F213*G213) -> 0.00
A215: 25364 | B215: 5.1.9.2 | D215: Contractor's mark-up for overheads and profit on item above | E215: % | F215: =H213 -> 0.00 | G215: 0.00 | H215: =IF(E215 = CHAR(37), F215*G215/100,F215*G215) -> 0.00
A217: 25365 | B217: 5.1.9.3 | D217: Provision for the supply and delivery of chemicals required for the dosing systems at the water treatment works for continuous operation over the 6 months trial period. | E217: Prov Sum | F217: 1.00 | G217: 0.00 | H217: =IF(E217 = CHAR(37), F217*G217/100,F217*G217) -> 0.00
A219: 25366 | B219: 5.1.9.4 | D219: Contractor's mark-up for overheads and profit on item above | E219: % | F219: =H217 -> 0.00 | G219: 0.00 | H219: =IF(E219 = CHAR(37), F219*G219/100,F219*G219) -> 0.00
B237: Total Carried Forward To Summary | H237: =SUM(H190:H236) -> 0.00
B238: SCHEDULE 5 - WATERWORKS EQUIPMENT
D239: SUMMARY OF SECTIONS
C240: SECTION | D240: DESCRIPTION | H240: AMOUNT (RAND)
C241: 5.1 | D241: SECTION 5: WATERWORKS EQUIPMENT | H241: =H237 -> 0.00
C299: Total Carried Forward To Summary Of Schedules | D299: Total Carried Forward To Summary Of Schedules | H299: =SUM(H241:H298) -> 0.00

Sheet Schedule 6
A1: Rate=G | B1: SCHEDULE 6 - ADMINISTRATION BUILDING EXTENSION
H2: SECTION 6.1: ALTERATIONS
B3: ITEM NO | C3: PAYMENT | D3: DESCRIPTION | E3: UNIT | F3: QTY | G3: RATE | H3: AMOUNT (RAND)
A4: 20905 | B4: 6.1 | D4: ALTERATIONS
A6: 20906 | D6: NOTES:
A8: 20907 | D8: Items described as to be re-used or to be handed over to the Client are to be carefully dismantled where necessary and stacked on site where directed, and the Contractor will be responsible for their removal and storage until required, and shall make good all items missing, damaged or broken at his own expense. All works references Dwgs 60398/11
A10: 21189 | D10: Alterations to the fabric of existing structures will be executed in stages concurrently with the construction of the new work to ensure that the waterproofing integrity of the structures is maintained.
A12: 20908 | D12: Unless otherwise described, no materials from the alterations shall be re-used in any new work without the written approval of the client, with the exception of facing bricks required in filling to openings, etc., which may be re-used if free of cracks and chips and properly cleaned of all mortar
A14: 20909 | D14: The Contractor is to take all dimensions affecting the existing buildings on the site as he will be solely responsible for all new work being to the correct sizes. The Engineer's Representative is to be notified immediately of any discrepancies between the drawings and the existing work and all work affected by these discrepancies is to be suspended until such time as the Engineer's Representative shall authorise its continuance
A16: 20913 | D16: Prices are to include for carting away from site all materials not specifically mentioned as being stored on site for re-use or handed over to the client and all rubbish, debris, etc., arising from the alterations, etc., and for making good all work damaged or disturbed to the approval of the client
B18: Total Carried Forward | H18: =SUM(H4:H17) -> 0.00
B19: SCHEDULE 6 - ADMINISTRATION BUILDING EXTENSION
H20: SECTION 6.1: ALTERATIONS
B21: ITEM NO | C21: PAYMENT | D21: DESCRIPTION | E21: UNIT | F21: QTY | G21: RATE | H21: AMOUNT (RAND)
B22: Brought Forward | H22: =H18 -> 0.00
A23: 20914 | D23: Tenderers are to include in pricing for the statutory requirements with regard to the demolition and disposal of asbestos cement material arising from the works
A25: 20915 | B25: 6.1.1 | D25: GENERAL
A27: 20916 | B27: 6.1.1.1 | D27: Allow for protecting all existing work liable to suffer damage (i.e. walls, finishes, floors, windows, etc.) from damage during the building operations, alterations, etc., and make good all work damaged with new material to match existing to the approval of the client | E27: Sum | F27: 1.0 | G27: 0.00 | H27: =IF(E27 = CHAR(37), F27*G27/100,F27*G27) -> 0.00
A29: 20917 | B29: 6.1.1.2 | D29: Dust screens of minimum height 3000mm (equal height throughout), between concrete floor and ceiling, roof slab, or floor slab above, of suitable timber framing with 375 micron polyethylene sheeting fixed on one side, including corners, ends, and any other intermediate posts and bracing as may be required for support, stability, etc | E29: m | F29: 10.0 | G29: 0.00 | H29: =IF(E29 = CHAR(37), F29*G29/100,F29*G29) -> 0.00
A31: 20918 | B31: 6.1.2 | D31: REMOVAL OF EXISTING WORK
A33: 20919 | D33: Breaking down and removing brickwork etc
A35: 20920 | B35: 6.1.2.1 | D35: Single skin wall | E35: m² | F35: 15.0 | G35: 0.00 | H35: =IF(E35 = CHAR(37), F35*G35/100,F35*G35) -> 0.00
A37: 20921 | D37: Taking out and removing doors, windows, etc., from brickwork to remain (building up or altering opening elsewhere measured)
A39: 21081 | B39: 6.1.2.2 | D39: Hardwood single door and frame not exceeding 2,5m² | E39: No. | F39: 6.0 | G39: 0.00 | H39: =IF(E39 = CHAR(37), F39*G39/100,F39*G39) -> 0.00
A41: 20922 | B41: 6.1.2.3 | D41: Glazed steel window not exceeding 2,5m² | E41: No. | F41: 6.0 | G41: 0.00 | H41: =IF(E41 = CHAR(37), F41*G41/100,F41*G41) -> 0.00
A43: 20923 | D43: Taking out doors, windows, etc including thresholds, sills, etc from brickwork to be demolished and stored for reuse as directed by the Engineer.
A45: 20924 | B45: 6.1.2.4 | D45: Soap dispenser from brick walls | E45: No. | F45: 2.0 | G45: 0.00 | H45: =IF(E45 = CHAR(37), F45*G45/100,F45*G45) -> 0.00
A47: 20925 | B47: 6.1.2.5 | D47: Taking out and removing sundry joinery work, fittings, etc. | E47: No. | F47: 10.0 | G47: 0.00 | H47: =IF(E47 = CHAR(37), F47*G47/100,F47*G47) -> 0.00
B49: Total Carried Forward | H49: =SUM(H22:H48) -> 0.00
B50: SCHEDULE 6 - ADMINISTRATION BUILDING EXTENSION
H51: SECTION 6.1: ALTERATIONS
B52: ITEM NO | C52: PAYMENT | D52: DESCRIPTION | E52: UNIT | F52: QTY | G52: RATE | H52: AMOUNT (RAND)
B53: Brought Forward | H53: =H49 -> 0.00
A54: 21082 | B54: 6.1.2.6 | D54: Change room bench from wall | E54: No. | F54: 2.0 | G54: 0.00 | H54: =IF(E54 = CHAR(37), F54*G54/100,F54*G54) -> 0.00
A56: 20926 | B56: 6.1.2.7 | D56: Existing lab chipboard cupboards and doors | E56: m | F56: 6.0 | G56: 0.00 | H56: =IF(E56 = CHAR(37), F56*G56/100,F56*G56) -> 0.00
A58: 20927 | D58: Hacking up/off and removing ceramic tile floor finishes including removing mortar bed or backing and preparing concrete or brick surfaces for new screed, plaster or tile finishes (elsewhere measured)
A60: 20928 | B60: 6.1.2.8 | D60: Ceramic tiles on floors | E60: m² | F60: 50.0 | G60: 0.00 | H60: =IF(E60 = CHAR(37), F60*G60/100,F60*G60) -> 0.00
A62: 20929 | D62: Hacking up/off and removing white glazed tile wall finishes including removing mortar bed or backing and preparing concrete or brick surfaces for new screed, plaster or tile finishes (elsewhere measured)
A64: 20930 | B64: 6.1.2.9 | D64: White glazed ceramic tiles to walls | E64: m² | F64: 20.0 | G64: 0.00 | H64: =IF(E64 = CHAR(37), F64*G64/100,F64*G64) -> 0.00
A66: 20931 | D66: Taking out and removing piping, sanitary fittings, etc. including disconnecting piping and stopping off fittings and making good floor and wall finishes (new tiling and paintwork elsewhere measured)
A68: 20932 | B68: 6.1.2.10 | D68: Water supply pipework including fittings not exceeding 75mm diameter, inclusive of ancillary works | E68: m | F68: 75.0 | G68: 0.00 | H68: =IF(E68 = CHAR(37), F68*G68/100,F68*G68) -> 0.00
A70: 20933 | B70: 6.1.2.11 | D70: Stainless steel double bowl sink and drainer including fittings, etc, inclusive of ancillary works | E70: No. | F70: 1.0 | G70: 0.00 | H70: =IF(E70 = CHAR(37), F70*G70/100,F70*G70) -> 0.00
A72: 20934 | B72: 6.1.2.12 | D72: Ceramic wash hand basin, including short lengths of piping, fittings, etc, inclusive of ancillary works | E72: No. | F72: 2.0 | G72: 0.00 | H72: =IF(E72 = CHAR(37), F72*G72/100,F72*G72) -> 0.00
A74: 21223 | B74: 6.1.2.13 | D74: Urinal, inclusive of ancillary works | E74: No. | F74: 2.0 | G74: 0.00 | H74: =IF(E74 = CHAR(37), F74*G74/100,F74*G74) -> 0.00
A76: 21224 | B76: 6.1.2.14 | D76: Shower, inclusive of ancillary works | E76: No. | F76: 1.0 | G76: 0.00 | H76: =IF(E76 = CHAR(37), F76*G76/100,F76*G76) -> 0.00
A78: 20935 | D78: Taking out and removing glass and mirrors
A80: 20936 | B80: 6.1.2.15 | D80: Mirror 1300 x 1500mm high from wall | E80: No. | F80: 1.0 | G80: 0.00 | H80: =IF(E80 = CHAR(37), F80*G80/100,F80*G80) -> 0.00
A82: 23798 | D82: Breaking down, cutting, and removal of brickwork
A84: 23799 | B84: 6.1.2.16 | D84: Windows & Doors | E84: m² | F84: 10.00 | G84: 0.00 | H84: =IF(E84 = CHAR(37), F84*G84/100,F84*G84) -> 0.00
A86: 20937 | B86: 6.1.3 | C86: PABR | D86: BUILDING UP OPENINGS
B88: Total Carried Forward | H88: =SUM(H53:H87) -> 0.00
B89: SCHEDULE 6 - ADMINISTRATION BUILDING EXTENSION
H90: SECTION 6.1: ALTERATIONS
B91: ITEM NO | C91: PAYMENT | D91: DESCRIPTION | E91: UNIT | F91: QTY | G91: RATE | H91: AMOUNT (RAND)
B92: Brought Forward | H92: =H88 -> 0.00
A93: 20938 | D93: External facebrick in Roan Satin FBX and internal common brick NFP for plaster and paint finish, brickwork in class II mortar in building up openings, including bonding new to existing and making good cement plaster (making good paintwork elsewhere)
A95: 20939 | B95: 6.1.3.1 | D95: External facebrick | E95: m² | F95: 20.0 | G95: 0.00 | H95: =IF(E95 = CHAR(37), F95*G95/100,F95*G95) -> 0.00
A97: 20940 | B97: 6.1.3.2 | D97: Internal common brick | E97: m² | F97: 20.0 | G97: 0.00 | H97: =IF(E97 = CHAR(37), F97*G97/100,F97*G97) -> 0.00
A99: 20941 | D99: Internal common brick NFP in class II mortar in building up openings, including bonding new to existing and making good cement plaster on both sides (making good paintwork elsewhere)
A101: 20942 | B101: 6.1.3.3 | D101: Single skin walls | E101: m² | F101: 10.0 | G101: 0.00 | H101: =IF(E101 = CHAR(37), F101*G101/100,F101*G101) -> 0.00
A103: 20943 | B103: 6.1.3.4 | D103: Double skin walls | E103: m² | F103: 10.0 | G103: 0.00 | H103: =IF(E103 = CHAR(37), F103*G103/100,F103*G103) -> 0.00
A105: 20944 | D105: Sundries
A107: 20945 | B107: 6.1.3.5 | D107: Cutting, toothing and bonding new brick walls to existing brick walls | E107: m² | F107: 40.0 | G107: 0.00 | H107: =IF(E107 = CHAR(37), F107*G107/100,F107*G107) -> 0.00
A109: 20946 | B109: 6.1.4 | C109: PABR | D109: PREPARATORY WORK TO EXISTING SURFACES
A111: 20947 | D111: Preparatory work to existing surfaces
A113: 20948 | B113: 6.1.4.1 | D113: Making good to walls where white glazed tiles removed to receive new finish (Elsewhere measured) | E113: m² | F113: 20.0 | G113: 0.00 | H113: =IF(E113 = CHAR(37), F113*G113/100,F113*G113) -> 0.00
A115: 20949 | B115: 6.1.4.2 | D115: Making good to floors where ceramic tiles removed to receive new floor finish (Elsewhere measured) | E115: m² | F115: 50.0 | G115: 0.00 | H115: =IF(E115 = CHAR(37), F115*G115/100,F115*G115) -> 0.00
A117: 20950 | B117: 6.1.4.3 | D117: Remove paint and plaster surface from existing walls | E117: m² | F117: 120.0 | G117: 0.00 | H117: =IF(E117 = CHAR(37), F117*G117/100,F117*G117) -> 0.00
A119: 20951 | B119: 6.1.5 | D119: OPENINGS THROUGH EXISTING WALLS ETC
B130: Total Carried Forward | H130: =SUM(H92:H129) -> 0.00
B131: SCHEDULE 6 - ADMINISTRATION BUILDING EXTENSION
H132: SECTION 6.1: ALTERATIONS
B133: ITEM NO | C133: PAYMENT | D133: DESCRIPTION | E133: UNIT | F133: QTY | G133: RATE | H133: AMOUNT (RAND)
B134: Brought Forward | H134: =H130 -> 0.00
A135: 20952 | D135: Breaking out for and forming openings through brick walls for new doors and frames, including pre-stressed concrete lintels, making good cement plaster on both sides and into reveals and with 20 MPa concrete thresholds with steel trowelled finish (new doors and frames and making good paintwork elsewhere)
A137: 20953 | B137: 6.1.5.1 | D137: Opening for door with timber frame 915 x 2134mm high overall through half brick wall | E137: No. | F137: 1.0 | G137: 0.00 | H137: =IF(E137 = CHAR(37), F137*G137/100,F137*G137) -> 0.00
A139: 23793 | B139: 6.1.6 | C139: PABR | D139: BRICKWORK SUNDRIES
A141: 23794 | D141: Brick on edge lintels (into existing structure)
A143: 23795 | B143: 6.1.6.1 | D143: 110 x 150mm lintels in lengths not exceeding 3m | E143: m | F143: 12.00 | G143: 0.00 | H143: =IF(E143 = CHAR(37), F143*G143/100,F143*G143) -> 0.00
A145: 23796 | D145: Brick on edge sills (into existing structure)
A147: 23797 | B147: 6.1.6.2 | D147: 110 x 150mm sills in lengths not exceeding 3m | E147: m | F147: 10.00 | G147: 0.00 | H147: =IF(E147 = CHAR(37), F147*G147/100,F147*G147) -> 0.00
B178: Total Carried Forward To Summary | H178: =SUM(H134:H177) -> 0.00
B179: SCHEDULE 6 - ADMINISTRATION BUILDING EXTENSION
H180: SECTION 6.2: CONCRETE, FORMWORK AND REINFORCING
B181: ITEM NO | C181: PAYMENT | D181: DESCRIPTION | E181: UNIT | F181: QTY | G181: RATE | H181: AMOUNT (RAND)
A182: 20954 | B182: 6.2 | C182: SANS 1200 G, PSG | D182: CONCRETE, FORMWORK, AND REINFORCING
A184: 21109 | D184: SUPPLEMENTARY PREAMBLES:
A186: 20961 | D186: Cost of tests
A188: 20962 | D188: The costs of making, storing and testing of concrete test cubes as required under clause 7 "Tests" of SANS 1200 G shall include the cost of providing cube moulds necessary for the purpose, for testing costs and for submitting reports on the tests to the Engineer. The testing shall be undertaken by an independent firm or institution nominated by the contractor to the approval of the Engineer. (Test cubes are measured separately)
A190: 20963 | D190: Formwork
A192: 20964 | D192: Descriptions of formwork shall be deemed to include use and waste only (except where described as "left in" or "permanent"), for fitting together in the required forms, wedging, plumbing and fixing to true angles and surfaces as necessary to ensure easy release during stripping and for reconditioning as necessary before re-use
A194: 20965 | D194: The vertical strutting shall be carried down to such construction as is sufficiently strong to afford the required support without damage and shall remain in position until the newly constructed work is able to support itself
A196: 20966 | D196: Formwork to soffits of solid slabs etc shall be deemed to be to slabs not exceeding 250mm thick unless otherwise described
A198: 20967 | D198: Formwork to soffits of slabs, beams, etc shall be deemed to be propped up exceeding 1,5m and not exceeding 3,5m high unless otherwise described
B204: Total Carried Forward | H204: =SUM(H182:H203) -> 0.00
B205: SCHEDULE 6 - ADMINISTRATION BUILDING EXTENSION
H206: SECTION 6.2: CONCRETE, FORMWORK AND REINFORCING
B207: ITEM NO | C207: PAYMENT | D207: DESCRIPTION | E207: UNIT | F207: QTY | G207: RATE | H207: AMOUNT (RAND)
B208: Brought Forward | H208: =H204 -> 0.00
A209: 20968 | D209: Formwork to sides of bases, ground beams, etc will only be measured where it is prescribed by the engineer for design reasons. Formwork necessitated by irregularity or collapse of excavated faces will not be measured and the cost thereof shall be deemed to be included in the allowance for taking the risk of collapse of the sides of the excavations, provision for which is made in "Earthworks"
A211: 20970 | B211: 6.2.1 | C211: 8.4.3 | D211: REINFORCED CONCRETE
A213: 21155 | B213: 6.2.1.1 | C213: PSG 5.5.3.2 | D213: Concrete mix design | E213: Sum | F213: 1.0 | G213: 0.00 | H213: =IF(E213 = CHAR(37), F213*G213/100,F213*G213) -> 0.00
A215: 20971 | C215: 8.4.3 PSG5.5 | D215: Slabs in 25MPa/19mm stone
A217: 20972 | B217: 6.2.1.2 | D217: 200mm thick roof slab | E217: m³ | F217: 34.0 | G217: 0.00 | H217: =IF(E217 = CHAR(37), F217*G217/100,F217*G217) -> 0.00
A219: 20973 | B219: 6.2.1.3 | D219: 260mm thick floor slab | E219: m³ | F219: 29.0 | G219: 0.00 | H219: =IF(E219 = CHAR(37), F219*G219/100,F219*G219) -> 0.00
A221: 21083 | B221: 6.2.1.4 | D221: 200mm thick new walkway | E221: m³ | F221: 10.0 | G221: 0.00 | H221: =IF(E221 = CHAR(37), F221*G221/100,F221*G221) -> 0.00
A223: 21104 | B223: 6.2.1.5 | D223: 600mm thick wall beam | E223: m³ | F223: 4.0 | G223: 0.00 | H223: =IF(E223 = CHAR(37), F223*G223/100,F223*G223) -> 0.00
A225: 20910 | B225: 6.2.1.6 | D225: 400mm thick floor beam | E225: m³ | F225: 5.0 | G225: 0.00 | H225: =IF(E225 = CHAR(37), F225*G225/100,F225*G225) -> 0.00
A227: 22462 | B227: 6.2.1.7 | D227: Columns | E227: m³ | F227: 2.00 | G227: 0.00 | H227: =IF(E227 = CHAR(37), F227*G227/100,F227*G227) -> 0.00
A229: 20975 | B229: 6.2.2 | C229: 8.2, PSG 8.2.2 | D229: SMOOTH FORMWORK
A231: 20976 | D231: Smooth finishes from formwork on:
A233: 21084 | C233: 8.2.2, PSG 8.2.2 | D233: Vertical plane to:
A235: 20977 | B235: 6.2.2.1 | D235: Roof beam, external (long side) | E235: m² | F235: 21.0 | G235: 0.00 | H235: =IF(E235 = CHAR(37), F235*G235/100,F235*G235) -> 0.00
A237: 20978 | B237: 6.2.2.2 | D237: Roof beam, internal (long side) | E237: m² | F237: 21.0 | G237: 0.00 | H237: =IF(E237 = CHAR(37), F237*G237/100,F237*G237) -> 0.00
A239: 20979 | B239: 6.2.2.3 | D239: Roof beam, external (short side) | E239: m² | F239: 9.0 | G239: 0.00 | H239: =IF(E239 = CHAR(37), F239*G239/100,F239*G239) -> 0.00
A241: 20980 | B241: 6.2.2.4 | D241: Roof beams, internal (short side) | E241: m² | F241: 8.0 | G241: 0.00 | H241: =IF(E241 = CHAR(37), F241*G241/100,F241*G241) -> 0.00
A243: 20981 | B243: 6.2.2.5 | D243: 400mm, beam (external) | E243: m² | F243: 17.0 | G243: 0.00 | H243: =IF(E243 = CHAR(37), F243*G243/100,F243*G243) -> 0.00
A245: 20911 | B245: 6.2.2.6 | D245: 400mm, beam (internal) | E245: m² | F245: 16.0 | G245: 0.00 | H245: =IF(E245 = CHAR(37), F245*G245/100,F245*G245) -> 0.00
A247: 20912 | B247: 6.2.2.7 | D247: Columns (290mm x 290mm x 1000mm) | E247: No. | F247: 12.0 | G247: 0.00 | H247: =IF(E247 = CHAR(37), F247*G247/100,F247*G247) -> 0.00
A249: 20982 | C249: 8.2.2, PSG 8.2.2 | D249: Horizontal plane to
B251: Total Carried Forward | H251: =SUM(H208:H250) -> 0.00
B252: SCHEDULE 6 - ADMINISTRATION BUILDING EXTENSION
H253: SECTION 6.2: CONCRETE, FORMWORK AND REINFORCING
B254: ITEM NO | C254: PAYMENT | D254: DESCRIPTION | E254: UNIT | F254: QTY | G254: RATE | H254: AMOUNT (RAND)
B255: Brought Forward | H255: =H251 -> 0.00
A256: 20983 | B256: 6.2.2.8 | D256: Roof slab soffit | E256: m² | F256: 166.0 | G256: 0.00 | H256: =IF(E256 = CHAR(37), F256*G256/100,F256*G256) -> 0.00
A258: 20984 | B258: 6.2.2.9 | D258: Floor slab soffit | E258: m² | F258: 114.0 | G258: 0.00 | H258: =IF(E258 = CHAR(37), F258*G258/100,F258*G258) -> 0.00
A260: 20985 | B260: 6.2.2.10 | D260: New walkway | E260: m² | F260: 50.0 | G260: 0.00 | H260: =IF(E260 = CHAR(37), F260*G260/100,F260*G260) -> 0.00
A262: 20987 | D262: Narrow widths up to 300mm for smooth finish from formwork on
A264: 20988 | C264: 8.2.5 | D264: Vertical plane to
A266: 20989 | B266: 6.2.2.11 | D266: Up to 200mm for concrete roof slab (including drip mould) | E266: m | F266: 59.0 | G266: 0.00 | H266: =IF(E266 = CHAR(37), F266*G266/100,F266*G266) -> 0.00
A268: 21085 | B268: 6.2.2.12 | D268: Up to 260mm for floor slab | E268: m | F268: 59.0 | G268: 0.00 | H268: =IF(E268 = CHAR(37), F268*G268/100,F268*G268) -> 0.00
A270: 21086 | B270: 6.2.2.13 | D270: Up to 200mm for walkway | E270: m | F270: 59.0 | G270: 0.00 | H270: =IF(E270 = CHAR(37), F270*G270/100,F270*G270) -> 0.00
A272: 22463 | B272: 6.2.2.14 | D272: Up to 100mm step up in floor slab | E272: m | F272: 49.00 | G272: 0.00 | H272: =IF(E272 = CHAR(37), F272*G272/100,F272*G272) -> 0.00
A274: 21087 | C274: 8.2.5 | D274: Horizontal plane to
A276: 21088 | B276: 6.2.2.15 | D276: 290mm wide, beam | E276: m | F276: 45.0 | G276: 0.00 | H276: =IF(E276 = CHAR(37), F276*G276/100,F276*G276) -> 0.00
A278: 21090 | B278: 6.2.3 | C278: 8.4.4 PSG 5.2.1 | D278: UNFORMED SURFACE FINISHES
A280: 21091 | C280: 8.4.4 b) | D280: Steel-float finish to slabs
A282: 21161 | B282: 6.2.3.1 | D282: Roof slab | E282: m² | F282: 166.0 | G282: 0.00 | H282: =IF(E282 = CHAR(37), F282*G282/100,F282*G282) -> 0.00
A284: 21092 | B284: 6.2.3.2 | D284: Walkway slab | E284: m² | F284: 48.0 | G284: 0.00 | H284: =IF(E284 = CHAR(37), F284*G284/100,F284*G284) -> 0.00
A286: 21093 | B286: 6.2.3.3 | D286: Floor slab | E286: m² | F286: 114.0 | G286: 0.00 | H286: =IF(E286 = CHAR(37), F286*G286/100,F286*G286) -> 0.00
A288: 20990 | B288: 6.2.4 | C288: 8.5, 5.5.7, PSG 5.5.7 | D288: JOINTS
A290: 20991 | B290: 6.2.4.1 | D290: Expansion joints with 10mm polystyrene between concrete roof slab and brick wall surfaces | E290: m | F290: 100.0 | G290: 0.00 | H290: =IF(E290 = CHAR(37), F290*G290/100,F290*G290) -> 0.00
A292: 21107 | B292: 6.2.4.2 | D292: Expansion joints with 10mm polystyrene between concrete floor slab and concrete walkway slab | E292: m | F292: 50.0 | G292: 0.00 | H292: =IF(E292 = CHAR(37), F292*G292/100,F292*G292) -> 0.00
A294: 20992 | B294: 6.2.4.3 | D294: Expansion joints with 10mm polystyrene between existing concrete roof slab and proposed concrete roof slab | E294: m | F294: 12.0 | G294: 0.00 | H294: =IF(E294 = CHAR(37), F294*G294/100,F294*G294) -> 0.00
A296: 20993 | B296: 6.2.5 | C296: 8.3, PSG 8.1.2 | D296: REINFORCEMENT
A298: 20994 | C298: 8.3.1 | D298: Mild steel reinforcement to structural concrete work
A300: 20995 | B300: 6.2.5.1 | D300: Various diameter bars | E300: t | F300: 1.1 | G300: 0.00 | H300: =IF(E300 = CHAR(37), F300*G300/100,F300*G300) -> 0.00
B302: Total Carried Forward | H302: =SUM(H255:H301) -> 0.00
B303: SCHEDULE 6 - ADMINISTRATION BUILDING EXTENSION
H304: SECTION 6.2: CONCRETE, FORMWORK AND REINFORCING
B305: ITEM NO | C305: PAYMENT | D305: DESCRIPTION | E305: UNIT | F305: QTY | G305: RATE | H305: AMOUNT (RAND)
B306: Brought Forward | H306: =H302 -> 0.00
A307: 20996 | C307: 8.3.1 | D307: High tensile steel reinforcement to structural concrete work
A309: 20997 | B309: 6.2.5.2 | D309: Various diameter bars | E309: t | F309: 11.4 | G309: 0.00 | H309: =IF(E309 = CHAR(37), F309*G309/100,F309*G309) -> 0.00
A311: 20998 | C311: 8.3.2 | D311: High tensile welded mesh reinforcement
A313: 21160 | B313: 6.2.5.3 | D313: Mesh Ref 500 | E313: m² | F313: 50.0 | G313: 0.00 | H313: =IF(E313 = CHAR(37), F313*G313/100,F313*G313) -> 0.00
A315: 21108 | B315: 6.2.5.4 | D315: Mesh Ref 395 | E315: m² | F315: 50.0 | G315: 0.00 | H315: =IF(E315 = CHAR(37), F315*G315/100,F315*G315) -> 0.00
A317: 21156 | B317: 6.2.6 | C317: PSG 5.5.8, PSG 8.4.7 | D317: CURING AND PROTECTION
A319: 21157 | B319: 6.2.6.1 | D319: Floor slabs | E319: m² | F319: 114.0 | G319: 0.00 | H319: =IF(E319 = CHAR(37), F319*G319/100,F319*G319) -> 0.00
A321: 21158 | B321: 6.2.6.2 | D321: Wall Beams | E321: m² | F321: 11.0 | G321: 0.00 | H321: =IF(E321 = CHAR(37), F321*G321/100,F321*G321) -> 0.00
A323: 21219 | B323: 6.2.6.3 | D323: Roof slab | E323: m² | F323: 166.0 | G323: 0.00 | H323: =IF(E323 = CHAR(37), F323*G323/100,F323*G323) -> 0.00
A325: 21220 | B325: 6.2.6.4 | D325: New Walkway | E325: m² | F325: 48.0 | G325: 0.00 | H325: =IF(E325 = CHAR(37), F325*G325/100,F325*G325) -> 0.00
A327: 21221 | B327: 6.2.6.5 | D327: Floor Beam | E327: m² | F327: 17.0 | G327: 0.00 | H327: =IF(E327 = CHAR(37), F327*G327/100,F327*G327) -> 0.00
B362: Total Carried Forward To Summary | H362: =SUM(H306:H361) -> 0.00
B363: SCHEDULE 6 - ADMINISTRATION BUILDING EXTENSION
H364: SECTION 6.3: MASONRY
B365: ITEM NO | C365: PAYMENT | D365: DESCRIPTION | E365: UNIT | F365: QTY | G365: RATE | H365: AMOUNT (RAND)
A366: 20955 | B366: 6.3 | D366: MASONRY
A368: 20999 | D368: SUPPLEMENTARY PREAMBLES:
A370: 21000 | D370: Sizes in descriptions
A372: 21001 | D372: Where sizes in descriptions are given in brick units, 'one brick' shall represent the length and 'half brick' the width of a brick.
A374: 21002 | D374: Hollow walls, etc
A376: 21003 | D376: Descriptions of hollow walls shall be deemed to include leaving every fifth perpend of the bottom course of the external skin open as a weep hole.
A378: 21004 | D378: Walls in two skins described as 'bagged and sealed' shall be deemed to include having the outer face of the inner skin bagged with 1:6 cement and sand mixture
A380: 21005 | D380: Face bricks
A382: 21006 | D382: Bricks shall be ordered timeously to obtain uniformity in size and colour
A384: 21007 | D384: Pointing
A386: 21008 | D386: Descriptions of recessed pointing to fair face brickwork and face brickwork shall be deemed to include square recessed, hollow recessed, weathered pointing, etc.
A388: 21009 | B388: 6.3.1 | C388: PABR | D388: BRICKWORK IN SUPERSTRUCTURE
A390: 21192 | D390: In mortar class according to PABR 2.6:
A392: 21010 | D392: Existing Building
A394: 21011 | D394: New internal walls in common NFP brick to be plastered and painted (measured elsewhere)
A396: 21012 | B396: 6.3.1.1 | D396: Single skin wall | E396: m² | F396: 15.0 | G396: 0.00 | H396: =IF(E396 = CHAR(37), F396*G396/100,F396*G396) -> 0.00
A398: 21013 | D398: Proposed Administration Building
A400: 21014 | D400: New external one brick walls in Roan Satin FBX facebrick skin externally with common NFP brick skin internally to be plastered and painted (measured elsewhere)
B401: Total Carried Forward | H401: =SUM(H366:H400) -> 0.00
B402: SCHEDULE 6 - ADMINISTRATION BUILDING EXTENSION
H403: SECTION 6.3: MASONRY
B404: ITEM NO | C404: PAYMENT | D404: DESCRIPTION | E404: UNIT | F404: QTY | G404: RATE | H404: AMOUNT (RAND)
B405: Brought Forward | H405: =H401 -> 0.00
A406: 21096 | B406: 6.3.1.2 | D406: External facebrick skin | E406: m² | F406: 128.0 | G406: 0.00 | H406: =IF(E406 = CHAR(37), F406*G406/100,F406*G406) -> 0.00
A408: 21097 | B408: 6.3.1.3 | D408: Internal common brick skin | E408: m² | F408: 128.0 | G408: 0.00 | H408: =IF(E408 = CHAR(37), F408*G408/100,F408*G408) -> 0.00
A410: 21098 | D410: New internal walls in common NFP brickwork to be plastered and painted (measured elsewhere)
A412: 21099 | B412: 6.3.1.4 | D412: Single skin wall | E412: m² | F412: 50.0 | G412: 0.00 | H412: =IF(E412 = CHAR(37), F412*G412/100,F412*G412) -> 0.00
A414: 21100 | B414: 6.3.1.5 | D414: Double skin wall | E414: m² | F414: 30.0 | G414: 0.00 | H414: =IF(E414 = CHAR(37), F414*G414/100,F414*G414) -> 0.00
A416: 21015 | B416: 6.3.2 | C416: PABR | D416: BRICKWORK SUNDRIES
A418: 21016 | D418: Brick on edge lintels
A420: 21017 | B420: 6.3.2.1 | D420: 110 x 150mm lintels in lengths not exceeding 3m | E420: m | F420: 20.0 | G420: 0.00 | H420: =IF(E420 = CHAR(37), F420*G420/100,F420*G420) -> 0.00
A422: 21018 | D422: Brick on edge sills
... 215 more rows

Sheet Schedule 7
A1: Rate=G | B1: SCHEDULE 7 - SECURITY GUARD HOUSE
H2: SECTION 7.1: SITE CLEARANCE
B3: ITEM NO | C3: PAYMENT | D3: DESCRIPTION | E3: UNIT | F3: QTY | G3: RATE | H3: AMOUNT (RAND)
A4: 21670 | B4: 7.1 | C4: SANS 1200 C, PSC & PSDB | D4: SITE CLEARANCE
A6: 21915 | D6: All drawing references are prefixed with 60398/10
A8: 21671 | B8: 7.1.1 | D8: SITE CLEARANCE
A10: 21672 | C10: 8.2.1, PSC 8.2.1 | D10: Clear and grub site
A12: 21747 | B12: 7.1.1.1 | C12: PSC 8.2.11 | D12: Saw Cutting of existing asphalt surfaces | E12: m | F12: 15.0 | G12: 0.00 | H12: =IF(E12 = CHAR(37), F12*G12/100,F12*G12) -> 0.00
A14: 21920 | B14: 7.1.1.2 | C14: PSC8.2.13 | D14: Remove existing road asphalt and spoil at approved spoil disposal site for up to 60mm | E14: m² | F14: 13.0 | G14: 0.00 | H14: =IF(E14 = CHAR(37), F14*G14/100,F14*G14) -> 0.00
A16: 21754 | C16: 8.2.4 | D16: Re-clear surfaces where directed by Engineer (Provisional)
A18: 21755 | B18: 7.1.1.3 | D18: Guard House site | E18: m² | F18: 15.0 | G18: 0.00 | H18: =IF(E18 = CHAR(37), F18*G18/100,F18*G18) -> 0.00
A20: 21838 | B20: 7.1.1.4 | C20: 8.2.10 PSC 8.2.10 | D20: Remove topsoil to depth of 150mm and stockpile | E20: m³ | F20: 4.0 | G20: 0.00 | H20: =IF(E20 = CHAR(37), F20*G20/100,F20*G20) -> 0.00
A22: 21957 | C22: 8.2.7, PSC 8.2.7 | D22: Existing Services
A24: 21766 | C24: 8.2.8 | D24: Demolish and remove structures/buildings and dismantle steelwork
A26: 21839 | B26: 7.1.1.5 | D26: Disconnect, dismantle as needed, and remove the guard hut. | E26: No. | F26: 1.0 | G26: 0.00 | H26: =IF(E26 = CHAR(37), F26*G26/100,F26*G26) -> 0.00
B52: Total Carried Forward To Summary | H52: =SUM(H4:H51) -> 0.00
B53: SCHEDULE 7 - SECURITY GUARD HOUSE
H54: SECTION 7.2: EARTHWORKS
B55: ITEM NO | C55: PAYMENT | D55: DESCRIPTION | E55: UNIT | F55: QTY | G55: RATE | H55: AMOUNT (RAND)
A56: 21673 | B56: 7.2 | C56: SANS 1200 D, PSD | D56: EARTHWORKS
A58: 21719 | B58: 7.2.1 | C58: 8.3.3, PSD 8.3.3(a), PSD 2.3 | D58: RESTRICTED EXCAVATION
A60: 21674 | C60: 8.3.3 a), PSD 8.3.5.2 | D60: Restricted excavation in all materials and stockpile suitable material and use for embankment or backfill, and dispose of unsuitable material to an approved spoil site to be determined by the contractor
A62: 21675 | B62: 7.2.1.1 | D62: Strip Footing | E62: m³ | F62: 9.0 | G62: 0.00 | H62: =IF(E62 = CHAR(37), F62*G62/100,F62*G62) -> 0.00
A64: 21959 | B64: 7.2.1.2 | D64: Septic Tank | E64: m³ | F64: 10.0 | G64: 0.00 | H64: =IF(E64 = CHAR(37), F64*G64/100,F64*G64) -> 0.00
A66: 21840 | B66: 7.2.2 | D66: FOUNDATION PREPARATION
A68: 21720 | B68: 7.2.2.1 | D68: Compact bottom of excavation of in-situ material to 95% MOD AASHTO including testing | E68: m² | F68: 16.0 | G68: 0.00 | H68: =IF(E68 = CHAR(37), F68*G68/100,F68*G68) -> 0.00
A70: 21676 | B70: 7.2.3 | D70: BACKFILL
A72: 21841 | C72: PSD 8.3.4.1 | D72: Selected backfill or fill material obtained from stockpile
A74: 21842 | B74: 7.2.3.1 | D74: Fill embankment compacted to 95% MOD AASHTO in 150mm layers including testing | E74: m³ | F74: 20.0 | G74: 0.00 | H74: =IF(E74 = CHAR(37), F74*G74/100,F74*G74) -> 0.00
B102: Total Carried Forward To Summary | H102: =SUM(H56:H101) -> 0.00
B103: SCHEDULE 7 - SECURITY GUARD HOUSE
H104: SECTION 7.3: EARTHWORKS (PIPE TRENCHES)
B105: ITEM NO | C105: PAYMENT | D105: DESCRIPTION | E105: UNIT | F105: QTY | G105: RATE | H105: AMOUNT (RAND)
A106: 22566 | B106: 7.3 | C106: SABS1200 DB | D106: EARTHWORKS (PIPE TRENCHES)
A108: 22567 | B108: 7.3.1 | C108: PSDB 5.2 8.3.2 | D108: EXCAVATION
A110: 22572 | C110: 8.3.2 (a) PSDB 8.3.2 (a) | D110: Excavate in all materials for pipe trenches, backfill, compact to specification and dispose of surplus/unsuitable material, for pipes:
A112: 22573 | D112: Up to DN200 pipeline for a total trench depth
A114: 22574 | B114: 7.3.1.1 | D114: Up to 3.0m | E114: m³ | F114: 15.00 | G114: 0.00 | H114: =IF(E114 = CHAR(37), F114*G114/100,F114*G114) -> 0.00
A116: 22575 | C116: 8.3.2 (b) PSDB 8.3.2 (b) | D116: Extra-over Item 7.3.1.1 for excavation in (All provisional):
A118: 22576 | B118: 7.3.1.2 | D118: 1) Intermediate excavation | E118: m³ | F118: 5.00 | G118: 0.00 | H118: =IF(E118 = CHAR(37), F118*G118/100,F118*G118) -> 0.00
A120: 22577 | B120: 7.3.1.3 | D120: 2) Hard rock excavation | E120: m³ | F120: 2.00 | G120: 0.00 | H120: =IF(E120 = CHAR(37), F120*G120/100,F120*G120) -> 0.00
A122: 22578 | B122: 7.3.1.4 | D122: 3) Boulder Excavation class A (Provisional) | E122: m³ | F122: 1.00 | G122: 0.00 | H122: =IF(E122 = CHAR(37), F122*G122/100,F122*G122) -> 0.00
A124: 22579 | B124: 7.3.1.5 | D124: 4) Boulder Excavation class B (Provisional) | E124: m³ | F124: 1.00 | G124: 0.00 | H124: =IF(E124 = CHAR(37), F124*G124/100,F124*G124) -> 0.00
A126: 22580 | B126: 7.3.1.6 | D126: Hand excavation and backfill where ordered by the Engineer (Provisional Quantity) | E126: m³ | F126: 5.00 | G126: 0.00 | H126: =IF(E126 = CHAR(37), F126*G126/100,F126*G126) -> 0.00
A128: 22581 | B128: 7.3.1.7 | C128: 8.3.2 (c) | D128: Excavate and dispose of unsuitable material from trench bottom (Provisional) | E128: m³ | F128: 5.00 | G128: 0.00 | H128: =IF(E128 = CHAR(37), F128*G128/100,F128*G128) -> 0.00
A130: 22582 | B130: 7.3.1.8 | D130: Hand excavation to prove existing services (Provisional) | E130: m³ | F130: 5.00 | G130: 0.00 | H130: =IF(E130 = CHAR(37), F130*G130/100,F130*G130) -> 0.00
A132: 22568 | B132: 7.3.2 | C132: 8.3.3 | D132: EXCAVATION ANCILLARIES
A134: 22569 | D134: Make up deficiency in backfill material (Provisional)
A136: 22570 | B136: 7.3.2.1 | C136: 8.3.3.1 (a) | D136: a) from other necessary excavations on site | E136: m³ | F136: 10.00 | G136: 0.00 | H136: =IF(E136 = CHAR(37), F136*G136/100,F136*G136) -> 0.00
A138: 22571 | B138: 7.3.2.2 | C138: 8.3.3.1 (c) | D138: b) by importation from commercial sources | E138: m³ | F138: 10.00 | G138: 0.00 | H138: =IF(E138 = CHAR(37), F138*G138/100,F138*G138) -> 0.00
B150: Total Carried Forward To Summary | H150: =SUM(H106:H149) -> 0.00
B151: SCHEDULE 7 - SECURITY GUARD HOUSE
H152: SECTION 7.4: BEDDING
B153: ITEM NO | C153: PAYMENT | D153: DESCRIPTION | E153: UNIT | F153: QTY | G153: RATE | H153: AMOUNT (RAND)
A154: 22583 | B154: 7.4 | C154: SABS 1200 LB | D154: BEDDING (PIPES)
A156: 22591 | B156: 7.4.1 | C156: PSLB 8.2.1 | D156: Provision of bedding from trench excavations:
A158: 22584 | B158: 7.4.1.1 | D158: Selected granular material for 200mm bedding cradle below pipe invert | E158: m³ | F158: 5.00 | G158: 0.00 | H158: =IF(E158 = CHAR(37), F158*G158/100,F158*G158) -> 0.00
A160: 22585 | B160: 7.4.1.2 | D160: Selected granular material for fill blanket to 300mm above pipe crown | E160: m³ | F160: 10.00 | G160: 0.00 | H160: =IF(E160 = CHAR(37), F160*G160/100,F160*G160) -> 0.00
A162: 22587 | B162: 7.4.1.3 | C162: PSLB 8.2.1.1 | D162: Extra Over for screening of material from the trench excavation, to achieve grading suitable to comply with the bedding and blanket material specification (Provisional Quantity) | E162: m³ | F162: 2.00 | G162: 0.00 | H162: =IF(E162 = CHAR(37), F162*G162/100,F162*G162) -> 0.00
A164: 22588 | B164: 7.4.2 | C164: PSLB 8.2.2 | D164: Supply only of bedding by importation:
A166: 22589 | C166: PSLB 8.2.2.3 | D166: From commercial sources:
A168: 22590 | B168: 7.4.2.1 | D168: a) Selected granular material for 200mm bedding cradle below pipe invert | E168: m³ | F168: 5.00 | G168: 0.00 | H168: =IF(E168 = CHAR(37), F168*G168/100,F168*G168) -> 0.00
A170: 22586 | B170: 7.4.2.2 | D170: b) Selected granular material for fill blanket to 300mm above pipe crown | E170: m³ | F170: 10.00 | G170: 0.00 | H170: =IF(E170 = CHAR(37), F170*G170/100,F170*G170) -> 0.00
B204: Total Carried Forward To Summary | H204: =SUM(H154:H203) -> 0.00
B205: SCHEDULE 7 - SECURITY GUARD HOUSE
H206: SECTION 7.5: CONCRETE (STRUCTURAL)
B207: ITEM NO | C207: PAYMENT | D207: DESCRIPTION | E207: UNIT | F207: QTY | G207: RATE | H207: AMOUNT (RAND)
A208: 21677 | B208: 7.5 | C208: SANS 1200 G, PSG | D208: CONCRETE (STRUCTURAL)
A210: 21678 | B210: 7.5.1 | C210: 8.2 | D210: FORMWORK
A212: 21770 | C212: 8.2.1 | D212: Narrow Widths, Smooth finish from formwork on:
A214: 21771 | D214: Vertical plane to
A216: 21772 | B216: 7.5.1.1 | D216: 150mm high, roof slab | E216: m | F216: 16.0 | G216: 0.00 | H216: =IF(E216 = CHAR(37), F216*G216/100,F216*G216) -> 0.00
A218: 21958 | B218: 7.5.1.2 | D218: 150mm high, floor slab | E218: m | F218: 13.0 | G218: 0.00 | H218: =IF(E218 = CHAR(37), F218*G218/100,F218*G218) -> 0.00
A220: 21975 | B220: 7.5.1.3 | D220: 230mm high, footings | E220: m | F220: 27.0 | G220: 0.00 | H220: =IF(E220 = CHAR(37), F220*G220/100,F220*G220) -> 0.00
A222: 21976 | B222: 7.5.1.4 | D222: 75mm high, blinding layer | E222: m | F222: 27.0 | G222: 0.00 | H222: =IF(E222 = CHAR(37), F222*G222/100,F222*G222) -> 0.00
A224: 22592 | B224: 7.5.1.5 | D224: 100mm high, upstand beam | E224: m | F224: 14.00 | G224: 0.00 | H224: =IF(E224 = CHAR(37), F224*G224/100,F224*G224) -> 0.00
A226: 21679 | D226: Smooth finish from formwork on:
A228: 21728 | C228: 8.2.2, PSG 8.2.2 PSG 5.2 | D228: Horizontal plane to
A230: 21729 | B230: 7.5.1.6 | D230: Roof slab soffit | E230: m² | F230: 21.0 | G230: 0.00 | H230: =IF(E230 = CHAR(37), F230*G230/100,F230*G230) -> 0.00
A232: 21680 | B232: 7.5.2 | C232: 8.3, PSG 8.1.2 | D232: REINFORCEMENT
A234: 21730 | C234: 8.3.1 | D234: Steel bars of various sizes
A236: 21681 | B236: 7.5.2.1 | D236: High-tensile steel bars | E236: t | F236: 6.0 | G236: 0.00 | H236: =IF(E236 = CHAR(37), F236*G236/100,F236*G236) -> 0.00
A238: 22593 | B238: 7.5.2.2 | D238: Mild Steel Bars | E238: t | F238: 0.60 | G238: 0.00 | H238: =IF(E238 = CHAR(37), F238*G238/100,F238*G238) -> 0.00
A240: 21682 | B240: 7.5.3 | C240: 8.4 | D240: CONCRETE
A242: 21961 | C242: 8.4.2 | D242: Grade Concrete (15 MPa/19mm):
A244: 21756 | B244: 7.5.3.1 | D244: Blinding layer minimum 75mm thick | E244: m² | F244: 0.7 | G244: 0.00 | H244: =IF(E244 = CHAR(37), F244*G244/100,F244*G244) -> 0.00
A246: 21962 | C246: 8.4.3, PSG 5.5 | D246: Strength Concrete:
A248: 21963 | C248: 8.4.3, PSG 5.5 | D248: Grade Concrete (25 MPa/19mm):
A250: 21767 | B250: 7.5.3.2 | D250: 85mm thick floor slab | E250: m³ | F250: 0.9 | G250: 0.00 | H250: =IF(E250 = CHAR(37), F250*G250/100,F250*G250) -> 0.00
A252: 21748 | B252: 7.5.3.3 | D252: 100mm thick roof slab | E252: m³ | F252: 4.0 | G252: 0.00 | H252: =IF(E252 = CHAR(37), F252*G252/100,F252*G252) -> 0.00
A254: 21735 | B254: 7.5.3.4 | D254: 110mm thick footing (internal walls) | E254: m³ | F254: 1.0 | G254: 0.00 | H254: =IF(E254 = CHAR(37), F254*G254/100,F254*G254) -> 0.00
A256: 21768 | B256: 7.5.3.5 | D256: 700mm wide footing | E256: m³ | F256: 3.0 | G256: 0.00 | H256: =IF(E256 = CHAR(37), F256*G256/100,F256*G256) -> 0.00
A258: 21964 | B258: 7.5.4 | C258: 8.4.4 | D258: UNFORMED SURFACE FINISHES
A260: 21965 | C260: 8.4.4 (a) | D260: Steel-floated finish to:
A262: 21731 | B262: 7.5.4.1 | D262: Blinding | E262: m² | F262: 9.0 | G262: 0.00 | H262: =IF(E262 = CHAR(37), F262*G262/100,F262*G262) -> 0.00
B263: Total Carried Forward | H263: =SUM(H208:H262) -> 0.00
B264: SCHEDULE 7 - SECURITY GUARD HOUSE
H265: SECTION 7.5: CONCRETE (STRUCTURAL)
B266: ITEM NO | C266: PAYMENT | D266: DESCRIPTION | E266: UNIT | F266: QTY | G266: RATE | H266: AMOUNT (RAND)
B267: Brought Forward | H267: =H263 -> 0.00
A268: 21864 | B268: 7.5.4.2 | D268: Roof Slab | E268: m² | F268: 21.0 | G268: 0.00 | H268: =IF(E268 = CHAR(37), F268*G268/100,F268*G268) -> 0.00
A270: 21732 | B270: 7.5.4.3 | D270: Floor Slab | E270: m² | F270: 10.0 | G270: 0.00 | H270: =IF(E270 = CHAR(37), F270*G270/100,F270*G270) -> 0.00
A272: 21733 | B272: 7.5.5 | D272: WATERPROOFING
A274: 21865 | D274: One layer of Derbigum SP (Special Polyester) waterproof sheeting sealed
A276: 21734 | B276: 7.5.5.1 | D276: Top of the roof | E276: m² | F276: 20.0 | G276: 0.00 | H276: =IF(E276 = CHAR(37), F276*G276/100,F276*G276) -> 0.00
A278: 21758 | C278: 8.4.4 a) | D278: Steel-floated finish to top of:
A280: 21759 | B280: 7.5.5.2 | D280: Roof slab | E280: m² | F280: 20.0 | G280: 0.00 | H280: =IF(E280 = CHAR(37), F280*G280/100,F280*G280) -> 0.00
A282: 21769 | B282: 7.5.5.3 | D282: Floor slab | E282: m² | F282: 9.0 | G282: 0.00 | H282: =IF(E282 = CHAR(37), F282*G282/100,F282*G282) -> 0.00
A284: 21843 | B284: 7.5.6 | C284: PSG 5.5.8, PSG 8.4.7 | D284: CURING AND PROTECTION
A286: 21844 | B286: 7.5.6.1 | D286: Floor slabs | E286: m² | F286: 9.0 | G286: 0.00 | H286: =IF(E286 = CHAR(37), F286*G286/100,F286*G286) -> 0.00
A288: 21845 | B288: 7.5.6.2 | D288: Roof slab | E288: m² | F288: 20.0 | G288: 0.00 | H288: =IF(E288 = CHAR(37), F288*G288/100,F288*G288) -> 0.00
B324: Total Carried Forward To Summary | H324: =SUM(H267:H323) -> 0.00
B325: SCHEDULE 7 - SECURITY GUARD HOUSE
H326: SECTION 7.6: METALWORK
B327: ITEM NO | C327: PAYMENT | D327: DESCRIPTION | E327: UNIT | F327: QTY | G327: RATE | H327: AMOUNT (RAND)
A328: 22644 | B328: 7.6 | C328: SANS 1200 H, PSHA, PACP | D328: METALWORK
A330: 22645 | B330: 7.6.1 | D330: SUPPLEMENTARY PREAMBLES
A332: 22646 | D332: The following to be finished with 25 microns powder coated, manufactured and installed in accordance with good building practice and in terms of the latest code of practice with revisions as recommended by SANS and AAAMSA
A334: 22647 | D334: Items shall be manufactured by an approved specialist who shall provide a sample upon request, for the Engineers approval
A336: 22648 | D336: Tenderers are advised to refer to the Architect's window and door schedules attached to these Bills of Quantities for details on drawing 60398/25
A338: 22649 | D338: Tenderers are to note that should there be any doubt or obscurity as to the meaning and intent of any descriptions, the Contractor must have the same rectified and allow for same accordingly in his tender. The Contractor is to include in his rates for all that he considers necessary for the proper construction of the windows and doors. No claims whatsoever will be afterwards admitted due to the Contractor having failed to comply with these conditions
A340: 22650 | D340: Rates shall include for the following:
A342: 22651 | D342: 1. All opening and fixed lights, coupling mullions and transoms, support steelwork, fittings, ironmongery, etc., as required and specified.
A344: 22652 | D344: 2. Complete glazing as described, with and including matching aluminium glazing beads and gaskets and glazed in accordance with the manufacturer's written instructions
B350: Total Carried Forward | H350: =SUM(H328:H349) -> 0.00
B351: SCHEDULE 7 - SECURITY GUARD HOUSE
H352: SECTION 7.6: METALWORK
B353: ITEM NO | C353: PAYMENT | D353: DESCRIPTION | E353: UNIT | F353: QTY | G353: RATE | H353: AMOUNT (RAND)
B354: Brought Forward | H354: =H350 -> 0.00
A355: 22653 | D355: 3. Building in and fixing into preformed openings. Window opening sizes to be verified on site before windows can be manufactured
A357: 22654 | D357: 4. Suitably protecting all exposed aluminium and glass surfaces with an approved protection tape and plastic sheeting. Such protection is to be removed at completion of the contract and the exposed surfaces cleaned down and left perfect. Under no circumstances will any damage whatsoever to the finished product be acceptable
A359: 22655 | D359: 5. Silicone pointing with a silicone sealant recommended by AAAMSA on all door / window and structure junctions
A361: 22656 | B361: 7.6.2 | D361: NATURAL ANODISED ALUMINIUM WINDOWS, DOORS, ETC.
A363: 22666 | D363: Note: Tenderers are to refer to the Architects door schedules when pricing the items hereunder
A365: 22657 | D365: Hardwood Meranti door frames plugged to brickwork
A367: 22658 | B367: 7.6.2.1 | D367: WD01 | E367: No. | F367: 2.0 | G367: 0.00 | H367: =IF(E367 = CHAR(37), F367*G367/100,F367*G367) -> 0.00
A369: 22659 | D369: Note: Tenderers are to refer to the attached Architects window schedules when pricing the items hereunder
A371: 22660 | D371: Wispeco/similar standard aluminium window frame plugged to brickwork or concrete, complete with burglar bars
A373: 22661 | B373: 7.6.2.2 | D373: AW01 | E373: No. | F373: 2.0 | G373: 0.00 | H373: =IF(E373 = CHAR(37), F373*G373/100,F373*G373) -> 0.00
A375: 22665 | B375: 7.6.2.3 | D375: AW02 | E375: No. | F375: 1.0 | G375: 0.00 | H375: =IF(E375 = CHAR(37), F375*G375/100,F375*G375) -> 0.00
A377: 22677 | B377: 7.6.2.4 | D377: AW03 | E377: No. | F377: 1.00 | G377: 0.00 | H377: =IF(E377 = CHAR(37), F377*G377/100,F377*G377) -> 0.00
A379: 22673 | D379: Tinted glass
A381: 22674 | B381: 7.6.2.5 | D381: Allow for all external glass windows and doors to be tinted with 20%, 2-ply, non-reflective film | E381: Sum | F381: 1.0 | G381: 0.00 | H381: =IF(E381 = CHAR(37), F381*G381/100,F381*G381) -> 0.00
A383: 22675 | B383: 7.6.2.6 | D383: Allow for glass awareness decals on all doors | E383: Sum | F383: 1.0 | G383: 0.00 | H383: =IF(E383 = CHAR(37), F383*G383/100,F383*G383) -> 0.00
B384: Total Carried Forward To Summary | H384: =SUM(H354:H383) -> 0.00
B385: SCHEDULE 7 - SECURITY GUARD HOUSE
H386: SECTION 7.7: MASONRY
B387: ITEM NO | C387: PAYMENT | D387: DESCRIPTION | E387: UNIT | F387: QTY | G387: RATE | H387: AMOUNT (RAND)
A388: 21683 | B388: 7.7 | C388: SANS 1200 H, PSAHA, PACP | D388: MASONRY
A390: 21977 | D390: SUPPLEMENTARY PREAMBLES:
A392: 21978 | D392: Sizes in descriptions
A394: 21979 | D394: Where sizes in descriptions are given in brick units, 'one brick' shall represent the length and 'half brick' the width of a brick.
A396: 21980 | D396: Hollow walls, etc
A398: 21981 | D398: Descriptions of hollow walls shall be deemed to include leaving every fifth perpend of the bottom course of the external skin open as a weep hole.
A400: 21982 | D400: Walls in two skins described as 'bagged and sealed' shall be deemed to include having the outer face of the inner skin bagged with 1:6 cement and sand mixture
A402: 21983 | D402: Face bricks
A404: 21984 | D404: Bricks shall be ordered timeously to obtain uniformity in size and colour
A406: 21985 | D406: Pointing
A408: 21986 | D408: Descriptions of recessed pointing to fair face brickwork and face brickwork shall be deemed to include square recessed, hollow recessed, weathered pointing, etc.
A410: 21987 | B410: 7.7.1 | C410: PABR | D410: BRICKWORK IN SUPERSTRUCTURE
A412: 21988 | D412: In mortar class according to PABR 2.6:
A414: 21992 | D414: Proposed Guard House
A416: 21993 | D416: New external one brick walls in Roan Satin FBX facebrick skin externally with common NFP brick skin internally to be plastered and painted (measured elsewhere)
A418: 21994 | B418: 7.7.1.1 | D418: External facebrick skin | E418: m² | F418: 35.0 | G418: 0.00 | H418: =IF(E418 = CHAR(37), F418*G418/100,F418*G418) -> 0.00
A420: 21995 | B420: 7.7.1.2 | D420: Internal common brick skin | E420: m² | F420: 35.0 | G420: 0.00 | H420: =IF(E420 = CHAR(37), F420*G420/100,F420*G420) -> 0.00
B424: Total Carried Forward | H424: =SUM(H388:H423) -> 0.00
B425: SCHEDULE 7 - SECURITY GUARD HOUSE
H426: SECTION 7.7: MASONRY
B427: ITEM NO | C427: PAYMENT | D427: DESCRIPTION | E427: UNIT | F427: QTY | G427: RATE | H427: AMOUNT (RAND)
B428: Brought Forward | H428: =H424 -> 0.00
A429: 21996 | D429: New internal walls in common NFP brickwork to be plastered and painted (measured elsewhere)
A431: 21997 | B431: 7.7.1.3 | D431: Single skin wall | E431: m² | F431: 5.0 | G431: 0.00 | H431: =IF(E431 = CHAR(37), F431*G431/100,F431*G431) -> 0.00
A433: 21999 | B433: 7.7.2 | C433: PABR | D433: BRICKWORK SUNDRIES
A435: 22000 | D435: Brick on edge lintels
A437: 22001 | B437: 7.7.2.1 | D437: 110 x 150mm lintels in lengths not exceeding 3m | E437: m | F437: 6.0 | G437: 0.00 | H437: =IF(E437 = CHAR(37), F437*G437/100,F437*G437) -> 0.00
A439: 22002 | D439: Brick on edge sills
A441: 22003 | B441: 7.7.2.2 | D441: 110 x 150mm sills in lengths not exceeding 3m | E441: m | F441: 5.0 | G441: 0.00 | H441: =IF(E441 = CHAR(37), F441*G441/100,F441*G441) -> 0.00
B483: Total Carried Forward To Summary | H483: =SUM(H428:H482) -> 0.00
B484: SCHEDULE 7 - SECURITY GUARD HOUSE
H485: SECTION 7.8: PLASTERING
B486: ITEM NO | C486: PAYMENT | D486: DESCRIPTION | E486: UNIT | F486: QTY | G486: RATE | H486: AMOUNT (RAND)
A487: 22594 | B487: 7.8 | C487: PABR 5.3.1 PABR 2.1 | D487: PLASTERING
A489: 22595 | B489: 7.8.1 | D489: PRICES
A491: 22596 | D491: The prices of mouldings, weathering, skirting, labours, etc. shall include for forming mitres, stops, etc. unless otherwise described
A493: 22597 | D493: The prices of all rendering shall include for working around pipes, balusters, etc
A495: 22598 | D495: Rates for plaster are to include for all filling to and working around electrical conduits, etc., prior to plastering
A497: 22602 | B497: 7.8.2 | D497: INTERNAL PLASTER
A499: 22603 | D499: One coat cement plaster on brickwork:
A501: 22604 | B501: 7.8.2.1 | D501: Walls | E501: m² | F501: 32.0 | G501: 0.00 | H501: =IF(E501 = CHAR(37), F501*G501/100,F501*G501) -> 0.00
B536: Total Carried Forward To Summary | H536: =SUM(H487:H535) -> 0.00
B537: SCHEDULE 7 - SECURITY GUARD HOUSE
H538: SECTION 7.9: PAINTING
B539: ITEM NO | C539: PAYMENT | D539: DESCRIPTION | E539: UNIT | F539: QTY | G539: RATE | H539: AMOUNT (RAND)
A540: 22614 | B540: 7.9 | D540: PAINTING
A542: 22615 | B542: 7.9.1 | D542: PREPARATORY WORK TO EXISTING WORK
A544: 22616 | D544: Previously painted plastered surfaces:
A546: 22617 | D546: Surfaces shall be thoroughly washed down and allowed to dry completely before any paint is applied. Blistered or peeling paint shall be completely removed and cracks shall be opened, filled with a suitable filler and finished smooth
A548: 22618 | D548: Previously painted metal surfaces:
A550: 22605 | D550: Surfaces shall be thoroughly rubbed and cleaned down. Blistered or peeling paint shall be completely removed down to bare metal
A552: 22606 | D552: Previously painted wood surfaces:
... 59 more rows

Sheet Schedule 8
A1: Rate=G | B1: SCHEDULE 8 - BACKWASH, SLUDGE AND BACKWASH RECOVERY SYSTEMS &
B2: CHAMBERS
H3: SECTION 8.1: SITE CLEARANCE
B4: ITEM NO | C4: PAYMENT | D4: DESCRIPTION | E4: UNIT | F4: QTY | G4: RATE | H4: AMOUNT (RAND)
A5: 22021 | B5: 8.1 | C5: SANS 1200 C, PSC & PSDB | D5: SITE CLEARANCE
A7: 22218 | D7: All drawing references are prefixed with 60398/02 - 60398/09
A9: 22231 | B9: 8.1.1 | D9: DN250 In-Situ Chamber
A11: 22110 | B11: 8.1.1.1 | C11: PSC8.2.11 | D11: Saw cutting of existing asphalt surface | E11: m | F11: 27.0 | G11: 0.00 | H11: =IF(E11 = CHAR(37), F11*G11/100,F11*G11) -> 0.00
A13: 22114 | B13: 8.1.1.2 | C13: PSC8.2.13 | D13: Remove existing road asphalt surfacing and spoil at approved spoil disposal site up to 60mm thickness | E13: m² | F13: 3.0 | G13: 0.00 | H13: =IF(E13 = CHAR(37), F13*G13/100,F13*G13) -> 0.00
A15: 22236 | B15: 8.1.2 | D15: DN80 Residue Sludge Disposal
A17: 22023 | B17: 8.1.2.1 | C17: 8.2.1, PSC 8.2.1 | D17: Clear and Grub Site | E17: m² | F17: 19.0 | G17: 0.00 | H17: =IF(E17 = CHAR(37), F17*G17/100,F17*G17) -> 0.00
A19: 22235 | B19: 8.1.3 | D19: DN100 IV Precast Concrete Chamber
A21: 22233 | B21: 8.1.3.1 | C21: 8.2.1, PSC 8.2.1 | D21: Clear and Grub Site | E21: m² | F21: 23.0 | G21: 0.00 | H21: =IF(E21 = CHAR(37), F21*G21/100,F21*G21) -> 0.00
A23: 22116 | B23: 8.1.4 | C23: 8.2.10, PSC 8.2.10 | D23: Remove topsoil to depth of 150mm and stockpile for all chamber | E23: m³ | F23: 10.0 | G23: 0.00 | H23: =IF(E23 = CHAR(37), F23*G23/100,F23*G23) -> 0.00
B57: Total Carried Forward To Summary | H57: =SUM(H5:H56) -> 0.00
B58: SCHEDULE 8 - BACKWASH, SLUDGE AND BACKWASH RECOVERY SYSTEMS &
B59: CHAMBERS
H60: SECTION 8.2: EARTHWORKS
B61: ITEM NO | C61: PAYMENT | D61: DESCRIPTION | E61: UNIT | F61: QTY | G61: RATE | H61: AMOUNT (RAND)
A62: 22024 | B62: 8.2 | C62: SANS 1200 D, PSD | D62: EARTHWORKS
A64: 22069 | B64: 8.2.1 | C64: 8.3.3, PSD 8.3.3(a), PSD 2.3 | D64: RESTRICTED EXCAVATION
A66: 22025 | C66: 8.3.3 a), PSD 8.3.5.2 | D66: Restricted excavation in all materials and stockpile suitable material and use for embankment or backfill, and dispose of unsuitable material to an approved spoil site to be determined by the contractor
A68: 22026 | B68: 8.2.1.1 | D68: DN250 In-Situ Chamber | E68: m³ | F68: 94.0 | G68: 0.00 | H68: =IF(E68 = CHAR(37), F68*G68/100,F68*G68) -> 0.00
A70: 22027 | B70: 8.2.1.2 | D70: DN80 Residue Sludge Disposal | E70: m³ | F70: 22.0 | G70: 0.00 | H70: =IF(E70 = CHAR(37), F70*G70/100,F70*G70) -> 0.00
A72: 22219 | B72: 8.2.1.3 | D72: DN100 IV Precast Concrete Chamber | E72: m³ | F72: 28.0 | G72: 0.00 | H72: =IF(E72 = CHAR(37), F72*G72/100,F72*G72) -> 0.00
A74: 22028 | C74: 8.3.3 b), PSD 3.1 | D74: Extra-over items 8.2.1.1 to 8.2.1.3 for:
A76: 22029 | B76: 8.2.1.4 | C76: 8.3.3 b) 1) | D76: Intermediate material | E76: m³ | F76: 70.0 | G76: 0.00 | H76: =IF(E76 = CHAR(37), F76*G76/100,F76*G76) -> 0.00
A78: 22030 | B78: 8.2.1.5 | C78: 8.3.3 b) 2) | D78: Hard rock material | E78: m³ | F78: 10.0 | G78: 0.00 | H78: =IF(E78 = CHAR(37), F78*G78/100,F78*G78) -> 0.00
A80: 22031 | B80: 8.2.1.6 | C80: 8.3.3 b) 3) | D80: Boulder material, Class A (Provisional) | E80: m³ | F80: 5.0 | G80: 0.00 | H80: =IF(E80 = CHAR(37), F80*G80/100,F80*G80) -> 0.00
A82: 22032 | B82: 8.2.1.7 | C82: 8.3.3 b) 4) | D82: Boulder material, Class B (Provisional) | E82: m³ | F82: 5.0 | G82: 0.00 | H82: =IF(E82 = CHAR(37), F82*G82/100,F82*G82) -> 0.00
A84: 22117 | B84: 8.2.2 | C84: 8.3.3 a) | D84: FOUNDATION PREPARATION
A86: 22070 | B86: 8.2.2.1 | D86: Rip & re-compact in-situ material to 98% MOD AASHTO in 150mm layers | E86: m³ | F86: 10.0 | G86: 0.00 | H86: =IF(E86 = CHAR(37), F86*G86/100,F86*G86) -> 0.00
A88: 22033 | B88: 8.2.3 | D88: BACKFILL
A90: 22118 | C90: PSD 8.3.4.1 | D90: Selected backfill or fill material obtained from stockpile
A92: 22119 | B92: 8.2.3.1 | D92: Fill embankment around chambers compacted to 95% MOD AASHTO in 150mm layers including testing | E92: m³ | F92: 75.0 | G92: 0.00 | H92: =IF(E92 = CHAR(37), F92*G92/100,F92*G92) -> 0.00
B108: Total Carried Forward To Summary | H108: =SUM(H62:H107) -> 0.00
B109: SCHEDULE 8 - BACKWASH, SLUDGE AND BACKWASH RECOVERY SYSTEMS &
B110: CHAMBERS
H111: SECTION 8.3: EARTHWORKS (PIPE TRENCHES)
B112: ITEM NO | C112: PAYMENT | D112: DESCRIPTION | E112: UNIT | F112: QTY | G112: RATE | H112: AMOUNT (RAND)
A113: 22540 | B113: 8.3 | C113: SABS1200 DB | D113: EARTHWORKS (PIPE TRENCHES)
A115: 22541 | B115: 8.3.1 | C115: PSDB 5.2 8.3.2 | D115: EXCAVATION
A117: 22546 | C117: 8.3.2 (a) PSDB 8.3.2 (a) | D117: Excavate in all materials for pipe trenches, backfill, compact to specification and dispose of surplus/unsuitable material, for pipes:
A119: 22547 | D119: Up to DN400 pipeline for a total trench depth
A121: 22548 | B121: 8.3.1.1 | D121: Up to 3.0m | E121: m³ | F121: 120.00 | G121: 0.00 | H121: =IF(E121 = CHAR(37), F121*G121/100,F121*G121) -> 0.00
A123: 22549 | C123: 8.3.2 (b) PSDB 8.3.2 (b) | D123: Extra-over Item 8.3.1.1 for excavation in (All provisional):
A125: 22550 | B125: 8.3.1.2 | D125: 1) Intermediate excavation | E125: m³ | F125: 60.00 | G125: 0.00 | H125: =IF(E125 = CHAR(37), F125*G125/100,F125*G125) -> 0.00
A127: 22551 | B127: 8.3.1.3 | D127: 2) Hard rock excavation | E127: m³ | F127: 10.00 | G127: 0.00 | H127: =IF(E127 = CHAR(37), F127*G127/100,F127*G127) -> 0.00
A129: 22552 | B129: 8.3.1.4 | D129: 3) Boulder Excavation class A (Provisional) | E129: m³ | F129: 5.00 | G129: 0.00 | H129: =IF(E129 = CHAR(37), F129*G129/100,F129*G129) -> 0.00
A131: 22553 | B131: 8.3.1.5 | D131: 4) Boulder Excavation class B (Provisional) | E131: m³ | F131: 5.00 | G131: 0.00 | H131: =IF(E131 = CHAR(37), F131*G131/100,F131*G131) -> 0.00
A133: 22554 | B133: 8.3.1.6 | D133: Hand excavation and backfill where ordered by the Engineer (Provisional Quantity) | E133: m³ | F133: 10.00 | G133: 0.00 | H133: =IF(E133 = CHAR(37), F133*G133/100,F133*G133) -> 0.00
A135: 22555 | B135: 8.3.1.7 | C135: 8.3.2 (c) | D135: Excavate and dispose of unsuitable material from trench bottom (Provisional) | E135: m³ | F135: 10.00 | G135: 0.00 | H135: =IF(E135 = CHAR(37), F135*G135/100,F135*G135) -> 0.00
A137: 22556 | B137: 8.3.1.8 | D137: Hand excavation to prove existing services (Provisional) | E137: m³ | F137: 10.00 | G137: 0.00 | H137: =IF(E137 = CHAR(37), F137*G137/100,F137*G137) -> 0.00
A139: 22542 | B139: 8.3.2 | C139: 8.3.3 | D139: EXCAVATION ANCILLARIES
A141: 22543 | D141: Make up deficiency in backfill material (Provisional)
A143: 22544 | B143: 8.3.2.1 | C143: 8.3.3.1 (a) | D143: a) from other necessary excavations on site | E143: m³ | F143: 50.00 | G143: 0.00 | H143: =IF(E143 = CHAR(37), F143*G143/100,F143*G143) -> 0.00
A145: 22545 | B145: 8.3.2.2 | C145: 8.3.3.1 (c) | D145: b) by importation from commercial sources | E145: m³ | F145: 50.00 | G145: 0.00 | H145: =IF(E145 = CHAR(37), F145*G145/100,F145*G145) -> 0.00
B157: Total Carried Forward To Summary | H157: =SUM(H113:H156) -> 0.00
B158: SCHEDULE 8 - BACKWASH, SLUDGE AND BACKWASH RECOVERY SYSTEMS &
B159: CHAMBERS
H160: SECTION 8.4: CONCRETE (STRUCTURAL)
B161: ITEM NO | C161: PAYMENT | D161: DESCRIPTION | E161: UNIT | F161: QTY | G161: RATE | H161: AMOUNT (RAND)
A162: 23132 | B162: 8.4 | C162: SABS 1200 G | D162: CONCRETE (STRUCTURAL)
A164: 23133 | B164: 8.4.1 | C164: 8.2 | D164: FORMWORK
A166: 23141 | C166: 8.2.2 PSG8.2.2 | D166: Smooth Vertical Plane to:
A168: 23162 | B168: 8.4.1.1 | D168: Chamber walls | E168: m² | F168: 65.00 | G168: 0.00 | H168: =IF(E168 = CHAR(37), F168*G168/100,F168*G168) -> 0.00
A170: 23189 | C170: 8.2.2 PSG8.2.2 | D170: Smooth Horizontal Plane to:
A172: 23190 | B172: 8.4.1.2 | D172: Chamber roof | E172: m² | F172: 11.00 | G172: 0.00 | H172: =IF(E172 = CHAR(37), F172*G172/100,F172*G172) -> 0.00
A174: 23122 | C174: 8.2.5 | D174: Narrow Widths, smooth vertical plane, for:
A176: 23163 | B176: 8.4.1.3 | D176: 75mm high, vertical face to chamber wall kicker | E176: m | F176: 15.00 | G176: 0.00 | H176: =IF(E176 = CHAR(37), F176*G176/100,F176*G176) -> 0.00
A178: 23164 | B178: 8.4.1.4 | D178: 300mm high, vertical face for chamber floor slab | E178: m | F178: 15.00 | G178: 0.00 | H178: =IF(E178 = CHAR(37), F178*G178/100,F178*G178) -> 0.00
A180: 23165 | B180: 8.4.1.5 | D180: 200mm high, vertical side for chamber access lids | E180: m | F180: 15.00 | G180: 0.00 | H180: =IF(E180 = CHAR(37), F180*G180/100,F180*G180) -> 0.00
A182: 23166 | B182: 8.4.1.6 | D182: 200mm high, vertical face for chamber upstand beams | E182: m | F182: 15.00 | G182: 0.00 | H182: =IF(E182 = CHAR(37), F182*G182/100,F182*G182) -> 0.00
A184: 23175 | B184: 8.4.1.7 | D184: 200mm high, vertical face to chamber roof openings | E184: m | F184: 10.00 | G184: 0.00 | H184: =IF(E184 = CHAR(37), F184*G184/100,F184*G184) -> 0.00
A186: 24199 | B186: 8.4.1.8 | D186: 200m high, vertical face to pump plinth | E186: m | F186: 30.00 | G186: 0.00 | H186: =IF(E186 = CHAR(37), F186*G186/100,F186*G186) -> 0.00
A188: 23176 | C188: 8.2.5 | D188: Narrow Widths, smooth horizontal plane, for:
A190: 23177 | B190: 8.4.1.9 | D190: 100mm wide, horizontal face to chamber roof openings | E190: m | F190: 10.00 | G190: 0.00 | H190: =IF(E190 = CHAR(37), F190*G190/100,F190*G190) -> 0.00
A192: 23142 | B192: 8.4.2 | D192: FORMWORK SUNDRIES
A194: 23143 | C194: 8.2.6 PSG 8.2.6 | D194: Box out holes or form voids in:
A196: 23144 | C196: 8.2.6 (a) | D196: Thickness up to and including for small, circular diameters up to and including 300mm.
A198: 23145 | B198: 8.4.2.1 | C198: 8.2.6 (a) | D198: 0m - 0,5m thick | E198: No. | F198: 10.00 | G198: 0.00 | H198: =IF(E198 = CHAR(37), F198*G198/100,F198*G198) -> 0.00
A200: 23110 | C200: 8.2.6 (c) | D200: Thickness up to and including for large, circular diameters from 300mm to 800mm.
A202: 23111 | B202: 8.4.2.2 | C202: 8.2.6 (c) | D202: 0m - 0,5m thick | E202: No. | F202: 4.00 | G202: 0.00 | H202: =IF(E202 = CHAR(37), F202*G202/100,F202*G202) -> 0.00
A204: 23112 | C204: 8.2.6 (d) | D204: Thickness up to and including for large, other shapes, area 0,1 - 0,5 m²
B206: Total Carried Forward | H206: =SUM(H162:H205) -> 0.00
B207: SCHEDULE 8 - BACKWASH, SLUDGE AND BACKWASH RECOVERY SYSTEMS &
B208: CHAMBERS
H209: SECTION 8.4: CONCRETE (STRUCTURAL)
B210: ITEM NO | C210: PAYMENT | D210: DESCRIPTION | E210: UNIT | F210: QTY | G210: RATE | H210: AMOUNT (RAND)
B211: Brought Forward | H211: =H206 -> 0.00
A212: 23113 | B212: 8.4.2.3 | C212: 8.2.6 (d) | D212: 0m - 0,5m thick | E212: No. | F212: 4.00 | G212: 0.00 | H212: =IF(E212 = CHAR(37), F212*G212/100,F212*G212) -> 0.00
A214: 23114 | B214: 8.4.3 | C214: 8.3 PSG 8.1.2 | D214: REINFORCEMENT
A216: 23115 | B216: 8.4.3.1 | C216: 8.3.1 | D216: Mild steel bars | E216: t | F216: 0.30 | G216: 0.00 | H216: =IF(E216 = CHAR(37), F216*G216/100,F216*G216) -> 0.00
A218: 23116 | B218: 8.4.3.2 | C218: 8.3.1 | D218: High-tensile steel bars | E218: t | F218: 3.00 | G218: 0.00 | H218: =IF(E218 = CHAR(37), F218*G218/100,F218*G218) -> 0.00
A220: 23150 | B220: 8.4.3.3 | C220: 8.3.2 | D220: High-tensile weld mesh | E220: m² | F220: 15.00 | G220: 0.00 | H220: =IF(E220 = CHAR(37), F220*G220/100,F220*G220) -> 0.00
A222: 23120 | B222: 8.4.4 | C222: 8.4 | D222: CONCRETE
A224: 23117 | C224: 8.4.2 PSG 5.5 | D224: Grade Concrete (15 Mpa/19mm):
A226: 23118 | B226: 8.4.4.1 | D226: Blinding layer minimum 75mm thick for below chambers | E226: m³ | F226: 2.00 | G226: 0.00 | H226: =IF(E226 = CHAR(37), F226*G226/100,F226*G226) -> 0.00
A228: 23119 | C228: 8.4.3 PSG 5.5 | D228: Strength Concrete - Grade Concrete (25 Mpa/19mm):
A230: 23156 | B230: 8.4.4.2 | D230: Chamber floors | E230: m³ | F230: 6.00 | G230: 0.00 | H230: =IF(E230 = CHAR(37), F230*G230/100,F230*G230) -> 0.00
A232: 23157 | B232: 8.4.4.3 | D232: Chamber walls | E232: m³ | F232: 10.00 | G232: 0.00 | H232: =IF(E232 = CHAR(37), F232*G232/100,F232*G232) -> 0.00
A234: 23158 | B234: 8.4.4.4 | D234: Chamber Roof | E234: m³ | F234: 2.00 | G234: 0.00 | H234: =IF(E234 = CHAR(37), F234*G234/100,F234*G234) -> 0.00
A236: 24200 | B236: 8.4.4.5 | D236: Pump Plinths | E236: m³ | F236: 10.00 | G236: 0.00 | H236: =IF(E236 = CHAR(37), F236*G236/100,F236*G236) -> 0.00
A238: 23146 | C238: 8.4.3 PSG 5.5 PSG 8.4.7 | D238: Strength Concrete - Grade Concrete (25 Mpa/19mm) complete, for:
A240: 23147 | B240: 8.4.4.6 | D240: Removable chamber lids for chambers | E240: m³ | F240: 6.00 | G240: 0.00 | H240: =IF(E240 = CHAR(37), F240*G240/100,F240*G240) -> 0.00
A242: 23134 | B242: 8.4.5 | C242: 8.4.4 PSG 5.2.1 | D242: UNFORMED SURFACE FINISHES
A244: 23135 | C244: 8.4.4 (a) | D244: Wood-floated finish to:
A246: 23126 | B246: 8.4.5.1 | D246: Blinding | E246: m² | F246: 20.00 | G246: 0.00 | H246: =IF(E246 = CHAR(37), F246*G246/100,F246*G246) -> 0.00
A248: 23136 | C248: 8.4.4 (b) | D248: Steel-floated finish to:
A250: 23131 | B250: 8.4.5.2 | D250: Top of chamber walls | E250: m² | F250: 5.00 | G250: 0.00 | H250: =IF(E250 = CHAR(37), F250*G250/100,F250*G250) -> 0.00
A252: 23148 | B252: 8.4.5.3 | D252: Top of Chamber Roof Slab | E252: m² | F252: 8.00 | G252: 0.00 | H252: =IF(E252 = CHAR(37), F252*G252/100,F252*G252) -> 0.00
A254: 23191 | B254: 8.4.5.4 | D254: Top of Chamber Floor Slab | E254: m² | F254: 12.00 | G254: 0.00 | H254: =IF(E254 = CHAR(37), F254*G254/100,F254*G254) -> 0.00
A256: 24201 | B256: 8.4.5.5 | D256: Top of pump plinth | E256: m² | F256: 30.00 | G256: 0.00 | H256: =IF(E256 = CHAR(37), F256*G256/100,F256*G256) -> 0.00
A258: 23137 | B258: 8.4.6 | C258: 8.5 5.5.7 PSG 5.5.7 | D258: JOINTS
B259: Total Carried Forward | H259: =SUM(H211:H258) -> 0.00
B260: SCHEDULE 8 - BACKWASH, SLUDGE AND BACKWASH RECOVERY SYSTEMS &
B261: CHAMBERS
H262: SECTION 8.4: CONCRETE (STRUCTURAL)
B263: ITEM NO | C263: PAYMENT | D263: DESCRIPTION | E263: UNIT | F263: QTY | G263: RATE | H263: AMOUNT (RAND)
B264: Brought Forward | H264: =H259 -> 0.00
A265: 23138 | B265: 8.4.6.1 | D265: Seal between concrete roof slabs and walls of chamber with approved Bitumen seal putty | E265: m | F265: 20.00 | G265: 0.00 | H265: =IF(E265 = CHAR(37), F265*G265/100,F265*G265) -> 0.00
A267: 23174 | B267: 8.4.6.2 | D267: Seal chamber base to wall construction joint on external face with approved 100mm wide bitumen waterproof bandage | E267: m | F267: 15.00 | G267: 0.00 | H267: =IF(E267 = CHAR(37), F267*G267/100,F267*G267) -> 0.00
A269: 23192 | B269: 8.4.6.3 | D269: Seal chamber wall to roof construction joint on external face with approved 100mm wide bitumen waterproof bandage | E269: m | F269: 15.00 | G269: 0.00 | H269: =IF(E269 = CHAR(37), F269*G269/100,F269*G269) -> 0.00
A271: 23139 | B271: 8.4.6.4 | D271: Plug 75mm-100mm dia lifting holes x 200mm deep in chamber roof slabs with approved Bitumen seal putty | E271: No. | F271: 4.00 | G271: 0.00 | H271: =IF(E271 = CHAR(37), F271*G271/100,F271*G271) -> 0.00
A273: 23171 | B273: 8.4.7 | C273: SABS 1200L 8.2.13 | D273: PRECAST VALVE CHAMBERS AND MANHOLES
A275: 23172 | D275: The following rates are to include for the supply and installation of all ladders, sealing joints, water proof bandaging joints, air vents, handrails, access manholes & frames, GRP landings, ladders & gratings, air vents and crushed stone. All in situ and pre-cast concrete, foundations, crushed stone layers, shuttering, surface finishing, curing of concrete and ancillaries to be included and rate supplied to be for complete functional unit.
A277: 23173 | B277: 8.4.7.1 | D277: Supply and install Residue Meter Chambers COMPLETE with related items as per Dwg 60398/19, for depths up to 4,0m | E277: No. | F277: 8.00 | G277: 0.00 | H277: =IF(E277 = CHAR(37), F277*G277/100,F277*G277) -> 0.00
A279: 23188 | B279: 8.4.7.2 | D279: Supply and install DN100 IV Chambers COMPLETE with related items as per Dwg 60398/17, for depths up to 4,0m | E279: No. | F279: 2.00 | G279: 0.00 | H279: =IF(E279 = CHAR(37), F279*G279/100,F279*G279) -> 0.00
A281: 23130 | B281: 8.4.8 | D281: CASTING IN
A283: 23128 | D283: Supply all labour, plant and materials for casting of fabricated pipe specials into concrete walls of all thicknesses and wrapping with "Denso 1250/300" Tape wrapping system 600mm long to manufacturer's specifications (puddle flange not to be wrapped) inclusive for forming formwork around pipes and fixing pipes to the designated lines and levels, for:
B285: Total Carried Forward | H285: =SUM(H264:H284) -> 0.00
B286: SCHEDULE 8 - BACKWASH, SLUDGE AND BACKWASH RECOVERY SYSTEMS &
B287: CHAMBERS
H288: SECTION 8.4: CONCRETE (STRUCTURAL)
B289: ITEM NO | C289: PAYMENT | D289: DESCRIPTION | E289: UNIT | F289: QTY | G289: RATE | H289: AMOUNT (RAND)
B290: Brought Forward | H290: =H285 -> 0.00
A291: 23169 | B291: 8.4.8.1 | D291: up to DN300 | E291: No. | F291: 8.00 | G291: 0.00 | H291: =IF(E291 = CHAR(37), F291*G291/100,F291*G291) -> 0.00
A293: 23123 | C293: PSG 8.10 | D293: Supply all labour, plant and materials for casting in, inclusive of forming formwork around items and fixing to the designated lines and levels, for:
A295: 23124 | B295: 8.4.8.2 | D295: Air vents in chamber as per Detail on Dwg 60398/46 | E295: No. | F295: 2.00 | G295: 0.00 | H295: =IF(E295 = CHAR(37), F295*G295/100,F295*G295) -> 0.00
A297: 23125 | B297: 8.4.8.3 | D297: 75mm-100mm dia lifting holes cast into roof slab as per detail on Dwg 60398/21 | E297: No. | F297: 16.00 | G297: 0.00 | H297: =IF(E297 = CHAR(37), F297*G297/100,F297*G297) -> 0.00
A299: 23129 | B299: 8.4.9 | D299: MISCELLANEOUS
A301: 23152 | D301: Supply all labour, plant and materials and wrap circumference of steel pipeline with "Denso 1250/300" Tape wrapping where ordered by the Engineer, for:
A303: 23153 | B303: 8.4.9.1 | D303: up to DN300 | E303: m | F303: 10.00 | G303: 0.00 | H303: =IF(E303 = CHAR(37), F303*G303/100,F303*G303) -> 0.00
A305: 23140 | B305: 8.4.9.2 | D305: Paint chamber roof slabs with 2 coats of white road marking paint including stenciling of chamber description in black | E305: m² | F305: 15.00 | G305: 0.00 | H305: =IF(E305 = CHAR(37), F305*G305/100,F305*G305) -> 0.00
A307: 23149 | B307: 8.4.9.3 | D307: Paint chamber walls where above ground with 2 coats of white road marking paint | E307: m² | F307: 30.00 | G307: 0.00 | H307: =IF(E307 = CHAR(37), F307*G307/100,F307*G307) -> 0.00
A309: 24202 | B309: 8.4.9.4 | D309: Core through existing reinforced concrete wall for backwash recovery pipework, inclusive of grouting and waterproofing | E309: No. | F309: 2.00 | G309: 0.00 | H309: =IF(E309 = CHAR(37), F309*G309/100,F309*G309) -> 0.00
B331: Total Carried Forward To Summary | H331: =SUM(H290:H330) -> 0.00
B332: SCHEDULE 8 - BACKWASH, SLUDGE AND BACKWASH RECOVERY SYSTEMS &
B333: CHAMBERS
H334: SECTION 8.5: MEDIUM PRESSURE PIPELINES (STEEL)
B335: ITEM NO | C335: PAYMENT | D335: DESCRIPTION | E335: UNIT | F335: QTY | G335: RATE | H335: AMOUNT (RAND)
A336: 22479 | B336: 8.5 | C336: SABS 1200 L | D336: MEDIUM PRESSURE PIPELINES (STEEL)
A338: 22480 | B338: 8.5.1 | C338: PSL 8.2.1 | D338: SUPPLY, LAY AND BED PIPE
A340: 22514 | D340: Rate is inclusive of checking for holidays of external coating and internal lining if applicable, jointing of pipe in accordance with the project specification, for:
A342: 22532 | B342: 8.5.1.1 | C342: PSL 8.2.1 | D342: DN100 to DN200 Steel 4.5mm thick X42 | E342: m | F342: 50.00 | G342: 0.00 | H342: =IF(E342 = CHAR(37), F342*G342/100,F342*G342) -> 0.00
A344: 22478 | B344: 8.5.1.2 | C344: PSL 8.2.1 | D344: DN 250 to 400 Steel 4.5mm thick X42 | E344: m | F344: 50.00 | G344: 0.00 | H344: =IF(E344 = CHAR(37), F344*G344/100,F344*G344) -> 0.00
A346: 22512 | B346: 8.5.2 | D346: PREPARATION AND WELDING OF JOINTS IN X42 GRADE STEEL PIPE
A348: 22513 | D348: Rate is inclusive NDT testing of joints and reinstatement at the joint for external coating and internal lining damage in accordance with the project specification.
A350: 22481 | C350: PSL 8.2.22 | D350: Preparation and welding of bell ended joint:
A352: 22482 | B352: 8.5.2.1 | D352: DN100 to 400, 4.5mm thick | E352: No. | F352: 10.00 | G352: 0.00 | H352: =IF(E352 = CHAR(37), F352*G352/100,F352*G352) -> 0.00
A354: 22506 | C354: PSL 8.2.23 | D354: Preparation and welding of single mitred joints (Provisional):
A356: 22507 | B356: 8.5.2.2 | D356: DN100 to 400, 4.5mm thick | E356: No. | F356: 8.00 | G356: 0.00 | H356: =IF(E356 = CHAR(37), F356*G356/100,F356*G356) -> 0.00
A358: 22508 | C358: PSL 8.2.24 | D358: Preparation and welding of collar/ band welded joints (Provisional):
A360: 22509 | B360: 8.5.2.3 | D360: DN100 to 400, 4.5mm thick | E360: No. | F360: 2.00 | G360: 0.00 | H360: =IF(E360 = CHAR(37), F360*G360/100,F360*G360) -> 0.00
A362: 22510 | C362: PSL 8.2.25 | D362: Preparation of X42 grade steel pipe by means of cutting where directed by the Engineer (provisional quantity):
A364: 22511 | B364: 8.5.2.4 | D364: DN100 to 400, 4.5mm thick | E364: No. | F364: 3.00 | G364: 0.00 | H364: =IF(E364 = CHAR(37), F364*G364/100,F364*G364) -> 0.00
A366: 22505 | B366: 8.5.3 | D366: PIPE FITTINGS
A368: 22500 | C368: PSL 8.2.2 | D368: Extra-over Item above for fabrication and installation of following specials:
A370: 22501 | C370: PSL 3.4.4.2 | D370: Manufacturing of Simple and Compound Bends complete and install inclusive of cutting, welding, testing, reinstatement of external coating and internal lining, transportation and handling, for:
A372: 22515 | D372: DN100 to 400, 4.5mm thick, X42, for:
B373: Total Carried Forward | H373: =SUM(H336:H372) -> 0.00
B374: SCHEDULE 8 - BACKWASH, SLUDGE AND BACKWASH RECOVERY SYSTEMS &
B375: CHAMBERS
H376: SECTION 8.5: MEDIUM PRESSURE PIPELINES (STEEL)
B377: ITEM NO | C377: PAYMENT | D377: DESCRIPTION | E377: UNIT | F377: QTY | G377: RATE | H377: AMOUNT (RAND)
B378: Brought Forward | H378: =H373 -> 0.00
A379: 22516 | B379: 8.5.3.1 | D379: greater than 0 to 15 deg | E379: No. | F379: 3.00 | G379: 0.00 | H379: =IF(E379 = CHAR(37), F379*G379/100,F379*G379) -> 0.00
A381: 22517 | B381: 8.5.3.2 | D381: greater than 15 to 30 deg | E381: No. | F381: 2.00 | G381: 0.00 | H381: =IF(E381 = CHAR(37), F381*G381/100,F381*G381) -> 0.00
A383: 22518 | B383: 8.5.3.3 | D383: greater than 30 to 45 deg | E383: No. | F383: 2.00 | G383: 0.00 | H383: =IF(E383 = CHAR(37), F383*G383/100,F383*G383) -> 0.00
A385: 22519 | B385: 8.5.3.4 | D385: greater than 45 to 60 deg | E385: No. | F385: 2.00 | G385: 0.00 | H385: =IF(E385 = CHAR(37), F385*G385/100,F385*G385) -> 0.00
A387: 22520 | B387: 8.5.3.5 | D387: greater than 60 to 75 deg | E387: No. | F387: 2.00 | G387: 0.00 | H387: =IF(E387 = CHAR(37), F387*G387/100,F387*G387) -> 0.00
A389: 22521 | B389: 8.5.3.6 | D389: greater than 75 to 90 deg | E389: No. | F389: 2.00 | G389: 0.00 | H389: =IF(E389 = CHAR(37), F389*G389/100,F389*G389) -> 0.00
A391: 22522 | B391: 8.5.3.7 | C391: PSL 3.4.4.2 | D391: Supply Shop Drawings for fabricated steel segmented bends for approval | E391: No. | F391: 13.00 | G391: 0.00 | H391: =IF(E391 = CHAR(37), F391*G391/100,F391*G391) -> 0.00
A393: 22483 | D393: Supply and install the following steel slip on pipe flanges:
A395: 22484 | D395: Rate to include cutting of pipes, joint preparation, welding, NDT testing of joints and reinstatement at the joint for external coating and internal lining damage complete in accordance with the project specification.
A397: 22485 | D397: SANS 1123 - Table 1600/3 (PN16):
A399: 22486 | B399: 8.5.3.8 | D399: DN100 to 400, 4.5mm thick | E399: No. | F399: 10.00 | G399: 0.00 | H399: =IF(E399 = CHAR(37), F399*G399/100,F399*G399) -> 0.00
A401: 22533 | D401: Supply and install the following steel blank flanges:
A403: 22534 | D403: SANS 1123 - Table 1600/3 (PN16):
A405: 22535 | B405: 8.5.3.9 | D405: DN100 to 400, 4.5mm thick | E405: No. | F405: 10.00 | G405: 0.00 | H405: =IF(E405 = CHAR(37), F405*G405/100,F405*G405) -> 0.00
A407: 22487 | B407: 8.5.4 | C407: PSL 3.9 | D407: REPAIR:
A409: 22488 | D409: Repair, as result of damage inflicted by pipe supplier, external "3 Layer Polyethylene" coating complete inclusive of labour, materials, plant, supervision and QA/QC for defects:
A411: 22489 | B411: 8.5.4.1 | D411: DN100 to 400, 4.5mm thick | E411: m | F411: 60.00 | G411: 0.00 | H411: =IF(E411 = CHAR(37), F411*G411/100,F411*G411) -> 0.00
A413: 22490 | B413: 8.5.4.2 | D413: from 501mm² to 750mm² in area | E413: Prov No. | F413: 10.00 | G413: 0.00 | H413: =IF(E413 = CHAR(37), F413*G413/100,F413*G413) -> 0.00
A415: 22491 | B415: 8.5.4.3 | D415: from 751m² to 1000mm² in area | E415: Prov No. | F415: 5.00 | G415: 0.00 | H415: =IF(E415 = CHAR(37), F415*G415/100,F415*G415) -> 0.00
A417: 22492 | B417: 8.5.4.4 | D417: from 1001mm² to 1400mm² in area | E417: Prov No. | F417: 5.00 | G417: 0.00 | H417: =IF(E417 = CHAR(37), F417*G417/100,F417*G417) -> 0.00
B422: Total Carried Forward | H422: =SUM(H378:H421) -> 0.00
B423: SCHEDULE 8 - BACKWASH, SLUDGE AND BACKWASH RECOVERY SYSTEMS &
B424: CHAMBERS
H425: SECTION 8.5: MEDIUM PRESSURE PIPELINES (STEEL)
... 318 more rows

Sheet Schedule 9
A1: Rate=G | B1: SCHEDULE 9 - CLARIFIERS
H2: SECTION 9.1: STRUCTURAL STEELWORK
B3: ITEM NO | C3: PAYMENT | D3: DESCRIPTION | E3: UNIT | F3: QTY | G3: RATE | H3: AMOUNT (RAND)
A4: 22358 | B4: 9.1 | C4: SANS 1200 H, PSAHA, PACP | D4: STRUCTURAL STEELWORK
A6: 22359 | B6: 9.1.1 | C6: PSHA 8.3 | D6: SUPPLY AND FABRICATION
A8: 22360 | B8: 9.1.1.1 | C8: 8.3.1.1 | D8: Preparation of shop detail drawings | E8: t | F8: 12.3 | G8: 0.00 | H8: =IF(E8 = CHAR(37), F8*G8/100,F8*G8) -> 0.00
A10: 22379 | C10: 8.3.1.2 | D10: Supply and fabrication of steelwork in S355JR steel complete with all necessary cleats, brackets, gussets, base plates, packs, grade 8.8 bolts, holes, welding, shaping, etc.
A12: 22387 | B12: 9.1.1.2 | D12: Beams over clarifiers | E12: t | F12: 0.4 | G12: 0.00 | H12: =IF(E12 = CHAR(37), F12*G12/100,F12*G12) -> 0.00
A14: 22381 | B14: 9.1.1.3 | D14: Walkway over clarifiers | E14: t | F14: 2.4 | G14: 0.00 | H14: =IF(E14 = CHAR(37), F14*G14/100,F14*G14) -> 0.00
A16: 22361 | B16: 9.1.2 | C16: PSHA 8.3 | D16: DELIVERY
A18: 22362 | B18: 9.1.2.1 | C18: 8.3.2.1 | D18: Normal load | E18: t | F18: 3.0 | G18: 0.00 | H18: =IF(E18 = CHAR(37), F18*G18/100,F18*G18) -> 0.00
A20: 22363 | B20: 9.1.3 | C20: PSHA 8.3 | D20: ERECTION
A22: 22364 | B22: 9.1.3.1 | C22: 8.3.3 | D22: Offloading, stacking on site, and erection of steelwork | E22: t | F22: 3.0 | G22: 0.00 | H22: =IF(E22 = CHAR(37), F22*G22/100,F22*G22) -> 0.00
A24: 22365 | B24: 9.1.4 | C24: PSHA 8.3 | D24: SITE WELDING
A26: 22366 | B26: 9.1.4.1 | C26: 8.3.5 | D26: Site weld walkway items as appropriate | E26: m | F26: 60.0 | G26: 0.00 | H26: =IF(E26 = CHAR(37), F26*G26/100,F26*G26) -> 0.00
A28: 22367 | B28: 9.1.5 | C28: PSHA 8.3 | D28: HANDRAILS
A30: 22368 | C30: 8.3.7 b) | D30: Supply, apply corrosion protection, paint, and install steel handrail assembly complete with stanchions, bends and ends with chemical anchors to detail on dwg 60398/12
A32: 22369 | B32: 9.1.5.1 | C32: 8.3.7 b) 1) | D32: Horizontal (hand and knee rails) | E32: m | F32: 200.0 | G32: 0.00 | H32: =IF(E32 = CHAR(37), F32*G32/100,F32*G32) -> 0.00
A34: 22370 | B34: 9.1.5.2 | C34: 8.3.7 b) 2) | D34: Sloping | E34: m | F34: 50.0 | G34: 0.00 | H34: =IF(E34 = CHAR(37), F34*G34/100,F34*G34) -> 0.00
A36: 22371 | B36: 9.1.5.3 | C36: 8.3.7 b) 3) | D36: Shaped ends and bends | E36: No. | F36: 40.0 | G36: 0.00 | H36: =IF(E36 = CHAR(37), F36*G36/100,F36*G36) -> 0.00
A38: 22391 | B38: 9.1.5.4 | D38: Allow for a life saving floatation device to be mounted on handrailing. To include mounting and life saving device | E38: No. | F38: 3.0 | G38: 0.00 | H38: =IF(E38 = CHAR(37), F38*G38/100,F38*G38) -> 0.00
A40: 22376 | B40: 9.1.6 | C40: PSHA 8.3 | D40: WALKWAYS
A42: 22355 | C42: 8.3.9 | D42: Open grid floors in S355JR steel including access hatch as indicated on drawing 60398/12
B46: Total Carried Forward | H46: =SUM(H4:H45) -> 0.00
B47: SCHEDULE 9 - CLARIFIERS
H48: SECTION 9.1: STRUCTURAL STEELWORK
B49: ITEM NO | C49: PAYMENT | D49: DESCRIPTION | E49: UNIT | F49: QTY | G49: RATE | H49: AMOUNT (RAND)
B50: Brought Forward | H50: =H46 -> 0.00
A51: 22390 | B51: 9.1.6.1 | D51: Design, prepare shop detail drawings, supply all materials, apply corrosion protection, and install, open grated walkway and steps complete over clarifiers and fixed to concrete with anchors | E51: Sum | F51: 1.0 | G51: 0.00 | H51: =IF(E51 = CHAR(37), F51*G51/100,F51*G51) -> 0.00
B104: Total Carried Forward To Summary | H104: =SUM(H50:H103) -> 0.00
B105: SCHEDULE 9 - CLARIFIERS
H106: SECTION 9.2: OTHER
B107: ITEM NO | C107: PAYMENT | D107: DESCRIPTION | E107: UNIT | F107: QTY | G107: RATE | H107: AMOUNT (RAND)
A108: 20420 | B108: 9.2 | D108: OTHER
A110: 20421 | B110: 9.2.1 | D110: Provisional sum for the design, supply, associated ancillary works and installation of new pipework within Clarifiers, including associated supports and brackets achored to clarifier walls. | E110: Prov Sum | F110: 1.00 | G110: 250,000.00 | H110: 250,000.00
A112: 23809 | B112: 9.2.2 | D112: Overheads & profit on above item | E112: % | F112: =H110 -> 250,000.00 | G112: 0.00 | H112: =IF(E112 = CHAR(37), F112*G112/100,F112*G112) -> 0.00
A114: 23297 | B114: 9.2.3 | D114: Provisional sum for the design, supply, associated ancillary works and installation of brickwork within main inlet channel, including associated achorage to channel walls. | E114: Prov Sum | F114: 1.00 | G114: 10,000.00 | H114: 10,000.00
A116: 23810 | B116: 9.2.4 | D116: Overheads & profit on above item | E116: % | F116: =H114 -> 10,000.00 | G116: 0.00 | H116: =IF(E116 = CHAR(37), F116*G116/100,F116*G116) -> 0.00
A118: 24175 | B118: 9.2.5 | D118: Provisional sum for the design, supply, associated ancillary works and installation of an overflow from the clear wate reservoir to the backwash recovery tank. | E118: Prov Sum | F118: 1.00 | G118: 75,000.00 | H118: 75,000.00
A120: 24176 | B120: 9.2.6 | D120: Overheads & profit on above item | E120: % | F120: =H118 -> 75,000.00 | G120: 0.00 | H120: =IF(E120 = CHAR(37), F120*G120/100,F120*G120) -> 0.00
A122: 24184 | B122: 9.2.7 | C122: SANS1200H PSH | D122: Design, supply and install steel walkway above raw water channel between clarifiers inclusive of associated supports, frame, coating and ancillary works | E122: m² | F122: 45.00 | G122: 0.00 | H122: =IF(E122 = CHAR(37), F122*G122/100,F122*G122) -> 0.00
B150: Total Carried Forward To Summary | H150: =SUM(H108:H149) -> 335,000.00
B151: SCHEDULE 9 - CLARIFIERS
D152: SUMMARY OF SECTIONS
C153: SECTION | D153: DESCRIPTION | H153: AMOUNT (RAND)
C154: 9.1 | D154: SECTION 9.1: STRUCTURAL STEELWORK | H154: =H104 -> 0.00
C156: 9.2 | D156: SECTION 9.2: OTHER | H156: =H150 -> 335,000.00
C212: Total Carried Forward To Summary Of Schedules | D212: Total Carried Forward To Summary Of Schedules | H212: =SUM(H154:H211) -> 335,000.00

Sheet Schedule 10
A1: Rate=G | B1: SCHEDULE 10 - BACKWASH RECOVERY TANK
H2: SECTION 10.1: STRUCTURAL STEELWORK (SUNDRY ITEMS) AND GRP
B3: ITEM NO | C3: PAYMENT | D3: DESCRIPTION | E3: UNIT | F3: QTY | G3: RATE | H3: AMOUNT (RAND)
A4: 23802 | B4: 10.1 | C4: SABS 1200 H | D4: STRUCTURAL STEELWORK (SUNDRY ITEMS) AND GRP
A6: 23803 | B6: 10.1.1 | D6: SUNDRY ITEMS
A8: 23804 | B8: 10.1.1.1 | D8: Supply and install steel staircase next to tank 1000mm high | E8: No. | F8: 1.00 | G8: 0.00 | H8: =IF(E8 = CHAR(37), F8*G8/100,F8*G8) -> 0.00
A10: 23808 | B10: 10.1.1.2 | D10: Design, supply and install steel walkway above backwash recovery tank inclusive of associated supports, frame, coating and ancillary works (3300mm x 21600mm) | E10: m² | F10: 80.00 | G10: 0.00 | H10: =IF(E10 = CHAR(37), F10*G10/100,F10*G10) -> 0.00
B57: Total Carried Forward To Summary | H57: =SUM(H4:H56) -> 0.00
B58: SCHEDULE 10 - BACKWASH RECOVERY TANK
H59: SECTION 10.2: OTHER
B60: ITEM NO | C60: PAYMENT | D60: DESCRIPTION | E60: UNIT | F60: QTY | G60: RATE | H60: AMOUNT (RAND)
A61: 23261 | B61: 10.2 | D61: OTHER
A63: 23262 | B63: 10.2.1 | D63: Provisional sum for increase in overflow from backwash recovery tank | E63: Prov Sum | F63: 1.00 | G63: 15,000.00 | H63: 15,000.00
A65: 23800 | B65: 10.2.2 | D65: Overheads and Profit on the above item | E65: % | F65: =H63 -> 15,000.00 | G65: 0.00 | H65: =IF(E65 = CHAR(37), F65*G65/100,F65*G65) -> 0.00
B119: Total Carried Forward To Summary | H119: =SUM(H61:H118) -> 15,000.00
B120: SCHEDULE 10 - BACKWASH RECOVERY TANK
H121: SECTION 10.3: PIPEWORK ASSEMBLIES
B122: ITEM NO | C122: PAYMENT | D122: DESCRIPTION | E122: UNIT | F122: QTY | G122: RATE | H122: AMOUNT (RAND)
A123: 23342 | B123: 10.3 | C123: SANS 1200 L, PSL | D123: PIPEWORK ASSEMBLIES
A125: 23324 | D125: Fabricate, supply and install valves, spool pieces, fittings and bends complete inclusive of all collar/ crotch plate reinforcing with internal and external coating as per specifications. Rates to include for all bolts, nuts, gaskets and jointing material, testing, holiday detection, radiographic inspection of field welds, preparation for welding where required and the repair and making good of all linings and coatings.
A127: 23359 | B127: 10.3.1 | C127: 8.2.5 PSL 8.2.5 | D127: DN100 DRAINAGE PIPEWORK FROM FILTER PLENUM
A129: 23355 | D129: All flanges to be supplied and as per SANS 1123 Table 1600/3 unless otherwise shown or specified
A131: 23343 | B131: 10.3.1.1 | D131: DN100 Wedge Gate Valve PN16 with hand wheel and extended spindle | E131: No. | F131: 6.0 | G131: 0.00 | H131: =IF(E131 = CHAR(37), F131*G131/100,F131*G131) -> 0.00
A133: 23344 | B133: 10.3.1.2 | D133: DN100 90 degree (ANSI) B16.9 long radius bend with 300mm long spool piece welded to one end and other end flanged, flange to match valve (Final Lengths to be determined on site) | E133: No. | F133: 6.0 | G133: 0.00 | H133: =IF(E133 = CHAR(37), F133*G133/100,F133*G133) -> 0.00
B162: Total Carried Forward To Summary | H162: =SUM(H123:H161) -> 0.00
B163: SCHEDULE 10 - BACKWASH RECOVERY TANK
D164: SUMMARY OF SECTIONS
C165: SECTION | D165: DESCRIPTION | H165: AMOUNT (RAND)
C166: 10.1 | D166: SECTION 10.1: STRUCTURAL STEELWORK (SUNDRY ITEMS) AND GRP | H166: =H57 -> 0.00
C168: 10.2 | D168: SECTION 10.2: OTHER | H168: =H119 -> 15,000.00
C170: 10.3 | D170: SECTION 10.3: PIPEWORK ASSEMBLIES | H170: =H162 -> 0.00
C224: Total Carried Forward To Summary Of Schedules | D224: Total Carried Forward To Summary Of Schedules | H224: =SUM(H166:H223) -> 15,000.00

Sheet Schedule 11
A1: Rate=G | B1: SCHEDULE 11 - ROADS
H2: SECTION 11.1: EARTHWORKS (ROADS, SUBGRADE)
B3: ITEM NO | C3: PAYMENT | D3: DESCRIPTION | E3: UNIT | F3: QTY | G3: RATE | H3: AMOUNT (RAND)
A4: 18620 | B4: 11.1 | C4: SABS 1200 DM | D4: EARTHWORKS
A6: 18621 | B6: 11.1.1 | D6: ROAD-BED PREPARATION
A8: 18622 | C8: 8.3.3 (a) | D8: Road-bed preparation and compaction of material to:
A10: 18623 | B10: 11.1.1.1 | C10: 8.3.3 (a) (1) | D10: Compact to 93% MOD AASHTO maximum density | E10: m³ | F10: 100.00 | G10: 0.00 | H10: =IF(E10 = CHAR(37), F10*G10/100,F10*G10) -> 0.00
A12: 18625 | B12: 11.1.2 | D12: EARTHWORKS
A14: 20834 | C14: 8.3.4 | D14: Cut to fill
A16: 20835 | B16: 11.1.2.1 | D16: Compact to 93% MOD AASHTO maximum density | E16: m³ | F16: 110.00 | G16: 0.00 | H16: =IF(E16 = CHAR(37), F16*G16/100,F16*G16) -> 0.00
A18: 20836 | C18: 8.3.4 | D18: Borrow to fill
A20: 20837 | B20: 11.1.2.2 | D20: Compact to 93% MOD AASHTO maximum density | E20: m³ | F20: 50.00 | G20: 0.00 | H20: =IF(E20 = CHAR(37), F20*G20/100,F20*G20) -> 0.00
A22: 18616 | C22: 8.3.7 | D22: Cut to spoil (Provisional):
A24: 18617 | B24: 11.1.2.3 | C24: 8.3.7(a) | D24: a) Soft excavation | E24: m³ | F24: 160.00 | G24: 0.00 | H24: =IF(E24 = CHAR(37), F24*G24/100,F24*G24) -> 0.00
A26: 18618 | B26: 11.1.2.4 | C26: 8.3.7(b) | D26: b) Intermediate excavation | E26: m³ | F26: 150.00 | G26: 0.00 | H26: =IF(E26 = CHAR(37), F26*G26/100,F26*G26) -> 0.00
A28: 18619 | B28: 11.1.2.5 | C28: 8.3.7(c) | D28: c) Hard excavation | E28: m³ | F28: 10.00 | G28: 0.00 | H28: =IF(E28 = CHAR(37), F28*G28/100,F28*G28) -> 0.00
B60: Total Carried Forward To Summary | H60: =SUM(H4:H59) -> 0.00
B61: SCHEDULE 11 - ROADS
H62: SECTION 11.2: ROAD REINSTATEMENT
B63: ITEM NO | C63: PAYMENT | D63: DESCRIPTION | E63: UNIT | F63: QTY | G63: RATE | H63: AMOUNT (RAND)
A64: 18635 | B64: 11.2 | D64: ACCESS ROAD REINSTATEMENT
A66: 18615 | B66: 11.2.1 | C66: SABS 1200 ME PSME | D66: SELECTED LAYER/SUBBASE
A68: 18624 | B68: 11.2.1.1 | D68: Construct 200mm thick G7 subbase course with material from commercial sources and compact to 95% MOD AASHTO | E68: m³ | F68: 130.00 | G68: 0.00 | H68: =IF(E68 = CHAR(37), F68*G68/100,F68*G68) -> 0.00
A70: 18636 | B70: 11.2.2 | C70: SABS 1200 MF PSMF | D70: BASE/ WEARING COURSE
A72: 18637 | B72: 11.2.2.1 | C72: 8.3.3 | D72: Construct 100mm thick G2 base course with material from commercial sources and compact to 98% MOD AASHTO | E72: m³ | F72: 70.00 | G72: 0.00 | H72: =IF(E72 = CHAR(37), F72*G72/100,F72*G72) -> 0.00
B116: Total Carried Forward To Summary | H116: =SUM(H64:H115) -> 0.00
B117: SCHEDULE 11 - ROADS
H118: SECTION 11.3: SURFACING
B119: ITEM NO | C119: PAYMENT | D119: DESCRIPTION | E119: UNIT | F119: QTY | G119: RATE | H119: AMOUNT (RAND)
A120: 18638 | B120: 11.3 | C120: SANS 1200MH | D120: SURFACING
A122: 18639 | B122: 11.3.1 | C122: SANS 1200 MH PSMH | D122: ASPHALT SURFACING
A124: 18640 | D124: Continuously medium graded asphalt surfacing using 35/50 Pen. Grade bitumen:
A126: 18641 | B126: 11.3.1.1 | C126: PSMH 8.5.4 | D126: 40mm to roads | E126: m² | F126: 650.00 | G126: 0.00 | H126: =IF(E126 = CHAR(37), F126*G126/100,F126*G126) -> 0.00
A128: 20887 | B128: 11.3.1.2 | C128: 8.5.1 | D128: Prime Coat (MC30 cutback bitumen) | E128: m² | F128: 650.00 | G128: 0.00 | H128: =IF(E128 = CHAR(37), F128*G128/100,F128*G128) -> 0.00
A130: 20888 | B130: 11.3.1.3 | C130: 8.5.3 PSMH 3.3 | D130: Tack coat | E130: m² | F130: 650.00 | G130: 0.00 | H130: =IF(E130 = CHAR(37), F130*G130/100,F130*G130) -> 0.00
B176: Total Carried Forward To Summary | H176: =SUM(H120:H175) -> 0.00
B177: SCHEDULE 11 - ROADS
H178: SECTION 11.4: CONCRETE KERBING AND CHANNELLING
B179: ITEM NO | C179: PAYMENT | D179: DESCRIPTION | E179: UNIT | F179: QTY | G179: RATE | H179: AMOUNT (RAND)
A180: 18627 | B180: 11.4 | C180: SANS 1200 MK | D180: CONCRETE KERBING AND CHANNELLING
A182: 18626 | B182: 11.4.1 | D182: KERBING
A184: 18628 | C184: 8.2.1 | D184: Fig 6 barrier kerb and cast insitu 25Mpa filler/ channel complete as per detail with continuous 120 x 100mm haunch, for:
A186: 18629 | B186: 11.4.1.1 | D186: Straight kerbing and radii in excess of 20m | E186: m | F186: 260.00 | G186: 0.00 | H186: =IF(E186 = CHAR(37), F186*G186/100,F186*G186) -> 0.00
A188: 18630 | B188: 11.4.1.2 | D188: Radii that are greater than 4.0m - 20m in radius | E188: m | F188: 50.00 | G188: 0.00 | H188: =IF(E188 = CHAR(37), F188*G188/100,F188*G188) -> 0.00
A190: 18631 | B190: 11.4.1.3 | D190: Radii that are greater than 1.0m - 4.0m in radius (Provisional Quantity) | E190: m | F190: 25.00 | G190: 0.00 | H190: =IF(E190 = CHAR(37), F190*G190/100,F190*G190) -> 0.00
A192: 18632 | B192: 11.4.2 | C192: 8.2.6 | D192: ANCILLARIES
A194: 18633 | D194: Cast in-situ transitions:
A196: 18634 | B196: 11.4.2.1 | C196: 8.2.6.2 | D196: Concrete, specified strength 25MPa complete with formwork and reinforcing mesh | E196: m³ | F196: 20.00 | G196: 0.00 | H196: =IF(E196 = CHAR(37), F196*G196/100,F196*G196) -> 0.00
B231: Total Carried Forward To Summary | H231: =SUM(H180:H230) -> 0.00
B232: SCHEDULE 11 - ROADS
D233: SUMMARY OF SECTIONS
C234: SECTION | D234: DESCRIPTION | H234: AMOUNT (RAND)
C235: 11.1 | D235: SECTION 11.1: EARTHWORKS (ROADS, SUBGRADE) | H235: =H60 -> 0.00
C237: 11.2 | D237: SECTION 11.2: ROAD REINSTATEMENT | H237: =H116 -> 0.00
C239: 11.3 | D239: SECTION 11.3: SURFACING | H239: =H176 -> 0.00
C241: 11.4 | D241: SECTION 11.4: CONCRETE KERBING AND CHANNELLING | H241: =H231 -> 0.00
C293: Total Carried Forward To Summary Of Schedules | D293: Total Carried Forward To Summary Of Schedules | H293: =SUM(H235:H292) -> 0.00

Sheet Schedule 12
A1: Rate=G | B1: SCHEDULE 12 - STORMWATER
H2: SECTION 12.1: STORMWATER
B3: ITEM NO | C3: PAYMENT | D3: DESCRIPTION | E3: UNIT | F3: QTY | G3: RATE | H3: AMOUNT (RAND)
A4: 18892 | B4: 12.1 | C4: SABS 1200LE | D4: STORMWATER DRAINAGE
A6: 18893 | B6: 12.1.1 | D6: PIPES
A8: 18897 | D8: Supply and lay stormwater drainage pipes for the following:
A10: 18894 | B10: 12.1.1.1 | C10: PSLE 8.2.1 | D10: Supply and Install up to 110mm NB heavy duty solid uPVC pipes laid to fall complete with couplings, bends and tees. | E10: m | F10: 50.00 | G10: 0.00 | H10: =IF(E10 = CHAR(37), F10*G10/100,F10*G10) -> 0.00
A12: 18898 | B12: 12.1.1.2 | C12: PSLE 8.2.1 | D12: Supply and Install 160mm NB heavy duty solid uPVC pipes laid to fall complete with couplings, bends and tees. | E12: m | F12: 30.00 | G12: 0.00 | H12: =IF(E12 = CHAR(37), F12*G12/100,F12*G12) -> 0.00
A14: 18899 | B14: 12.1.1.3 | C14: PSLE 8.2.1 | D14: Supply and Install 200 to 350mm NB heavy duty solid uPVC pipes laid to fall complete with couplings, bends and tees. | E14: m | F14: 30.00 | G14: 0.00 | H14: =IF(E14 = CHAR(37), F14*G14/100,F14*G14) -> 0.00
A16: 18895 | B16: 12.1.2 | D16: ACCESSORIES
A18: 18896 | B18: 12.1.2.1 | C18: PSLE 8.2.15 | D18: Install stormwater chambers inclusive of grating or MH cover as directed by engineer on site as per Dwg 60398/46 | E18: No. | F18: 8.00 | G18: 0.00 | H18: =IF(E18 = CHAR(37), F18*G18/100,F18*G18) -> 0.00
A20: 18901 | B20: 12.1.2.2 | C20: PSLE 8.2.16 | D20: Install stormwater head wall for stormwater outlets as directed by engineer on site as per Dwg 60398/46(All sizes) | E20: No. | F20: 4.00 | G20: 0.00 | H20: =IF(E20 = CHAR(37), F20*G20/100,F20*G20) -> 0.00
A22: 20864 | B22: 12.1.2.3 | D22: Supply and construct 570mm wide Kalvis Type 01 water channel inclusive of all jointing and ground preparation for straight sections. Rate inclusive of grating. | E22: m | F22: 50.00 | G22: 0.00 | H22: =IF(E22 = CHAR(37), F22*G22/100,F22*G22) -> 0.00
A24: 23508 | B24: 12.1.2.4 | D24: Supply and construct 650mm wide Kalvis Type 02 water channel inclusive of all jointing and ground preparation for straight sections. | E24: m | F24: 50.00 | G24: 0.00 | H24: =IF(E24 = CHAR(37), F24*G24/100,F24*G24) -> 0.00
A26: 23509 | B26: 12.1.2.5 | D26: Supply and construct 1000mm x 570mm x 300mm Kalvis Type 01 water channel inclusive of all jointing and ground preparation for straight sections and inclusive of GMS grating. | E26: m | F26: 50.00 | G26: 0.00 | H26: =IF(E26 = CHAR(37), F26*G26/100,F26*G26) -> 0.00
B37: Total Carried Forward To Summary | H37: =SUM(H4:H36) -> 0.00
B38: SCHEDULE 12 - STORMWATER
H39: SECTION 12.2: EARTHWORKS (PIPE TRENCHES)
B40: ITEM NO | C40: PAYMENT | D40: DESCRIPTION | E40: UNIT | F40: QTY | G40: RATE | H40: AMOUNT (RAND)
A41: 20838 | B41: 12.2 | C41: SABS1200 DB | D41: EARTHWORKS (PIPE TRENCHES)
A43: 20839 | B43: 12.2.1 | C43: PSDB 5.2 8.3.2 | D43: EXCAVATION
A45: 20844 | C45: 8.3.2 (a) PSDB 8.3.2 (a) | D45: Excavate in all materials for pipe trenches, backfill, compact to specification and dispose of surplus/unsuitable material, for pipes:
A47: 20845 | D47: Up to DN350 pipeline for a total trench depth
A49: 20846 | B49: 12.2.1.1 | D49: Up to 3.0m | E49: m³ | F49: 150.00 | G49: 0.00 | H49: =IF(E49 = CHAR(37), F49*G49/100,F49*G49) -> 0.00
A51: 20847 | C51: 8.3.2 (b) PSDB 8.3.2 (b) | D51: Extra-over Item 12.2.1.1 for excavation in (All provisional):
A53: 20848 | B53: 12.2.1.2 | D53: 1) Intermediate excavation | E53: m³ | F53: 50.00 | G53: 0.00 | H53: =IF(E53 = CHAR(37), F53*G53/100,F53*G53) -> 0.00
A55: 20849 | B55: 12.2.1.3 | D55: 2) Hard rock excavation | E55: m³ | F55: 20.00 | G55: 0.00 | H55: =IF(E55 = CHAR(37), F55*G55/100,F55*G55) -> 0.00
A57: 20850 | B57: 12.2.1.4 | D57: 3) Boulder Excavation class A (Provisional) | E57: m³ | F57: 5.00 | G57: 0.00 | H57: =IF(E57 = CHAR(37), F57*G57/100,F57*G57) -> 0.00
A59: 20851 | B59: 12.2.1.5 | D59: 4) Boulder Excavation class B (Provisional) | E59: m³ | F59: 5.00 | G59: 0.00 | H59: =IF(E59 = CHAR(37), F59*G59/100,F59*G59) -> 0.00
A61: 20852 | B61: 12.2.1.6 | D61: Hand excavation and backfill where ordered by the Engineer (Provisional Quantity) | E61: m³ | F61: 10.00 | G61: 0.00 | H61: =IF(E61 = CHAR(37), F61*G61/100,F61*G61) -> 0.00
A63: 20853 | B63: 12.2.1.7 | C63: 8.3.2 (c) | D63: Excavate and dispose of unsuitable material from trench bottom (Provisional) | E63: m³ | F63: 10.00 | G63: 0.00 | H63: =IF(E63 = CHAR(37), F63*G63/100,F63*G63) -> 0.00
A65: 20854 | B65: 12.2.1.8 | D65: Hand excavation to prove existing services (Provisional) | E65: m³ | F65: 10.00 | G65: 0.00 | H65: =IF(E65 = CHAR(37), F65*G65/100,F65*G65) -> 0.00
A67: 20840 | B67: 12.2.2 | C67: 8.3.3 | D67: EXCAVATION ANCILLARIES
A69: 20841 | D69: Make up deficiency in backfill material (Provisional)
A71: 20842 | B71: 12.2.2.1 | C71: 8.3.3.1 (a) | D71: a) from other necessary excavations on site | E71: m³ | F71: 50.00 | G71: 0.00 | H71: =IF(E71 = CHAR(37), F71*G71/100,F71*G71) -> 0.00
A73: 20843 | B73: 12.2.2.2 | C73: 8.3.3.1 (c) | D73: b) by importation from commercial sources | E73: m³ | F73: 50.00 | G73: 0.00 | H73: =IF(E73 = CHAR(37), F73*G73/100,F73*G73) -> 0.00
B86: Total Carried Forward To Summary | H86: =SUM(H41:H85) -> 0.00
B87: SCHEDULE 12 - STORMWATER
H88: SECTION 12.3: BEDDING
B89: ITEM NO | C89: PAYMENT | D89: DESCRIPTION | E89: UNIT | F89: QTY | G89: RATE | H89: AMOUNT (RAND)
A90: 20855 | B90: 12.3 | C90: SABS 1200 LB | D90: BEDDING (PIPES)
A92: 20863 | B92: 12.3.1 | C92: PSLB 8.2.1 | D92: Provision of bedding from trench excavations:
A94: 20856 | B94: 12.3.1.1 | D94: Selected granular material for 200mm bedding cradle below pipe invert | E94: m³ | F94: 15.00 | G94: 0.00 | H94: =IF(E94 = CHAR(37), F94*G94/100,F94*G94) -> 0.00
A96: 20857 | B96: 12.3.1.2 | D96: Selected granular material for fill blanket to 300mm above pipe crown | E96: m³ | F96: 25.00 | G96: 0.00 | H96: =IF(E96 = CHAR(37), F96*G96/100,F96*G96) -> 0.00
A98: 20859 | B98: 12.3.1.3 | C98: PSLB 8.2.1.1 | D98: Extra Over for screening of material from the trench excavation, to achieve grading suitable to comply with the bedding and blanket material specification (Provisional Quantity) | E98: m³ | F98: 10.00 | G98: 0.00 | H98: =IF(E98 = CHAR(37), F98*G98/100,F98*G98) -> 0.00
A100: 20860 | B100: 12.3.2 | C100: PSLB 8.2.2 | D100: Supply only of bedding by importation:
A102: 20861 | C102: PSLB 8.2.2.3 | D102: From commercial sources:
A104: 20862 | B104: 12.3.2.1 | D104: a) Selected granular material for 200mm bedding cradle below pipe invert | E104: m³ | F104: 15.00 | G104: 0.00 | H104: =IF(E104 = CHAR(37), F104*G104/100,F104*G104) -> 0.00
A106: 20858 | B106: 12.3.2.2 | D106: b) Selected granular material for fill blanket to 300mm above pipe crown | E106: m³ | F106: 25.00 | G106: 0.00 | H106: =IF(E106 = CHAR(37), F106*G106/100,F106*G106) -> 0.00
B140: Total Carried Forward To Summary | H140: =SUM(H90:H139) -> 0.00
B141: SCHEDULE 12 - STORMWATER
D142: SUMMARY OF SECTIONS
C143: SECTION | D143: DESCRIPTION | H143: AMOUNT (RAND)
C144: 12.1 | D144: SECTION 12.1: STORMWATER | H144: =H37 -> 0.00
C146: 12.2 | D146: SECTION 12.2: EARTHWORKS (PIPE TRENCHES) | H146: =H86 -> 0.00
C148: 12.3 | D148: SECTION 12.3: BEDDING | H148: =H140 -> 0.00
C202: Total Carried Forward To Summary Of Schedules | D202: Total Carried Forward To Summary Of Schedules | H202: =SUM(H144:H201) -> 0.00

Sheet Schedule 13
A1: Rate=G | B1: SCHEDULE 13 - MISCELLANEOUS WORKS
H2: SECTION 13.1: SITE CLEARANCE
B3: ITEM NO | C3: PAYMENT | D3: DESCRIPTION | E3: UNIT | F3: QTY | G3: RATE | H3: AMOUNT (RAND)
A4: 16907 | B4: 13.1 | C4: SANS 1200 C, PSC | D4: SITE CLEARANCE
A6: 16762 | B6: 13.1.1 | D6: CLEAR SITE
A8: 16908 | C8: 8.2.1 | D8: Clear and grub:
A10: 16909 | B10: 13.1.1.1 | D10: Water Treatment Works site | E10: m² | F10: 500.00 | G10: 0.00 | H10: =IF(E10 = CHAR(37), F10*G10/100,F10*G10) -> 0.00
A12: 16910 | C12: 8.2.4 PSC 8.2.4 | D12: Re-clear surfaces where directed by Engineer (Provisional):
A14: 16911 | B14: 13.1.1.2 | D14: Water Treatment Works site | E14: m² | F14: 50.00 | G14: 0.00 | H14: =IF(E14 = CHAR(37), F14*G14/100,F14*G14) -> 0.00
A16: 16763 | B16: 13.1.2 | D16: REMOVE TOPSOIL AND OTHER SURFACES
A18: 16760 | C18: 8.2.10 PSC 8.2.10 | D18: Remove topsoil, stockpile, maintain and dispose of surplus to nominal depth of 150mm, for:
A20: 16761 | B20: 13.1.2.1 | D20: Fill embankments and designated areas | E20: m³ | F20: 20.00 | G20: 0.00 | H20: =IF(E20 = CHAR(37), F20*G20/100,F20*G20) -> 0.00
A22: 16645 | C22: PSC 8.2.11 | D22: Saw cutting of existing asphalt of thickness:
A24: 16913 | B24: 13.1.2.2 | D24: 30 - 60mm | E24: m | F24: 50.00 | G24: 0.00 | H24: =IF(E24 = CHAR(37), F24*G24/100,F24*G24) -> 0.00
A26: 16914 | B26: 13.1.2.3 | C26: PSC 8.2.13 | D26: Remove existing road asphalt surfacing and spoil at approved disposal sites (25 to 45mm thickness) | E26: m² | F26: 150.00 | G26: 0.00 | H26: =IF(E26 = CHAR(37), F26*G26/100,F26*G26) -> 0.00
A28: 16915 | C28: PSC 8.2.14 | D28: Remove existing gravel layer works to spoil
A30: 16916 | B30: 13.1.2.4 | D30: Gravel and crushed stone layer works to roads | E30: m³ | F30: 30.00 | G30: 0.00 | H30: =IF(E30 = CHAR(37), F30*G30/100,F30*G30) -> 0.00
A32: 16755 | C32: PSC 8.2.18 | D32: Remove along edges of road, driveways and footway channel (provisional quantity):
A34: 16754 | B34: 13.1.2.5 | D34: a) All pre-cast concrete kerbing and channelling | E34: m | F34: 20.00 | G34: 0.00 | H34: =IF(E34 = CHAR(37), F34*G34/100,F34*G34) -> 0.00
B50: Total Carried Forward To Summary | H50: =SUM(H4:H49) -> 0.00
B51: SCHEDULE 13 - MISCELLANEOUS WORKS
H52: SECTION 13.2: GABIONS AND PITCHING
B53: ITEM NO | C53: PAYMENT | D53: DESCRIPTION | E53: UNIT | F53: QTY | G53: RATE | H53: AMOUNT (RAND)
A54: 16943 | B54: 13.2 | C54: SANS 1200 DK | D54: GABIONS AND PITCHING
A56: 16944 | B56: 13.2.1 | C56: 8.2.1 | D56: SURFACE PREPARATION
A58: 16945 | D58: Surface preparation for bedding:
A60: 16890 | B60: 13.2.1.1 | C60: 8.2.1(a) | D60: Cavities filled with approved excavated material or rock (Provisional Quantity) | E60: m² | F60: 15.00 | G60: 0.00 | H60: =IF(E60 = CHAR(37), F60*G60/100,F60*G60) -> 0.00
A62: 16717 | B62: 13.2.1.2 | C62: 8.2.1(b) | D62: Cavities filled with 15MPa concrete | E62: m² | F62: 15.00 | G62: 0.00 | H62: =IF(E62 = CHAR(37), F62*G62/100,F62*G62) -> 0.00
A64: 16718 | B64: 13.2.2 | C64: PSDK 8.2.8 | D64: EXCAVATION
A66: 16719 | D66: Excavate in all materials, backfill, compact, and dispose of surplus/unsuitable material:
A68: 16651 | B68: 13.2.2.1 | D68: For gabions and reno mattress baskets | E68: m³ | F68: 10.00 | G68: 0.00 | H68: =IF(E68 = CHAR(37), F68*G68/100,F68*G68) -> 0.00
A70: 16652 | B70: 13.2.3 | C70: PSDK 3.1.2 | D70: GABIONS
A72: 16653 | C72: 8.2.2 PSDK 8.2.2 | D72: Supply and Construct gabions complete with hand rock using double twisted hexagonal mesh type 80 with 3.4mm OD frame wire and 2.7mm OD mesh wire to SANS 1580:2005 coated in Galfan (provisional quantities), for:
A74: 16654 | B74: 13.2.3.1 | D74: Reno Mattresses of depth 0,3 m with diaphragms providing 2,0 m x 1,0 m cells | E74: m³ | F74: 6.00 | G74: 0.00 | H74: =IF(E74 = CHAR(37), F74*G74/100,F74*G74) -> 0.00
A76: 16709 | B76: 13.2.3.2 | D76: Gabions of section 2,0 m x 1,0 m x 0,5m high | E76: m³ | F76: 10.00 | G76: 0.00 | H76: =IF(E76 = CHAR(37), F76*G76/100,F76*G76) -> 0.00
A78: 16634 | B78: 13.2.3.3 | D78: Gabions of section 2,0 m x 1,0 m x 1,0m high | E78: m³ | F78: 30.00 | G78: 0.00 | H78: =IF(E78 = CHAR(37), F78*G78/100,F78*G78) -> 0.00
A80: 16635 | B80: 13.2.4 | C80: 8.2.4, PSDK 8.2.4 | D80: GEOTEXTILE (GRADE A4)
A82: 16636 | B82: 13.2.4.1 | D82: Supply and install below gabions and reno mattress baskets | E82: m² | F82: 15.00 | G82: 0.00 | H82: =IF(E82 = CHAR(37), F82*G82/100,F82*G82) -> 0.00
A84: 16637 | B84: 13.2.5 | C84: 8.2.5 | D84: STONE PITCHING
A86: 16638 | B86: 13.2.5.1 | D86: Stone pitching with 150mm dump rock, grouted, where directed by the Engineer | E86: m³ | F86: 10.00 | G86: 0.00 | H86: =IF(E86 = CHAR(37), F86*G86/100,F86*G86) -> 0.00
B97: Total Carried Forward To Summary | H97: =SUM(H54:H96) -> 0.00
B98: SCHEDULE 13 - MISCELLANEOUS WORKS
H99: SECTION 13.3: CONCRETE (STRUCTURAL)
B100: ITEM NO | C100: PAYMENT | D100: DESCRIPTION | E100: UNIT | F100: QTY | G100: RATE | H100: AMOUNT (RAND)
A101: 16639 | B101: 13.3 | C101: SABS 1200 G | D101: CONCRETE (STRUCTURAL)
A103: 18732 | B103: 13.3.1 | D103: MISCELLANEOUS
A105: 18733 | D105: Concrete retaining block walling inclusive of concrete base 15Mpa, subsoil drain and geotextile :
A107: 18734 | B107: 13.3.1.1 | D107: a) Terraforce Blok or similar approved - Retaining Blocks L300 | E107: m² | F107: 20.00 | G107: 0.00 | H107: =IF(E107 = CHAR(37), F107*G107/100,F107*G107) -> 0.00
A109: 18735 | B109: 13.3.1.2 | D109: b) Loffelstein or similar approved L500 blocks | E109: m² | F109: 20.00 | G109: 0.00 | H109: =IF(E109 = CHAR(37), F109*G109/100,F109*G109) -> 0.00
A111: 18736 | B111: 13.3.1.3 | D111: c) Loffelstein or similar approved L750 blocks | E111: m² | F111: 20.00 | G111: 0.00 | H111: =IF(E111 = CHAR(37), F111*G111/100,F111*G111) -> 0.00
B156: Total Carried Forward To Summary | H156: =SUM(H101:H155) -> 0.00
B157: SCHEDULE 13 - MISCELLANEOUS WORKS
H158: SECTION 13.4: STRUCTURAL STEELWORK (SUNDRY ITEMS) AND GRP
B159: ITEM NO | C159: PAYMENT | D159: DESCRIPTION | E159: UNIT | F159: QTY | G159: RATE | H159: AMOUNT (RAND)
A160: 16698 | B160: 13.4 | C160: SABS 1200 H | D160: STRUCTURAL STEELWORK (SUNDRY ITEMS) AND GRP
A162: 16994 | B162: 13.4.1 | D162: FENCING
A164: 16996 | B164: 13.4.1.1 | D164: Supply and install double leaf entrance gate complete as per details on EWS Drawing 45004. (Rate to include for supply, fabricate and installation) | E164: No. | F164: 2.00 | G164: 0.00 | H164: =IF(E164 = CHAR(37), F164*G164/100,F164*G164) -> 0.00
A166: 16843 | B166: 13.4.2 | D166: HANDRAILS
A168: 16844 | B168: 13.4.2.1 | D168: Supply and install top/side mounted Stainless Steel Handrail assembly complete with stanchions, bends and ends with chemical anchors | E168: m | F168: 50.00 | G168: 0.00 | H168: =IF(E168 = CHAR(37), F168*G168/100,F168*G168) -> 0.00
B212: Total Carried Forward To Summary | H212: =SUM(H160:H211) -> 0.00
B213: SCHEDULE 13 - MISCELLANEOUS WORKS
H214: SECTION 13.5: OTHER
B215: ITEM NO | C215: PAYMENT | D215: DESCRIPTION | E215: UNIT | F215: QTY | G215: RATE | H215: AMOUNT (RAND)
A216: 24185 | B216: 13.5 | D216: OTHER
A218: 24186 | B218: 13.5.1 | D218: Provisional sum for painting of above ground pipework with UV stable coating | E218: Prov Sum | F218: 1.00 | G218: 100,000.00 | H218: 100,000.00
A220: 24187 | B220: 13.5.2 | D220: Overheads and Profit on the above item | E220: % | F220: =H218 -> 100,000.00 | G220: 0.00 | H220: =IF(E220 = CHAR(37), F220*G220/100,F220*G220) -> 0.00
A222: 24188 | B222: 13.5.3 | D222: Provisional sum for coating/painting of existing pipework within the TWTW site for ease of identification. | E222: Prov Sum | F222: 1.00 | G222: 100,000.00 | H222: 100,000.00
A224: 24189 | B224: 13.5.4 | D224: Overheads and Profit on the above item | E224: % | F224: 100,000.00 | G224: 0.00 | H224: =IF(E224 = CHAR(37), F224*G224/100,F224*G224) -> 0.00
B270: Total Carried Forward To Summary | H270: =SUM(H216:H269) -> 200,000.00
B271: SCHEDULE 13 - MISCELLANEOUS WORKS
D272: SUMMARY OF SECTIONS
C273: SECTION | D273: DESCRIPTION | H273: AMOUNT (RAND)
C274: 13.1 | D274: SECTION 13.1: SITE CLEARANCE | H274: =H50 -> 0.00
C276: 13.2 | D276: SECTION 13.2: GABIONS AND PITCHING | H276: =H97 -> 0.00
C278: 13.3 | D278: SECTION 13.3: CONCRETE (STRUCTURAL) | H278: =H156 -> 0.00
C280: 13.4 | D280: SECTION 13.4: STRUCTURAL STEELWORK (SUNDRY ITEMS) AND GRP | H280: =H212 -> 0.00
C282: 13.5 | D282: SECTION 13.5: OTHER | H282: =H270 -> 200,000.00
C332: Total Carried Forward To Summary Of Schedules | D332: Total Carried Forward To Summary Of Schedules | H332: =SUM(H274:H331) -> 200,000.00

Sheet Schedule 14
A1: Rate=G | B1: SCHEDULE 14: MECHANICAL EQUIPMENT & ANCILLARY WORKS
H2: SECTION 14.1: MECHANICAL & PUMP INSTALLATIONS
B3: ITEM NO | C3: PAYMENT | D3: DESCRIPTION | E3: UNIT | F3: QTY | G3: RATE | H3: AMOUNT (RAND)
A4: 22678 | B4: 14.1 | C4: PSWPE | D4: MECHANICAL EQUIPMENT AND ANCILLARY WORKS
A6: 22679 | D6: Note : All pump pipework, valves, fittings and associated equipment are measured elsewhere
A8: 22701 | D8: Design , supply , manufacture , deliver , offload , install , connect up, test and commission, guarantee and maintaining the pumping plant and associated equipment to EWS standards and to the relevant SANS, BS or other recognised codes and standards
A10: 22680 | B10: 14.1.1 | D10: Carry out an audit and assessment on the existing Backwash Pumps and associated motors and provide a detailed report on findings and remedial works required for the Engineers approval. | E10: Sum | F10: 1.00 | G10: 0.00 | H10: =IF(E10 = CHAR(37), F10*G10/100,F10*G10) -> 0.00
A12: 22727 | D12: Make safe, disconnect, remove, lift or load , transport and deliver the existing pump sets, motors and associated equipment to EWS Stores and offload as follows :
A14: 22732 | B14: 14.1.1.1 | D14: a) Existing Backwash Recycle Pump | E14: No. | F14: 1.00 | G14: 125.00 | H14: 125.00
A16: 22728 | B16: 14.1.1.2 | D16: b) Existing sludge pumps - submersible type | E16: No. | F16: 2.00 | G16: 0.00 | H16: =IF(E16 = CHAR(37), F16*G16/100,F16*G16) -> 0.00
A18: 22729 | B18: 14.1.1.3 | D18: c) Existing sampling pumps | E18: No. | F18: 2.00 | G18: 0.00 | H18: =IF(E18 = CHAR(37), F18*G18/100,F18*G18) -> 0.00
A20: 22681 | B20: 14.1.2 | C20: PS WPE 6, 7, 8, 9 & 10 | D20: Design, manufacture , supply and deliver the following new pump sets ( to replace existing ) :
A22: 22682 | B22: 14.1.2.1 | D22: a) Self priming backwash recycle pump ( excluding motor ) , base , coupling , coupling guards, mounting / support frame, belts etc including all sensors as specified complete ( 1 duty, and 1 stand-by ) - duty 55m³/hr @ 5,8m head as specified. | E22: No. | F22: 2.0 | G22: 0.00 | H22: =IF(E22 = CHAR(37), F22*G22/100,F22*G22) -> 0.00
A24: 22683 | B24: 14.1.2.2 | D24: b) Submersible sludge pump with motor , coupling , guide rail etc including all sensors as specified complete ( 1 duty, and 1 stand-by ) - duty 34m³/hr @ 6,5m head as specified and supplied by KSB type Amarex NF80-220 or similar and equal approved | E24: No. | F24: 2.00 | G24: 0.00 | H24: =IF(E24 = CHAR(37), F24*G24/100,F24*G24) -> 0.00
A26: 22684 | B26: 14.1.3 | D26: Install, connect up etc the new pump sets supplied above as follows :
B28: Total Carried Forward | H28: =SUM(H4:H27) -> 125.00
B29: SCHEDULE 14: MECHANICAL EQUIPMENT & ANCILLARY WORKS
H30: SECTION 14.1: MECHANICAL & PUMP INSTALLATIONS
B31: ITEM NO | C31: PAYMENT | D31: DESCRIPTION | E31: UNIT | F31: QTY | G31: RATE | H31: AMOUNT (RAND)
B32: Brought Forward | H32: =H28 -> 125.00
A33: 22685 | B33: 14.1.3.1 | D33: a) Backwash recycle pump | E33: No. | F33: 2.00 | G33: 0.00 | H33: =IF(E33 = CHAR(37), F33*G33/100,F33*G33) -> 0.00
A35: 22686 | B35: 14.1.3.2 | D35: b) Sludge pump | E35: No. | F35: 2.00 | G35: 0.00 | H35: =IF(E35 = CHAR(37), F35*G35/100,F35*G35) -> 0.00
A37: 22687 | B37: 14.1.3.3 | D37: c) Allow for laser alignment for the self priming backwash recycle pumps supplied above ( provide certificates ) | E37: No. | F37: 2.00 | G37: 0.00 | H37: =IF(E37 = CHAR(37), F37*G37/100,F37*G37) -> 0.00
A39: 22688 | B39: 14.1.4 | D39: Allow for the FAT for the above pumps ( backwash recycle pumps and sludge pumps ) | E39: Sum | F39: 1.00 | G39: 0.00 | H39: =IF(E39 = CHAR(37), F39*G39/100,F39*G39) -> 0.00
A41: 22699 | B41: 14.1.5 | D41: Allow for the Engineer and Client to attend the FAT for the above pumps ( to include for flights, travel, car hire , accommodation, meals , entertainment etc ) . Allowance to be made for 3 persons | E41: Sum | F41: 1.00 | G41: 0.00 | H41: =IF(E41 = CHAR(37), F41*G41/100,F41*G41) -> 0.00
A43: 22730 | B43: 14.1.6 | D43: Supply, install and connect up the following ancillary equipment :
A45: 22689 | B45: 14.1.6.1 | D45: a) Wika or similar pressure gauges 0 - 500kPA complete with piping, backing board etc | E45: No | F45: 1.0 | G45: 0.00 | H45: =IF(E45 = CHAR(37), F45*G45/100,F45*G45) -> 0.00
A47: 22691 | B47: 14.1.6.2 | D47: b) Wika or similar pressure gauges 0 - 1000kPA complete with piping, backing board etc | E47: No | F47: 4.00 | G47: 0.00 | H47: =IF(E47 = CHAR(37), F47*G47/100,F47*G47) -> 0.00
A49: 22692 | B49: 14.1.6.3 | D49: c) ½'' BSP sockets with stop-cocks welded on steel pipework | E49: No | F49: 8.00 | G49: 0.00 | H49: =IF(E49 = CHAR(37), F49*G49/100,F49*G49) -> 0.00
A51: 22693 | B51: 14.1.6.4 | D51: d) Electronic pressure transmitters and sensors 0-1000kPA pressure rating | E51: No | F51: 2.00 | G51: 0.00 | H51: =IF(E51 = CHAR(37), F51*G51/100,F51*G51) -> 0.00
A53: 22694 | B53: 14.1.7 | D53: SAT - Test and commission the following pump sets on site as supplied above :
A55: 22695 | B55: 14.1.7.1 | D55: a) Backwash Recycle Pump | E55: No | F55: 2.00 | G55: 0.00 | H55: =IF(E55 = CHAR(37), F55*G55/100,F55*G55) -> 0.00
A57: 22696 | B57: 14.1.7.2 | D57: b) Sludge Pump | E57: No | F57: 2.00 | G57: 0.00 | H57: =IF(E57 = CHAR(37), F57*G57/100,F57*G57) -> 0.00
A59: 22731 | B59: 14.1.8 | D59: Design and submit layout drawings of the pump sets and pipework & valve details and layout drawings for each of the pump systems as follows :
A61: 22690 | B61: 14.1.8.1 | D61: a) Backwash Recycle Pump | E61: Sum | F61: 1.0 | G61: 0.00 | H61: =IF(E61 = CHAR(37), F61*G61/100,F61*G61) -> 0.00
A63: 22697 | B63: 14.1.8.2 | D63: b) Sludge Pump | E63: Sum | F63: 1.00 | G63: 0.00 | H63: =IF(E63 = CHAR(37), F63*G63/100,F63*G63) -> 0.00
A65: 22698 | B65: 14.1.8.3 | D65: Design and submit technical specifications and detailed dimensioned drawings for all the pump sets supplied above | E65: Sum | F65: 1.00 | G65: 0.00 | H65: =IF(E65 = CHAR(37), F65*G65/100,F65*G65) -> 0.00
B67: Total Carried Forward To Summary | H67: =SUM(H32:H66) -> 125.00
B68: SCHEDULE 14: MECHANICAL EQUIPMENT & ANCILLARY WORKS
H69: SECTION 14.2: MOTORS & ANCILLARY WORKS
B70: ITEM NO | C70: PAYMENT | D70: DESCRIPTION | E70: UNIT | F70: QTY | G70: RATE | H70: AMOUNT (RAND)
A71: 23019 | B71: 14.2 | C71: PS WPE 6 , 7 , 8 & 9 | D71: MOTORS & ANCILLARY WORKS
A73: 23035 | B73: 14.2.1 | D73: Supply the following WEG or similar approved 525V motors as specified.
A75: 23036 | B75: 14.2.1.1 | D75: Self priming backwash recovery pump | E75: No. | F75: 2.0 | G75: 0.00 | H75: =IF(E75 = CHAR(37), F75*G75/100,F75*G75) -> 0.00
A77: 23049 | B77: 14.2.2 | D77: Install new 525V motors in position including all new galvanised bolts, nuts, washers and relevant ancillary components
A79: 23050 | B79: 14.2.2.1 | D79: Self priming backwash recovery pump | E79: No. | F79: 2.0 | G79: 0.00 | H79: =IF(E79 = CHAR(37), F79*G79/100,F79*G79) -> 0.00
A81: 23056 | B81: 14.2.3 | D81: Connect all motors to the respective pump couplings (couplings/belt drives to be provided with pump)
A83: 23057 | B83: 14.2.3.1 | D83: Self priming backwash recovery pump | E83: No. | F83: 2.0 | G83: 0.00 | H83: =IF(E83 = CHAR(37), F83*G83/100,F83*G83) -> 0.00
A85: 23063 | B85: 14.2.4 | D85: Testing and commissioning of new motors. The commissioning of all new motors are to be completed in conjunction with the MCC and equipment testing. (To be undertaken in accordance with the Contractors commissioning plan)
A87: 23064 | B87: 14.2.4.1 | D87: Self priming backwash recovery pump | E87: No. | F87: 2.0 | G87: 0.00 | H87: =IF(E87 = CHAR(37), F87*G87/100,F87*G87) -> 0.00
A89: 23070 | B89: 14.2.5 | D89: Testing and Commissioning data sheets to be provided for all motors including a summary report | E89: Sum | F89: 1.0 | G89: 0.00 | H89: =IF(E89 = CHAR(37), F89*G89/100,F89*G89) -> 0.00
B116: Total Carried Forward To Summary | H116: =SUM(H71:H115) -> 0.00
B117: SCHEDULE 14: MECHANICAL EQUIPMENT & ANCILLARY WORKS
H118: SECTION 14.3: ELECTRIC ACUATORS
B119: ITEM NO | C119: PAYMENT | D119: DESCRIPTION | E119: UNIT | F119: QTY | G119: RATE | H119: AMOUNT (RAND)
A120: 22702 | B120: 14.3 | C120: PS ACT1.1 to PS ACT1.16 | D120: ELECTRIC ACTUATORS
A122: 22703 | D122: Manufacture , supply. deliver , off-load and install the following electrical valve actuators as specified and in accordance with the EWS specifications and standards as follows :
A124: 22704 | B124: 14.3.1 | D124: CLARIFIERS - DESLUDGE VALVES
A126: 22705 | B126: 14.3.1.1 | D126: a) Electric actuators to fit DN100 resilient seal gate valves ( torque requirement to suit valve ) | E126: No | F126: 6.0 | G126: 0.00 | H126: =IF(E126 = CHAR(37), F126*G126/100,F126*G126) -> 0.00
A128: 22706 | B128: 14.3.1.2 | D128: b) Electric actuators to fit DN350 resilient seal gate valves ( torque requirement to suit valve ) | E128: No | F128: 1.0 | G128: 0.00 | H128: =IF(E128 = CHAR(37), F128*G128/100,F128*G128) -> 0.00
A130: 22707 | B130: 14.3.1.3 | D130: c) Deliver the above electric actuators to the valve supplier for fitting of the actuators to the valves | E130: No | F130: 7.0 | G130: 0.00 | H130: =IF(E130 = CHAR(37), F130*G130/100,F130*G130) -> 0.00
A132: 22708 | B132: 14.3.2 | D132: FILTERS - BACKWASH & AIR BLOWER VALVES
A134: 22709 | B134: 14.3.2.1 | D134: d) Electric actuators to fit DN200 resilient seal gate valves ( torque requirement to suit valve ) | E134: No | F134: 6.0 | G134: 0.00 | H134: =IF(E134 = CHAR(37), F134*G134/100,F134*G134) -> 0.00
A136: 22710 | B136: 14.3.2.2 | D136: e) Electric actuators to fit DN300 resilient seal gate valves ( torque requirement to suit valve ) | E136: No | F136: 6.0 | G136: 0.00 | H136: =IF(E136 = CHAR(37), F136*G136/100,F136*G136) -> 0.00
A138: 22711 | B138: 14.3.2.3 | D138: f) Electric actuators to fit DN350 resilient seal gate valves ( torque requirement to suit valve ) | E138: No | F138: 6.0 | G138: 0.00 | H138: =IF(E138 = CHAR(37), F138*G138/100,F138*G138) -> 0.00
A140: 22712 | B140: 14.3.2.4 | D140: g) Deliver the above electric actuators to the valve supplier for fitting of the actuators to the valves | E140: No | F140: 6.0 | G140: 0.00 | H140: =IF(E140 = CHAR(37), F140*G140/100,F140*G140) -> 0.00
A142: 22713 | B142: 14.3.3 | D142: Assist the civil or pipework contractor to fit all the above valve actuators and valves to their respective pipework and connect up | E142: Sum | F142: 1.0 | G142: 0.00 | H142: =IF(E142 = CHAR(37), F142*G142/100,F142*G142) -> 0.00
A144: 22714 | B144: 14.3.4 | D144: Provide labelling to all the valve actuators supplied above | E144: Sum | F144: 1.0 | G144: 0.00 | H144: =IF(E144 = CHAR(37), F144*G144/100,F144*G144) -> 0.00
A146: 22716 | B146: 14.3.5 | D146: Allow an amount for the FAT for all the above electric valve actuators : | E146: Sum | F146: 1.0 | G146: 0.00 | H146: =IF(E146 = CHAR(37), F146*G146/100,F146*G146) -> 0.00
B154: Total Carried Forward | H154: =SUM(H120:H153) -> 0.00
B155: SCHEDULE 14: MECHANICAL EQUIPMENT & ANCILLARY WORKS
H156: SECTION 14.3: ELECTRIC ACUATORS
B157: ITEM NO | C157: PAYMENT | D157: DESCRIPTION | E157: UNIT | F157: QTY | G157: RATE | H157: AMOUNT (RAND)
B158: Brought Forward | H158: =H154 -> 0.00
A159: 22717 | B159: 14.3.6 | D159: Allow for the Engineer and Client to attend the FAT for all the above electric valve actuators ( to include for flights, travel, car hire , accommodation, meals , entertainment etc ) . Allowance to be made for 3 persons | E159: Sum | F159: 1.0 | G159: 0.00 | H159: =IF(E159 = CHAR(37), F159*G159/100,F159*G159) -> 0.00
A161: 22718 | B161: 14.3.7 | D161: SAT - Test and commission all the electric valve actuators supplied and installed as above | E161: Sum | F161: 1.0 | G161: 0.00 | H161: =IF(E161 = CHAR(37), F161*G161/100,F161*G161) -> 0.00
A163: 22719 | B163: 14.3.8 | D163: Provide training for the EWS Tongaat WTW Plant operations and maintenance staff for the entire WTW and pumping and actuator systems | E163: Sum | F163: 1.0 | G163: 0.00 | H163: =IF(E163 = CHAR(37), F163*G163/100,F163*G163) -> 0.00
A165: 22720 | B165: 14.3.9 | D165: Provide all labels and signs for all the above pumps | E165: Sum | F165: 1.0 | G165: 0.00 | H165: =IF(E165 = CHAR(37), F165*G165/100,F165*G165) -> 0.00
A167: 22721 | B167: 14.3.10 | D167: Allow a provisional sum of R 100 000,00 for any unforeseen work the amounts of which are to be used entirely at the discretion of the Engineer and Client | E167: Prov Sum | F167: 1.0 | G167: 0.00 | H167: =IF(E167 = CHAR(37), F167*G167/100,F167*G167) -> 0.00
A169: 22722 | B169: 14.3.11 | D169: Allow for profit and attendance on provisional sum above | E169: % | F169: =H167 -> 0.0 | G169: 0.00 | H169: =IF(E169 = CHAR(37), F169*G169/100,F169*G169) -> 0.00
A171: 22724 | B171: 14.3.12 | D171: Any other items the tenderer considers has been omitted and which requires separate pricing as follows :
A173: 22725 | D173: a)
A175: 22726 | D175: b)
B199: Total Carried Forward To Summary | H199: =SUM(H158:H198) -> 0.00
B200: SCHEDULE 14: MECHANICAL EQUIPMENT & ANCILLARY WORKS
D201: SUMMARY OF SECTIONS
C202: SECTION | D202: DESCRIPTION | H202: AMOUNT (RAND)
C203: 14.1 | D203: SECTION 14.1: MECHANICAL & PUMP INSTALLATIONS | H203: =H67 -> 125.00
C205: 14.2 | D205: SECTION 14.2: MOTORS & ANCILLARY WORKS | H205: =H116 -> 0.00
C207: 14.3 | D207: SECTION 14.3: ELECTRIC ACUATORS | H207: =H199 -> 0.00
C261: Total Carried Forward To Summary Of Schedules | D261: Total Carried Forward To Summary Of Schedules | H261: =SUM(H203:H260) -> 125.00

Sheet Schedule 15
A1: Rate=G | B1: SCHEDULE 15 - ELECTRICAL & INSTRUMENTATION
H2: SECTION 15.1: ELECTRICAL & MCC
B3: ITEM NO | C3: PAYMENT | D3: DESCRIPTION | E3: UNIT | F3: QTY | G3: RATE | H3: AMOUNT (RAND)
A4: 22769 | B4: 15.1 | D4: MAIN POWER CABLE RETICULATION SYSTEM
A6: 22770 | D6: Note : All items are re-measurable and only items installed or equipment required can be claimed for payment
A8: 22771 | B8: 15.1.1 | D8: CABLES
A10: 22772 | D10: Supply , installation and termination of copper PVC/SWA/PVC/ECC cables per SANS 1507.
A12: 22773 | D12: Laid in ducts, trenches, sleeves, horizontal racks or vertical ducts. Rates shall include the supply and fixing of supports with regard to installation of cables complete. Rates shall include PVC cable ties as required including termination. Trenching measured elsewhere
A14: 22774 | C14: PS ECI 11 | D14: Supply Cables PVC/SWA/PVC/ECC cables per SANS 1507
A16: 22775 | B16: 15.1.1.1 | D16: (a) 1.5mm² x 3 core ECC | E16: m | F16: 400.0 | G16: 0.00 | H16: =IF(E16 = CHAR(37), F16*G16/100,F16*G16) -> 0.00
A18: 22776 | B18: 15.1.1.2 | D18: (b) 1.5mm² x 4 Core ECC | E18: m | F18: 450.0 | G18: 0.00 | H18: =IF(E18 = CHAR(37), F18*G18/100,F18*G18) -> 0.00
A20: 22777 | B20: 15.1.1.3 | D20: (c) 1.5mm² x 14 core ECC | E20: m | F20: 150.0 | G20: 0.00 | H20: =IF(E20 = CHAR(37), F20*G20/100,F20*G20) -> 0.00
A22: 22778 | B22: 15.1.1.4 | D22: (d) 2,5mm² x 4 core ECC | E22: m | F22: 1,600.0 | G22: 0.00 | H22: =IF(E22 = CHAR(37), F22*G22/100,F22*G22) -> 0.00
A24: 22779 | B24: 15.1.1.5 | D24: (e) 6mm² x 3 core ECC | E24: m | F24: 375.0 | G24: 0.00 | H24: =IF(E24 = CHAR(37), F24*G24/100,F24*G24) -> 0.00
A26: 22780 | B26: 15.1.1.6 | D26: (f) 10mm² x 3 core ECC | E26: m | F26: 160.0 | G26: 0.00 | H26: =IF(E26 = CHAR(37), F26*G26/100,F26*G26) -> 0.00
A28: 22781 | B28: 15.1.1.7 | D28: (g) 16mm² x 2 core ECC | E28: m | F28: 70.0 | G28: 0.00 | H28: =IF(E28 = CHAR(37), F28*G28/100,F28*G28) -> 0.00
A30: 22782 | B30: 15.1.1.8 | D30: (h) 25mm² x 4 core ECC | E30: m | F30: 75.0 | G30: 0.00 | H30: =IF(E30 = CHAR(37), F30*G30/100,F30*G30) -> 0.00
A32: 22733 | B32: 15.1.1.9 | D32: (i) 35mm² x 4 core ECC | E32: m | F32: 150.0 | G32: 0.00 | H32: =IF(E32 = CHAR(37), F32*G32/100,F32*G32) -> 0.00
A34: 22734 | B34: 15.1.1.10 | D34: (j) 150mm² x 4 core ECC | E34: m | F34: 100.0 | G34: 0.00 | H34: =IF(E34 = CHAR(37), F34*G34/100,F34*G34) -> 0.00
A36: 25372 | B36: 15.1.1.11 | D36: k) 4mm² x BECW | E36: m | F36: 250.00 | G36: 0.00 | H36: =IF(E36 = CHAR(37), F36*G36/100,F36*G36) -> 0.00
A38: 25373 | B38: 15.1.1.12 | D38: l) 6mm² x BECW | E38: m | F38: 150.00 | G38: 0.00 | H38: =IF(E38 = CHAR(37), F38*G38/100,F38*G38) -> 0.00
A40: 22735 | C40: PS ECI 11 | D40: Installation of above supplied PVC/SWA/PVC/ECC cables per SANS 1507 and SANS10142-1 in ducts , sleeves, cable tray etc
A42: 22736 | B42: 15.1.1.13 | D42: (a) 1.5mm² x 3 core ECC | E42: m | F42: 400.0 | G42: 0.00 | H42: =IF(E42 = CHAR(37), F42*G42/100,F42*G42) -> 0.00
A44: 22737 | B44: 15.1.1.14 | D44: (b) 1.5mm² x 4 Core ECC | E44: m | F44: 450.0 | G44: 0.00 | H44: =IF(E44 = CHAR(37), F44*G44/100,F44*G44) -> 0.00
A46: 22738 | B46: 15.1.1.15 | D46: (c) 1.5mm² x 14 core ECC | E46: m | F46: 150.0 | G46: 0.00 | H46: =IF(E46 = CHAR(37), F46*G46/100,F46*G46) -> 0.00
B48: Total Carried Forward | H48: =SUM(H4:H47) -> 0.00
B49: SCHEDULE 15 - ELECTRICAL & INSTRUMENTATION
H50: SECTION 15.1: ELECTRICAL & MCC
B51: ITEM NO | C51: PAYMENT | D51: DESCRIPTION | E51: UNIT | F51: QTY | G51: RATE | H51: AMOUNT (RAND)
B52: Brought Forward | H52: =H48 -> 0.00
A53: 22739 | B53: 15.1.1.16 | D53: (d) 2,5mm² x 4 core ECC | E53: m | F53: 1,600.0 | G53: 0.00 | H53: =IF(E53 = CHAR(37), F53*G53/100,F53*G53) -> 0.00
A55: 22740 | B55: 15.1.1.17 | D55: (e) 6mm² x 3 core ECC | E55: m | F55: 375.0 | G55: 0.00 | H55: =IF(E55 = CHAR(37), F55*G55/100,F55*G55) -> 0.00
A57: 22741 | B57: 15.1.1.18 | D57: (f) 10mm² x 3 core ECC | E57: m | F57: 160.0 | G57: 0.00 | H57: =IF(E57 = CHAR(37), F57*G57/100,F57*G57) -> 0.00
A59: 22742 | B59: 15.1.1.19 | D59: (g) 16mm² x 2 core ECC | E59: m | F59: 70.0 | G59: 0.00 | H59: =IF(E59 = CHAR(37), F59*G59/100,F59*G59) -> 0.00
A61: 22743 | B61: 15.1.1.20 | D61: (h) 25mm² x 4 core ECC | E61: m | F61: 75.0 | G61: 0.00 | H61: =IF(E61 = CHAR(37), F61*G61/100,F61*G61) -> 0.00
A63: 22744 | B63: 15.1.1.21 | D63: (i) 35mm² x 4 core ECC | E63: m | F63: 150.0 | G63: 0.00 | H63: =IF(E63 = CHAR(37), F63*G63/100,F63*G63) -> 0.00
A65: 22745 | B65: 15.1.1.22 | D65: (j) 150mm² x 4 core ECC | E65: m | F65: 100.0 | G65: 0.00 | H65: =IF(E65 = CHAR(37), F65*G65/100,F65*G65) -> 0.00
A67: 25374 | B67: 15.1.1.23 | D67: k) 4mm² x BECW | E67: m | F67: 250.00 | G67: 0.00 | H67: =IF(E67 = CHAR(37), F67*G67/100,F67*G67) -> 0.00
A69: 25375 | B69: 15.1.1.24 | D69: l) 6mm² x BECW | E69: m | F69: 150.00 | G69: 0.00 | H69: =IF(E69 = CHAR(37), F69*G69/100,F69*G69) -> 0.00
A71: 22746 | C71: PS ECI 11 | D71: Cable Glands : Rates shall include the termination of cables in distribution boards, MCCs , kiosks etc and equipment per supplier recommended termination detail. To include glands, shrouds, lugs and cable numbers.
A73: 22747 | B73: 15.1.1.25 | D73: (a) 1.5mm² x 3 core ECC | E73: No | F73: 80.0 | G73: 0.00 | H73: =IF(E73 = CHAR(37), F73*G73/100,F73*G73) -> 0.00
A75: 22748 | B75: 15.1.1.26 | D75: (b) 1.5mm² x 4 Core ECC | E75: No | F75: 90.0 | G75: 0.00 | H75: =IF(E75 = CHAR(37), F75*G75/100,F75*G75) -> 0.00
A77: 22846 | B77: 15.1.1.27 | D77: (c) 1.5mm² x 14 core ECC | E77: No | F77: 20.00 | G77: 0.00 | H77: =IF(E77 = CHAR(37), F77*G77/100,F77*G77) -> 0.00
A79: 22847 | B79: 15.1.1.28 | D79: (d) 2,5mm² x 4 core ECC | E79: No | F79: 90.00 | G79: 0.00 | H79: =IF(E79 = CHAR(37), F79*G79/100,F79*G79) -> 0.00
A81: 22848 | B81: 15.1.1.29 | D81: (e) 6mm² x 3 core ECC | E81: No | F81: 24.00 | G81: 0.00 | H81: =IF(E81 = CHAR(37), F81*G81/100,F81*G81) -> 0.00
A83: 22849 | B83: 15.1.1.30 | D83: (f) 10mm² x 3 core ECC | E83: No | F83: 8.00 | G83: 0.00 | H83: =IF(E83 = CHAR(37), F83*G83/100,F83*G83) -> 0.00
A85: 22850 | B85: 15.1.1.31 | D85: (g) 16mm² x 2 core ECC | E85: No | F85: 4.00 | G85: 0.00 | H85: =IF(E85 = CHAR(37), F85*G85/100,F85*G85) -> 0.00
A87: 22851 | B87: 15.1.1.32 | D87: (h) 25mm² x 4 core ECC | E87: No | F87: 4.00 | G87: 0.00 | H87: =IF(E87 = CHAR(37), F87*G87/100,F87*G87) -> 0.00
A89: 22852 | B89: 15.1.1.33 | D89: (i) 35mm² x 4 core ECC | E89: No | F89: 8.00 | G89: 0.00 | H89: =IF(E89 = CHAR(37), F89*G89/100,F89*G89) -> 0.00
A91: 22853 | B91: 15.1.1.34 | D91: (j) 150mm² x 4 core ECC | E91: No | F91: 4.00 | G91: 0.00 | H91: =IF(E91 = CHAR(37), F91*G91/100,F91*G91) -> 0.00
A93: 25376 | B93: 15.1.1.35 | D93: k) 4mm² x BECW | E93: No | F93: 30.00 | G93: 0.00 | H93: =IF(E93 = CHAR(37), F93*G93/100,F93*G93) -> 0.00
A95: 25377 | B95: 15.1.1.36 | D95: l) 6mm² x BECW | E95: No | F95: 30.00 | G95: 0.00 | H95: =IF(E95 = CHAR(37), F95*G95/100,F95*G95) -> 0.00
A97: 22854 | D97: TRENCHING etc
A99: 22855 | B99: 15.1.1.37 | C99: SANS1200 DB, PSDB | D99: (a) Trenching 400 wide x 550 deep in pickable to hard ground | E99: m | F99: 120.00 | G99: 0.00 | H99: =IF(E99 = CHAR(37), F99*G99/100,F99*G99) -> 0.00
A101: 22856 | B101: 15.1.1.38 | D101: (b) Backfilling of above trenches | E101: m | F101: 120.00 | G101: 0.00 | H101: =IF(E101 = CHAR(37), F101*G101/100,F101*G101) -> 0.00
A103: 22857 | D103: Sleeves and accessories (supply and install)
B104: Total Carried Forward | H104: =SUM(H52:H103) -> 0.00
B105: SCHEDULE 15 - ELECTRICAL & INSTRUMENTATION
H106: SECTION 15.1: ELECTRICAL & MCC
B107: ITEM NO | C107: PAYMENT | D107: DESCRIPTION | E107: UNIT | F107: QTY | G107: RATE | H107: AMOUNT (RAND)
B108: Brought Forward | H108: =H104 -> 0.00
A109: 22858 | B109: 15.1.1.39 | D109: (a) Supply and install cable warning tape | E109: m | F109: 120.00 | G109: 0.00 | H109: =IF(E109 = CHAR(37), F109*G109/100,F109*G109) -> 0.00
A111: 22859 | B111: 15.1.1.40 | D111: (b) Concrete cable markers | E111: No. | F111: 8.00 | G111: 575.00 | H111: 4,600.00
A113: 22860 | B113: 15.1.1.41 | D113: (c) 110Ø uPVC cable sleeves | E113: m | F113: 20.00 | G113: 0.00 | H113: =IF(E113 = CHAR(37), F113*G113/100,F113*G113) -> 0.00
A115: 22861 | B115: 15.1.1.42 | D115: (d) 110 Ø 90º PVC bends | E115: No. | F115: 4.00 | G115: 0.00 | H115: =IF(E115 = CHAR(37), F115*G115/100,F115*G115) -> 0.00
A117: 22862 | B117: 15.1.1.43 | D117: (e) Coring 100 Ø holes through 200mm concrete | E117: No. | F117: 8.00 | G117: 0.00 | H117: =IF(E117 = CHAR(37), F117*G117/100,F117*G117) -> 0.00
A119: 22863 | B119: 15.1.1.44 | D119: (f) 50 and 75 Ø uPVC cable sleeves | E119: m | F119: 40.00 | G119: 0.00 | H119: =IF(E119 = CHAR(37), F119*G119/100,F119*G119) -> 0.00
A121: 22864 | B121: 15.1.1.45 | D121: (g) 50 and 75 Ø 90° PVC bends | E121: No. | F121: 8.00 | G121: 115.00 | H121: 920.00
A123: 22865 | B123: 15.1.1.46 | D123: (h) 160 dia uPVC cable sleeves | E123: m | F123: 50.00 | G123: 0.00 | H123: =IF(E123 = CHAR(37), F123*G123/100,F123*G123) -> 0.00
A125: 22866 | B125: 15.1.1.47 | D125: (i) 160 dia 90º PVC bends | E125: No | F125: 8.00 | G125: 0.00 | H125: =IF(E125 = CHAR(37), F125*G125/100,F125*G125) -> 0.00
A127: 22867 | B127: 15.1.1.48 | D127: (j) Assist civil contractor with setting out and co-ordination of the construction of the sleeves , coring of openings and construction of manholes on site where required | E127: Sum | F127: 1.00 | G127: 0.00 | H127: =IF(E127 = CHAR(37), F127*G127/100,F127*G127) -> 0.00
B162: Total Carried Forward To Summary | H162: =SUM(H108:H161) -> 5,520.00
B163: SCHEDULE 15 - ELECTRICAL & INSTRUMENTATION
H164: SECTION 15.2: SMALL POWER DISTRIBUTION BOARDS, MCC & ANCILLARIES
B165: ITEM NO | C165: PAYMENT | D165: DESCRIPTION | E165: UNIT | F165: QTY | G165: RATE | H165: AMOUNT (RAND)
A166: 22750 | B166: 15.2 | D166: SMALL POWER DISTRIBUTION BOARDS, MCC & ANCILLARIES
A168: 22751 | B168: 15.2.1 | D168: MOTOR CONTROL PANELS
A170: 22752 | C170: PS ECI 5 | D170: Design, manufacture, supply and install distribution boards, motor control panel etc. complete with doors where applicable, frames, subframes, chassis, fixtures, fittings, circuit breakers spare space, busbar etc. as per specifications and drawings/schematics where provided to SANS 1765 ( to include contractor to provide wiring diagrams and equipment list ) as specified as follows :
A172: 22753 | B172: 15.2.1.1 | D172: c) MCC 05 - Actuated Valve MCC ( Including PLC panel & HMI ) | E172: Sum | F172: 1.00 | G172: 0.00 | H172: =IF(E172 = CHAR(37), F172*G172/100,F172*G172) -> 0.00
A174: 22754 | B174: 15.2.1.2 | D174: b) MCC 04 - Sludge Pumps MCC | E174: Sum | F174: 1.00 | G174: 0.00 | H174: =IF(E174 = CHAR(37), F174*G174/100,F174*G174) -> 0.00
A176: 22755 | B176: 15.2.1.3 | D176: c) MCC 05 - Actuated Valve MCC ( Including PLC panel & HMI ) | E176: Sum | F176: 1.00 | G176: 0.00 | H176: =IF(E176 = CHAR(37), F176*G176/100,F176*G176) -> 0.00
A178: 22756 | B178: 15.2.1.4 | D178: d) Remote Filter Control Panels 1 - 6 | E178: No | F178: 6.00 | G178: 0.00 | H178: =IF(E178 = CHAR(37), F178*G178/100,F178*G178) -> 0.00
A180: 22839 | B180: 15.2.1.5 | D180: e) Admin Building DB - A1 | E180: Sum | F180: 1.00 | G180: 0.00 | H180: =IF(E180 = CHAR(37), F180*G180/100,F180*G180) -> 0.00
A182: 22838 | B182: 15.2.1.6 | D182: f) Gatehouse DB - G1 | E182: Sum | F182: 1.00 | G182: 0.00 | H182: =IF(E182 = CHAR(37), F182*G182/100,F182*G182) -> 0.00
A184: 22841 | B184: 15.2.1.7 | D184: g) New VSDs and associated control equipment for the existing Backwash Pumps in existing MCC 01 ( replace existing star delta starters ) | E184: Sum | F184: 2.00 | G184: 0.00 | H184: =IF(E184 = CHAR(37), F184*G184/100,F184*G184) -> 0.00
A186: 22757 | B186: 15.2.1.8 | D186: h) New VSDs and associated control equipment for the new Backwash Recycle Pumps in the existing MCC 01 | E186: Sum | F186: 2.00 | G186: 0.00 | H186: =IF(E186 = CHAR(37), F186*G186/100,F186*G186) -> 0.00
A188: 22840 | B188: 15.2.1.9 | D188: i) Take free issue of the MCC 03 for the Screens & Conveyor and install in position and connect up (free issue by Screens & Conveyor contractor or supplier) | E188: Sum | F188: 1.00 | G188: 0.00 | H188: =IF(E188 = CHAR(37), F188*G188/100,F188*G188) -> 0.00
A190: 22758 | B190: 15.2.1.10 | D190: j) UPS for MCC 02 & 05 ( 3 kVA ) | E190: Sum | F190: 2.00 | G190: 0.00 | H190: =IF(E190 = CHAR(37), F190*G190/100,F190*G190) -> 0.00
A192: 22759 | B192: 15.2.1.11 | C192: PC ECI 5 ; PC ECI 7 | D192: PLC hardware and HMI for MCC 02 & MCC0 05 as specified under the PLC Specification_Rev 06 ( specification enclosed with the tender) [ incl ethernet/serial links] | E192: Sum | F192: 2.00 | G192: 0.00 | H192: =IF(E192 = CHAR(37), F192*G192/100,F192*G192) -> 0.00
A194: 22842 | B194: 15.2.1.12 | D194: Batteries , UPS , battery charger etc installed in MCC cubicle as specified ( include for anti-theft limit switches on the UPS box, battery box and PLC box) | E194: Sum | F194: 2.00 | G194: 0.00 | H194: =IF(E194 = CHAR(37), F194*G194/100,F194*G194) -> 0.00
B195: Total Carried Forward | H195: =SUM(H166:H194) -> 0.00
B196: SCHEDULE 15 - ELECTRICAL & INSTRUMENTATION
H197: SECTION 15.2: SMALL POWER DISTRIBUTION BOARDS, MCC & ANCILLARIES
B198: ITEM NO | C198: PAYMENT | D198: DESCRIPTION | E198: UNIT | F198: QTY | G198: RATE | H198: AMOUNT (RAND)
B199: Brought Forward | H199: =H195 -> 0.00
A200: 22760 | B200: 15.2.1.13 | D200: Integrate MCC 03 , MCC 04 and the filter remote control panels to the PLC in MCC 02 & MCC 05 | E200: Sum | F200: 1.00 | G200: 0.00 | H200: =IF(E200 = CHAR(37), F200*G200/100,F200*G200) -> 0.00
A202: 22843 | B202: 15.2.1.14 | D202: Prepare and submit the hard and soft copies for approval of the FDS specification and how the PLC software will be implemented ( Provisional item) | E202: Sum | F202: 1.00 | G202: 0.00 | H202: =IF(E202 = CHAR(37), F202*G202/100,F202*G202) -> 0.00
A204: 22844 | B204: 15.2.1.15 | D204: Allow for programming of the all PLCs using IEC-61131-3 coding standards ( Ladder Logic or other IEC-61131-3 languages are accepted) as per the PLC Specification _ Rev 06 (Provisional item) | E204: Sum | F204: 1.00 | G204: 0.00 | H204: =IF(E204 = CHAR(37), F204*G204/100,F204*G204) -> 0.00
A206: 22761 | B206: 15.2.1.16 | D206: Allow for Thin Slice testing, FAT’s, SAT’s and Commissioning Stages- As per Quality Control specification. (To be conducted jointly by the EWS Engineers and staff and their representatives) | E206: Sum | F206: 1.00 | G206: 0.00 | H206: =IF(E206 = CHAR(37), F206*G206/100,F206*G206) -> 0.00
A208: 22762 | B208: 15.2.1.17 | D208: Allow for all PLC & HMI Quality Control as per PLC Specification_ Rev 06 | E208: Sum | F208: 1.00 | G208: 0.00 | H208: =IF(E208 = CHAR(37), F208*G208/100,F208*G208) -> 0.00
A210: 22763 | B210: 15.2.1.18 | D210: Allow a sum for all the PLC licenses , including all profit and attendance | E210: Sum | F210: 1.00 | G210: 0.00 | H210: =IF(E210 = CHAR(37), F210*G210/100,F210*G210) -> 0.00
A212: 22764 | B212: 15.2.1.19 | D212: Allow a provisional sum of R 75 000,00 for PLC OEM Training in terms of PLC programming to EWS staff members at the programmer's offices and which is clearly defined in terms of structure and method and on site training | E212: Prov Sum | F212: 1.00 | G212: 75,000.00 | H212: 75,000.00
A214: 25378 | B214: 15.2.1.20 | D214: Allow for three(3) changes on the PLC and HMI software | E214: Sum | F214: 3.00 | G214: 0.00 | H214: =IF(E214 = CHAR(37), F214*G214/100,F214*G214) -> 0.00
A216: 22765 | B216: 15.2.1.21 | D216: Allow a sum of R 350 000,00 for the modifications of the existing MCC 01 and the pumps remote control panel in the ex pump station | E216: Sum | F216: 1.00 | G216: 0.00 | H216: =IF(E216 = CHAR(37), F216*G216/100,F216*G216) -> 0.00
A218: 22766 | B218: 15.2.1.22 | D218: Allow for profit and attendance on provisional sum above | E218: % | F218: =H216 -> 0.00 | G218: 0.00 | H218: =IF(E218 = CHAR(37), F218*G218/100,F218*G218) -> 0.00
A220: 22767 | B220: 15.2.1.23 | C220: PS ECI 23 | D220: Allow a sum to prepare wiring diagrams and component lists for comment and approval for all MCC's, electrical panels, DB's etc. supplied above. | E220: Sum | F220: 1.00 | G220: 0.00 | H220: =IF(E220 = CHAR(37), F220*G220/100,F220*G220) -> 0.00
B225: Total Carried Forward | H225: =SUM(H199:H224) -> 75,000.00
B226: SCHEDULE 15 - ELECTRICAL & INSTRUMENTATION
H227: SECTION 15.2: SMALL POWER DISTRIBUTION BOARDS, MCC & ANCILLARIES
B228: ITEM NO | C228: PAYMENT | D228: DESCRIPTION | E228: UNIT | F228: QTY | G228: RATE | H228: AMOUNT (RAND)
B229: Brought Forward | H229: =H225 -> 75,000.00
A230: 22768 | B230: 15.2.1.24 | D230: Allow an amount for the Engineers and Client costs to attend the FAT for all the above MCCs, control panels and DBs etc | E230: Sum | F230: 1.00 | G230: 0.00 | H230: =IF(E230 = CHAR(37), F230*G230/100,F230*G230) -> 0.00
A232: 22783 | B232: 15.2.1.25 | C232: PS ECI 23 | D232: Allow a sum to prepare the FDS, P & ID diagrams, I/O lists and wiring diagrams, instrument loop diagarms, cable schedule and block diagrams, network and process diagrams etc complete for all MCCs & DBs, control , automation and PLC systems ,etc supplied above as specified for the entire project including all for all pump stations | E232: Sum | F232: 1.00 | G232: 0.00 | H232: =IF(E232 = CHAR(37), F232*G232/100,F232*G232) -> 0.00
A234: 22879 | B234: 15.2.2 | D234: CABLE TRAYS & ACCESSORIES
A236: 22880 | C236: PS ECI 11 | D236: Supply and installation of heavy duty hot dipped galvanized perforated cable tray with 76mm high turn including splicers etc. The rate shall include for the fixing of cable tray against walls in a horizontal position from the soffit above by means of M8mm threaded metal rods hangers with anchor bolts at intervals not exceeding 1000mm.
A238: 22881 | B238: 15.2.2.1 | D238: a) 100mm cable trays straight | E238: m | F238: 80.00 | G238: 0.00 | H238: =IF(E238 = CHAR(37), F238*G238/100,F238*G238) -> 0.00
A240: 22882 | B240: 15.2.2.2 | D240: b) 100mm cable tray bend and tees | E240: No. | F240: 10.00 | G240: 0.00 | H240: =IF(E240 = CHAR(37), F240*G240/100,F240*G240) -> 0.00
A242: 22883 | B242: 15.2.2.3 | D242: c) 200 mm cable ladder | E242: m | F242: 80.00 | G242: 0.00 | H242: =IF(E242 = CHAR(37), F242*G242/100,F242*G242) -> 0.00
A244: 22884 | B244: 15.2.2.4 | D244: d) 200mm cable ladder bends and tees | E244: No. | F244: 10.00 | G244: 0.00 | H244: =IF(E244 = CHAR(37), F244*G244/100,F244*G244) -> 0.00
A246: 22885 | B246: 15.2.2.5 | D246: e) 300mm cable ladder | E246: m | F246: 50.00 | G246: 0.00 | H246: =IF(E246 = CHAR(37), F246*G246/100,F246*G246) -> 0.00
A248: 22886 | B248: 15.2.2.6 | D248: f) 300mm cable ladder bends and tees | E248: No. | F248: 5.00 | G248: 0.00 | H248: =IF(E248 = CHAR(37), F248*G248/100,F248*G248) -> 0.00
A250: 22887 | B250: 15.2.3 | D250: ISOLATORS FOR ANCILLARY EQUIPMENT
A252: 22888 | D252: Supply, installation and connection of weatherproof isolator in IP65 slide extension box complete with box
A254: 22889 | B254: 15.2.3.1 | D254: a) 20 Amp 3 pole | E254: No. | F254: 4.00 | G254: 0.00 | H254: =IF(E254 = CHAR(37), F254*G254/100,F254*G254) -> 0.00
A256: 22890 | B256: 15.2.3.2 | D256: b) 30 Amp 3 pole | E256: No. | F256: 4.00 | G256: 0.00 | H256: =IF(E256 = CHAR(37), F256*G256/100,F256*G256) -> 0.00
A258: 22891 | B258: 15.2.3.3 | D258: c) Weatherproof 20Amp TP rotary isolator adjacent stirrers, actuators etc | E258: No. | F258: 40.00 | G258: 0.00 | H258: =IF(E258 = CHAR(37), F258*G258/100,F258*G258) -> 0.00
A260: 22892 | B260: 15.2.3.4 | D260: d) Emergency Stop buttons + stands corrosion proof s/steel | E260: No. | F260: 8.00 | G260: 0.00 | H260: =IF(E260 = CHAR(37), F260*G260/100,F260*G260) -> 0.00
B263: Total Carried Forward | H263: =SUM(H229:H262) -> 75,000.00
B264: SCHEDULE 15 - ELECTRICAL & INSTRUMENTATION
H265: SECTION 15.2: SMALL POWER DISTRIBUTION BOARDS, MCC & ANCILLARIES
B266: ITEM NO | C266: PAYMENT | D266: DESCRIPTION | E266: UNIT | F266: QTY | G266: RATE | H266: AMOUNT (RAND)
B267: Brought Forward | H267: =H263 -> 75,000.00
A268: 22893 | B268: 15.2.4 | D268: Supply and install the following instrument cabling and terminations. Ethernet cabling to be CAT6E industrial grade
A270: 22894 | B270: 15.2.4.1 | D270: a) 1.5 mm² Twisted pair shielded cables - 6 Core | E270: m | F270: 1,600.00 | G270: 0.00 | H270: =IF(E270 = CHAR(37), F270*G270/100,F270*G270) -> 0.00
A272: 22895 | B272: 15.2.4.2 | D272: b) 1.5 mm² Twisted pair cables - 6 Core Terminations | E272: No. | F272: 80.00 | G272: 0.00 | H272: =IF(E272 = CHAR(37), F272*G272/100,F272*G272) -> 0.00
A274: 22896 | B274: 15.2.4.3 | D274: c) Modbus cabling | E274: m | F274: 100.00 | G274: 0.00 | H274: =IF(E274 = CHAR(37), F274*G274/100,F274*G274) -> 0.00
A276: 22897 | B276: 15.2.4.4 | D276: d) Modbus terminations/ends | E276: No. | F276: 8.00 | G276: 0.00 | H276: =IF(E276 = CHAR(37), F276*G276/100,F276*G276) -> 0.00
A278: 22898 | B278: 15.2.4.5 | D278: e) Fibre optic cabling 6 pair single mode | E278: m | F278: 100.00 | G278: 0.00 | H278: =IF(E278 = CHAR(37), F278*G278/100,F278*G278) -> 0.00
A280: 22899 | B280: 15.2.4.6 | D280: f) Fibre optic cabling terminations/splicing | E280: No. | F280: 8.00 | G280: 0.00 | H280: =IF(E280 = CHAR(37), F280*G280/100,F280*G280) -> 0.00
A282: 22900 | B282: 15.2.4.7 | D282: g) Cable baskets - 150mm | E282: m | F282: 20.00 | G282: 0.00 | H282: =IF(E282 = CHAR(37), F282*G282/100,F282*G282) -> 0.00
A284: 22901 | B284: 15.2.4.8 | D284: h) Weatherproof termination boxes for WTW instruments with DIN rail, terminals etc.) | E284: No. | F284: 30.00 | G284: 0.00 | H284: =IF(E284 = CHAR(37), F284*G284/100,F284*G284) -> 0.00
A286: 22902 | B286: 15.2.4.9 | D286: i) Weatherproof termination boxes with DIN rail, terminals and surge protection arrestors for flow meters and cabling | E286: No | F286: 4.00 | G286: 0.00 | H286: =IF(E286 = CHAR(37), F286*G286/100,F286*G286) -> 0.00
B315: Total Carried Forward To Summary | H315: =SUM(H267:H314) -> 75,000.00
B316: SCHEDULE 15 - ELECTRICAL & INSTRUMENTATION
H317: SECTION 15.3: TELEMETRY
B318: ITEM NO | C318: PAYMENT | D318: DESCRIPTION | E318: UNIT | F318: QTY | G318: RATE | H318: AMOUNT (RAND)
A319: 22784 | B319: 15.3 | C319: PS ECI 12 | D319: TELEMETRY SYSTEM -WTW & PUMP STATIONS
A321: 22785 | B321: 15.3.1 | D321: Disconnect , remove and deliver the existing telemetry system at the WTW to EWS stores | E321: Sum | F321: 1.00 | G321: 0.00 | H321: =IF(E321 = CHAR(37), F321*G321/100,F321*G321) -> 0.00
A323: 22786 | D323: Supply, install , test and commission the following to EWS standards and specifications
A325: 22787 | B325: 15.3.2 | D325: a) Telemetry panel at the WTW ( 1 site + control room ) | E325: Sum | F325: 1.00 | G325: 0.00 | H325: =IF(E325 = CHAR(37), F325*G325/100,F325*G325) -> 0.00
A327: 22788 | B327: 15.3.3 | D327: a) Telemetry panel at the remote reservoirs ( 5 sites + control room ) | E327: Sum | F327: 5.00 | G327: 0.00 | H327: =IF(E327 = CHAR(37), F327*G327/100,F327*G327) -> 0.00
A329: 22868 | B329: 15.3.4 | D329: b) Telemetry RTU , digital radios etc ( 6 sites + control room ) | E329: Sum | F329: 6.00 | G329: 0.00 | H329: =IF(E329 = CHAR(37), F329*G329/100,F329*G329) -> 0.00
A331: 22789 | B331: 15.3.5 | D331: c) Telemetry batteries - 100A/hr ( 2 per site ) | E331: No | F331: 12.00 | G331: 0.00 | H331: =IF(E331 = CHAR(37), F331*G331/100,F331*G331) -> 0.00
A333: 22790 | B333: 15.3.6 | D333: d) Webb radio antennae and associated cabling, mounting and accessories etc complete (6 sites + control room - WTW & 5 reservoirs) | E333: Sum | F333: 6.00 | G333: 0.00 | H333: =IF(E333 = CHAR(37), F333*G333/100,F333*G333) -> 0.00
A335: 22791 | B335: 15.3.7 | D335: e) DC surge protection and optical isolation between serial devices (6 sites ) | E335: Sum | F335: 6.00 | G335: 0.00 | H335: =IF(E335 = CHAR(37), F335*G335/100,F335*G335) -> 0.00
A337: 22903 | B337: 15.3.8 | D337: f) Configuration , testing and commissioning of telemetry system and instrumentation ( 6 sites + control room ) | E337: Sum | F337: 6.00 | G337: 0.00 | H337: =IF(E337 = CHAR(37), F337*G337/100,F337*G337) -> 0.00
A339: 22904 | B339: 15.3.9 | D339: g) Integrate telemetry system to EWS SCADA system at EWS Control Room including all hardware, software and integration between all MCCs , PLCs and telemetry panel ( for WTW & Reservoirs ) | E339: Sum | F339: 1.00 | G339: 0.00 | H339: =IF(E339 = CHAR(37), F339*G339/100,F339*G339) -> 0.00
A341: 22905 | B341: 15.3.10 | D341: h) Supply wiring diagrams, compliance certificates and hand-over data pack for complete telemetry system ( for WTW and Reservoirs ) | E341: Sum | F341: 1.00 | G341: 0.00 | H341: =IF(E341 = CHAR(37), F341*G341/100,F341*G341) -> 0.00
A343: 22906 | B343: 15.3.11 | D343: i) Integrate telemetry system to EWS SCADA system at EWS Control Room including all hardware, software and integration between all MCCs , PLCs and telemetry panel ( for WTW & Reservoirs ) | E343: Sum | F343: 1.00 | G343: 0.00 | H343: =IF(E343 = CHAR(37), F343*G343/100,F343*G343) -> 0.00
B349: Total Carried Forward To Summary | H349: =SUM(H319:H348) -> 0.00
B350: SCHEDULE 15 - ELECTRICAL & INSTRUMENTATION
H351: SECTION 15.4: INSTRUMENTATION, SCADA & PLC SYSTEM
B352: ITEM NO | C352: PAYMENT | D352: DESCRIPTION | E352: UNIT | F352: QTY | G352: RATE | H352: AMOUNT (RAND)
A353: 22792 | B353: 15.4 | D353: INSTRUMENTATION, SCADA & PLC SYSTEM
A355: 22793 | B355: 15.4.1 | D355: INSTRUMENTATION
A357: 22794 | C357: PS ECI 17 ; PS ECI 27 | D357: Instrumentation to be as per drawings, schematics, loop diagrams and to comply with EWS or industry standard specifications. Instrumentation to include all necessary sensors, transmitters, controllers and accessories to provide thorough and accurate analysis/control. All Instrumentation to be MODBUS ready unless otherwise stated. Instrumentation make & model to be same or equivalent and to be approved by the Engineer prior to purchase.
A359: 22795 | B359: 15.4.1.1 | D359: a) Ultrasonic flow meter as specified - 400dia with earthing rings complete | E359: No. | F359: 1.00 | G359: 0.00 | H359: =IF(E359 = CHAR(37), F359*G359/100,F359*G359) -> 0.00
A361: 22796 | B361: 15.4.1.2 | D361: b) Siemens or similar approved MR200 or similar and equal approved ultrasonic level transmitter ( 0-10m range ) complete with Siemens Echomax XPS0-101 R sensor , remote transmitter with mounting brackets, mounting arms amd all necessary accessories. ( linked to PLC) | E361: No | F361: 3.00 | G361: 0.00 | H361: =IF(E361 = CHAR(37), F361*G361/100,F361*G361) -> 0.00
A363: 22869 | B363: 15.4.1.3 | D363: c) Limit switch AC/DC or similar approved | E363: No | F363: 2.00 | G363: 0.00 | H363: =IF(E363 = CHAR(37), F363*G363/100,F363*G363) -> 0.00
A365: 22870 | B365: 15.4.1.4 | D365: d) Supply and install the IFM or similar and equal approved electronic no-flow switches with half inch sockets welded to pump delivery pipe as specified ( for raw water and other pumps ) | E365: No | F365: 5.00 | G365: 0.00 | H365: =IF(E365 = CHAR(37), F365*G365/100,F365*G365) -> 0.00
A367: 22797 | B367: 15.4.1.5 | D367: e) Supply and install low level cut-out float switches in sumps with s/s chain, weights etc as specified | E367: No | F367: 2.00 | G367: 0.00 | H367: =IF(E367 = CHAR(37), F367*G367/100,F367*G367) -> 0.00
A369: 22798 | B369: 15.4.1.6 | D369: f) Supply and install level electrodes in sumps for control of pumps and for low level cut-out of pumps as specified | E369: No | F369: 2.00 | G369: 0.00 | H369: =IF(E369 = CHAR(37), F369*G369/100,F369*G369) -> 0.00
B380: Total Carried Forward | H380: =SUM(H353:H379) -> 0.00
B381: SCHEDULE 15 - ELECTRICAL & INSTRUMENTATION
H382: SECTION 15.4: INSTRUMENTATION, SCADA & PLC SYSTEM
B383: ITEM NO | C383: PAYMENT | D383: DESCRIPTION | E383: UNIT | F383: QTY | G383: RATE | H383: AMOUNT (RAND)
B384: Brought Forward | H384: =H380 -> 0.00
A385: 22799 | B385: 15.4.1.7 | C385: PS ECI 17 | D385: g) New on-site SCADA system at the WTW complete including all hardware , PC, printer , software etc complete to comply with EWS specifications and drawings. SCADA package to be fully compatible and integrate with PLC systems . SCADA & PLC to be compatible and integratible or equivalent and be approved by Engineer / Client prior to purchase. SCADA system to be Geo-SCADA as per EWS specifications | E385: Sum | F385: 1.00 | G385: 0.00 | H385: =IF(E385 = CHAR(37), F385*G385/100,F385*G385) -> 0.00
A387: 22800 | B387: 15.4.1.8 | D387: h) Allow a provisional sum of R 175 000,00 to upgrade and re-programme the existing SCADA system in the EWS Control Room to include the WTW and all the reservoirs sites (by certified system integrator for the equipment supplied). | E387: Prov Sum | F387: 1.00 | G387: 75,000.00 | H387: 75,000.00
A389: 22801 | B389: 15.4.1.9 | D389: i) Allow for profit and attendance on above item | E389: % | F389: =H387 -> 75,000.000 | G389: 0.00 | H389: =IF(E389 = CHAR(37), F389*G389/100,F389*G389) -> 0.00
A391: 22802 | B391: 15.4.1.10 | D391: j) Allow an provisional amount of R 75 000,00 for the modifications of the control systems for the operation of the pumping systems | E391: Prov Sum | F391: 1.00 | G391: 65,000.00 | H391: 65,000.00
A393: 22803 | B393: 15.4.1.11 | D393: k) Allow for profit and attendance on item above | E393: % | F393: =H391 -> 65,000.00 | G393: 0.00 | H393: =IF(E393 = CHAR(37), F393*G393/100,F393*G393) -> 0.00
A395: 22804 | B395: 15.4.1.12 | D395: l) UPS- 6kVA for SCADA System as specified | E395: Sum | F395: 1.00 | G395: 0.00 | H395: =IF(E395 = CHAR(37), F395*G395/100,F395*G395) -> 0.00
A397: 22805 | B397: 15.4.1.13 | D397: m) Allow a sum for a PLC/SCADA System Integrator for programming of the all the new PLCs and for the new SCADA systems at WTW Control Room | E397: Sum | F397: 1.00 | G397: 0.00 | H397: =IF(E397 = CHAR(37), F397*G397/100,F397*G397) -> 0.00
A399: 22806 | B399: 15.4.2 | D399: TRANSFORMER
A401: 22871 | B401: 15.4.2.1 | D401: a) Supply , deliver to site and off-load the new 200kVA 525/400 Volt transformer as specified | E401: Sum | F401: 1.00 | G401: 0.00 | H401: =IF(E401 = CHAR(37), F401*G401/100,F401*G401) -> 0.00
A403: 22872 | B403: 15.4.2.2 | D403: b) Install in position and connect up the new transformer | E403: Sum | F403: 1.00 | G403: 0.00 | H403: =IF(E403 = CHAR(37), F403*G403/100,F403*G403) -> 0.00
A405: 22873 | B405: 15.4.2.3 | D405: c) Test and commission the new transformer | E405: Sum | F405: 1.00 | G405: 0.00 | H405: =IF(E405 = CHAR(37), F405*G405/100,F405*G405) -> 0.00
A407: 22874 | B407: 15.4.2.4 | D407: d) Disconnect , make safe and remove the existing 100kVA 525/400 Volt transformer and deliver to EWS stores | E407: Sum | F407: 1.00 | G407: 0.00 | H407: =IF(E407 = CHAR(37), F407*G407/100,F407*G407) -> 0.00
B410: Total Carried Forward | H410: =SUM(H384:H409) -> 140,000.00
B411: SCHEDULE 15 - ELECTRICAL & INSTRUMENTATION
H412: SECTION 15.4: INSTRUMENTATION, SCADA & PLC SYSTEM
B413: ITEM NO | C413: PAYMENT | D413: DESCRIPTION | E413: UNIT | F413: QTY | G413: RATE | H413: AMOUNT (RAND)
B414: Brought Forward | H414: =H410 -> 140,000.00
A415: 22875 | B415: 15.4.2.5 | D415: e) Provide all drawings, documentation and other details of the new transformer | E415: Sum | F415: 1.00 | G415: 0.00 | H415: =IF(E415 = CHAR(37), F415*G415/100,F415*G415) -> 0.00
B472: Total Carried Forward To Summary | H472: =SUM(H414:H471) -> 140,000.00
B473: SCHEDULE 15 - ELECTRICAL & INSTRUMENTATION
H474: SECTION 15.5: LIGHTNING, SMALL POWER & SOCKET INSTALLATION
B475: ITEM NO | C475: PAYMENT | D475: DESCRIPTION | E475: UNIT | F475: QTY | G475: RATE | H475: AMOUNT (RAND)
A476: 22807 | B476: 15.5 | C476: PS ECI 8 | D476: LIGHTING, SMALL POWER & SOCKET INSTALLATION
... 189 more rows

Sheet Schedule 16
A1: Rate=G | B1: SCHEDULE 16 - LIGHTNING PROTECTION AND EARTHING INSTALLATION
H2: SECTION 16.1: LIGHTNING PROTECTION AND EARTHING INSTALLATION
B3: ITEM NO | C3: PAYMENT | D3: DESCRIPTION | E3: UNIT | F3: QTY | G3: RATE | H3: AMOUNT (RAND)
A4: 22999 | B4: 16.1 | C4: PS ECI 22 | D4: LIGHTNING PROTECTION AND EARTHING INSTALLATION
A6: 23000 | B6: 16.1.1 | D6: Test and carry out the earth resistivity survey and provide results and recommendations | E6: Sum | F6: 1.0 | G6: 0.00 | H6: =IF(E6 = CHAR(37), F6*G6/100,F6*G6) -> 0.00
A8: 23001 | B8: 16.1.2 | D8: Trenching and backfilling for earth ring main or earth mat | E8: m | F8: 160.0 | G8: 0.00 | H8: =IF(E8 = CHAR(37), F8*G8/100,F8*G8) -> 0.00
A10: 23002 | B10: 16.1.3 | D10: Trenching and backfilling for earth ring main or earth mat | E10: m | F10: 160.0 | G10: 0.00 | H10: =IF(E10 = CHAR(37), F10*G10/100,F10*G10) -> 0.00
A12: 23003 | B12: 16.1.4 | D12: 70mm² PVC insulated bonding and earth conductors | E12: m | F12: 140.0 | G12: 0.00 | H12: =IF(E12 = CHAR(37), F12*G12/100,F12*G12) -> 0.00
A14: 23004 | B14: 16.1.5 | D14: 2m long copper clad earth electrodes | E14: No | F14: 18.0 | G14: 0.00 | H14: =IF(E14 = CHAR(37), F14*G14/100,F14*G14) -> 0.00
A16: 23017 | B16: 16.1.6 | D16: Exothermic welded connections | E16: No | F16: 20.00 | G16: 0.00 | H16: =IF(E16 = CHAR(37), F16*G16/100,F16*G16) -> 0.00
A18: 23018 | B18: 16.1.7 | D18: 70mm² terminations | E18: No | F18: 40.00 | G18: 0.00 | H18: =IF(E18 = CHAR(37), F18*G18/100,F18*G18) -> 0.00
A20: 23005 | B20: 16.1.8 | D20: 10mm dia solid aluminium roof terminal conductors saddled to concrete roof | E20: No | F20: 55.0 | G20: 0.00 | H20: =IF(E20 = CHAR(37), F20*G20/100,F20*G20) -> 0.00
A22: 23006 | B22: 16.1.9 | D22: Allow for test points in all down conductors | E22: No | F22: 15.0 | G22: 0.00 | H22: =IF(E22 = CHAR(37), F22*G22/100,F22*G22) -> 0.00
A24: 23007 | B24: 16.1.10 | D24: 10mm dia solid aluminium roof finials at all corners of buildings | E24: No | F24: 12.0 | G24: 0.00 | H24: =IF(E24 = CHAR(37), F24*G24/100,F24*G24) -> 0.00
A26: 23008 | B26: 16.1.11 | D26: Denso wrap to all underground connections | E26: No | F26: 30.0 | G26: 0.00 | H26: =IF(E26 = CHAR(37), F26*G26/100,F26*G26) -> 0.00
A28: 23009 | B28: 16.1.12 | D28: Test and commission the entire lightning protection and earthing installation , provide earth test certificates ( one for each building or structure ) | E28: Sum | F28: 1.0 | G28: 0.00 | H28: =IF(E28 = CHAR(37), F28*G28/100,F28*G28) -> 0.00
A30: 23010 | B30: 16.1.13 | D30: Allow for labelling and notices for all the earthing systems | E30: Sum | F30: 1.0 | G30: 0.00 | H30: =IF(E30 = CHAR(37), F30*G30/100,F30*G30) -> 0.00
A32: 23011 | B32: 16.1.14 | D32: Allow a provisional sum of R 40 000,00 for any un-forseen work to be used entitle at the discretion of the Client or Engineer and for the Engineer to attend the FAT | E32: Sum | F32: 1.0 | G32: 0.00 | H32: =IF(E32 = CHAR(37), F32*G32/100,F32*G32) -> 0.00
A34: 23012 | B34: 16.1.15 | D34: Allow for profit and attendance on the above provisional sum | E34: % | F34: =H32 -> 0.0 | G34: 0.00 | H34: =IF(E34 = CHAR(37), F34*G34/100,F34*G34) -> 0.00
A36: 23013 | B36: 16.1.16 | D36: Provide associated documentation including all the earth test certificates, compliance certificates , as-built information and drawings and hand-over data packs | E36: Sum | F36: 1.0 | G36: 0.00 | H36: =IF(E36 = CHAR(37), F36*G36/100,F36*G36) -> 0.00
B39: Total Carried Forward | H39: =SUM(H4:H38) -> 0.00
B40: SCHEDULE 16 - LIGHTNING PROTECTION AND EARTHING INSTALLATION
H41: SECTION 16.1: LIGHTNING PROTECTION AND EARTHING INSTALLATION
B42: ITEM NO | C42: PAYMENT | D42: DESCRIPTION | E42: UNIT | F42: QTY | G42: RATE | H42: AMOUNT (RAND)
B43: Brought Forward | H43: =H39 -> 0.00
A44: 23014 | B44: 16.1.17 | D44: Any other item the tenderer considers has been omitted and which requires pricing as separate items. | E44: Sum | F44: 1.0 | G44: 0.00 | H44: =IF(E44 = CHAR(37), F44*G44/100,F44*G44) -> 0.00
A46: 23015 | D46: i)
A48: 23016 | D48: ii)
B101: Total Carried Forward To Summary | H101: =SUM(H43:H100) -> 0.00
B102: SCHEDULE 16 - LIGHTNING PROTECTION AND EARTHING INSTALLATION
D103: SUMMARY OF SECTIONS
C104: SECTION | D104: DESCRIPTION | H104: AMOUNT (RAND)
C105: 16.1 | D105: SECTION 16.1: LIGHTNING PROTECTION AND EARTHING INSTALLATION | H105: =H101 -> 0.00
C162: Total Carried Forward To Summary Of Schedules | D162: Total Carried Forward To Summary Of Schedules | H162: =SUM(H105:H161) -> 0.00

Sheet Schedule 17
A1: Rate=G | B1: SCHEDULE 17: STRUCTURAL REPAIRS/IMPROVEMENTS
H2: SECTION 17.1: CHAMBERS
B3: ITEM NO | C3: PAYMENT | D3: DESCRIPTION | E3: UNIT | F3: QTY | G3: RATE | H3: AMOUNT (RAND)
A4: 23812 | B4: 17.1 | D4: CHAMBERS
A6: 23836 | B6: 17.1.1 | D6: RAW WATER VALVE CHAMBER
A8: 23837 | D8: Surface Repairs
A10: 23838 | B10: 17.1.1.1 | D10: Cleaning and preparation of Concrete Roof Slab and Internal Walls (Water jetting of structure to remove all loose debris and scum) | E10: m² | F10: 10.00 | G10: 0.00 | H10: =IF(E10 = CHAR(37), F10*G10/100,F10*G10) -> 0.00
A12: 23839 | B12: 17.1.1.2 | D12: Crack injection with Sika epoxy resin or similar approved to (tank roof and other areas identified by the Engineer) | E12: m | F12: 6.00 | G12: 0.00 | H12: =IF(E12 = CHAR(37), F12*G12/100,F12*G12) -> 0.00
A14: 23840 | B14: 17.1.1.3 | D14: Cracking Filling using SikaGrout-295 Non-Shrink grout or similar approved | E14: m | F14: 6.00 | G14: 0.00 | H14: =IF(E14 = CHAR(37), F14*G14/100,F14*G14) -> 0.00
A16: 23841 | B16: 17.1.1.4 | D16: Proprietary cemetitious repair compound Sika 212 or similar approved (Repair systems) to spall areas identified by the Engineer | E16: m² | F16: 5.00 | G16: 0.00 | H16: =IF(E16 = CHAR(37), F16*G16/100,F16*G16) -> 0.00
A18: 23842 | B18: 17.1.1.5 | D18: Curing of repair surfaces by coating the surface with Sika Antisol curing compounds or similar approved to repaired areas | E18: m² | F18: 5.00 | G18: 0.00 | H18: =IF(E18 = CHAR(37), F18*G18/100,F18*G18) -> 0.00
A20: 23843 | B20: 17.1.1.6 | D20: Application of protective treatment (Sika FerroGard 903+, at an application rate of 0.5kg per square meter or similar approved) | E20: m² | F20: 5.00 | G20: 0.00 | H20: =IF(E20 = CHAR(37), F20*G20/100,F20*G20) -> 0.00
A22: 23844 | B22: 17.1.1.7 | D22: Application of flexible waterproofing paint protective layer | E22: m² | F22: 5.00 | G22: 0.00 | H22: =IF(E22 = CHAR(37), F22*G22/100,F22*G22) -> 0.00
A24: 23845 | B24: 17.1.2 | D24: MOTIVE PRV CHAMBER
A26: 23846 | D26: Surface Repairs
A28: 23847 | B28: 17.1.2.1 | D28: Cleaning and preparation of Concrete Roof Slab and Internal Walls (Water jetting of structure to remove all loose debris and scum) | E28: m² | F28: 5.00 | G28: 0.00 | H28: =IF(E28 = CHAR(37), F28*G28/100,F28*G28) -> 0.00
A30: 23848 | B30: 17.1.2.2 | D30: Application of protective treatment (Sika FerroGard 903+, at an application rate of 0.5kg per square meter or similar approved) | E30: m² | F30: 5.00 | G30: 0.00 | H30: =IF(E30 = CHAR(37), F30*G30/100,F30*G30) -> 0.00
A32: 23849 | B32: 17.1.2.3 | D32: Application of flexible waterproofing paint protective layer | E32: m² | F32: 5.00 | G32: 0.00 | H32: =IF(E32 = CHAR(37), F32*G32/100,F32*G32) -> 0.00
A34: 23850 | B34: 17.1.3 | D34: BELVEDERE METER CHAMBER
A36: 23851 | D36: Surface Repairs
B41: Total Carried Forward | H41: =SUM(H4:H40) -> 0.00
B42: SCHEDULE 17: STRUCTURAL REPAIRS/IMPROVEMENTS
H43: SECTION 17.1: CHAMBERS
B44: ITEM NO | C44: PAYMENT | D44: DESCRIPTION | E44: UNIT | F44: QTY | G44: RATE | H44: AMOUNT (RAND)
B45: Brought Forward | H45: =H41 -> 0.00
A46: 23852 | B46: 17.1.3.1 | D46: Cleaning and preparation of Concrete Roof Slab and Internal Walls (Water jetting of structure to remove all loose debris and scum) and removal of existing paint | E46: m² | F46: 10.00 | G46: 0.00 | H46: =IF(E46 = CHAR(37), F46*G46/100,F46*G46) -> 0.00
A48: 23853 | B48: 17.1.3.2 | D48: Application of protective treatment (Sika FerroGard 903+, at an application rate of 0.5kg per square meter or similar approved) | E48: m² | F48: 7.00 | G48: 0.00 | H48: =IF(E48 = CHAR(37), F48*G48/100,F48*G48) -> 0.00
A50: 23854 | B50: 17.1.3.3 | D50: Application of flexible waterproofing paint protective layer (Internal and External Application) | E50: m² | F50: 20.00 | G50: 0.00 | H50: =IF(E50 = CHAR(37), F50*G50/100,F50*G50) -> 0.00
A52: 23855 | D52: Miscellaneous
A54: 23856 | B54: 17.1.3.4 | D54: Construct 100mm Concrete Floor Slab 25Mpa inside Meter Chamber | E54: m³ | F54: 1.00 | G54: 0.00 | H54: =IF(E54 = CHAR(37), F54*G54/100,F54*G54) -> 0.00
A56: 23857 | B56: 17.1.4 | D56: METCALFE METER CHAMBER
A58: 23858 | D58: Structural Repairs
A60: 23859 | B60: 17.1.4.1 | D60: Remove existing chamber Slab and Replace with new Precast RC Slab 2m x 2m x 150mm thick with new 1.5m x 1.5m Heavy Duty Lockable Galvanized Steel Lid | E60: Sum | F60: 1.00 | G60: 0.00 | H60: =IF(E60 = CHAR(37), F60*G60/100,F60*G60) -> 0.00
A62: 23860 | B62: 17.1.4.2 | D62: Repair Chamber Brickwork | E62: m² | F62: 1.00 | G62: 0.00 | H62: =IF(E62 = CHAR(37), F62*G62/100,F62*G62) -> 0.00
A64: 23861 | D64: Surface Repairs
A66: 23862 | B66: 17.1.4.3 | D66: Cleaning and preparation of Concrete Roof Slab and Internal Walls (Water jetting of structure to remove all loose debris and scum) and removal of existing paint | E66: m² | F66: 10.00 | G66: 0.00 | H66: =IF(E66 = CHAR(37), F66*G66/100,F66*G66) -> 0.00
A68: 23863 | B68: 17.1.4.4 | D68: Application of protective treatment (Sika FerroGard 903+, at an application rate of 0.5kg per square meter or similar approved) | E68: m² | F68: 7.00 | G68: 0.00 | H68: =IF(E68 = CHAR(37), F68*G68/100,F68*G68) -> 0.00
A70: 23864 | B70: 17.1.4.5 | D70: Application of flexible waterproofing paint protective layer (Internal and External Application) | E70: m² | F70: 20.00 | G70: 0.00 | H70: =IF(E70 = CHAR(37), F70*G70/100,F70*G70) -> 0.00
A72: 23865 | D72: Miscellaneous
A74: 23866 | B74: 17.1.4.6 | D74: Construct 100mm Concrete Floor Slab 25Mpa inside Meter Chamber | E74: m³ | F74: 1.00 | G74: 0.00 | H74: =IF(E74 = CHAR(37), F74*G74/100,F74*G74) -> 0.00
B81: Total Carried Forward To Summary | H81: =SUM(H45:H80) -> 0.00
B82: SCHEDULE 17: STRUCTURAL REPAIRS/IMPROVEMENTS
H83: SECTION 17.2: CHEMICAL BUILDING
B84: ITEM NO | C84: PAYMENT | D84: DESCRIPTION | E84: UNIT | F84: QTY | G84: RATE | H84: AMOUNT (RAND)
A85: 23813 | B85: 17.2 | D85: CHLORINE STORAGE ROOM
A87: 23867 | B87: 17.2.1 | D87: REINFORCED CONCRETE ROOF SLAB
A89: 23868 | D89: Surface Repairs
A91: 23869 | B91: 17.2.1.1 | D91: Cleaning and preparation of Concrete Roof Slab and External Brick Walls (Water jetting of structure to remove all loose debris and scum) | E91: m² | F91: 180.00 | G91: 0.00 | H91: =IF(E91 = CHAR(37), F91*G91/100,F91*G91) -> 0.00
A93: 23870 | B93: 17.2.1.2 | D93: Proprietary cemetitious repair compound Sika 212 or similar approved (Repair systems) to spall areas identified by the Engineer | E93: m² | F93: 180.00 | G93: 0.00 | H93: =IF(E93 = CHAR(37), F93*G93/100,F93*G93) -> 0.00
A95: 23871 | B95: 17.2.1.3 | D95: Curing of repair surfaces by coating the surface with Sika Antisol curing compounds or similar approved to repaired areas | E95: m² | F95: 180.00 | G95: 0.00 | H95: =IF(E95 = CHAR(37), F95*G95/100,F95*G95) -> 0.00
A97: 23872 | B97: 17.2.1.4 | D97: Application of protective treatment (Sika FerroGard 903+, at an application rate of 0.5kg per square meter or similar approved) | E97: m² | F97: 180.00 | G97: 0.00 | H97: =IF(E97 = CHAR(37), F97*G97/100,F97*G97) -> 0.00
A99: 23873 | B99: 17.2.1.5 | D99: Application of flexible waterproofing paint protective layer | E99: m² | F99: 180.00 | G99: 0.00 | H99: =IF(E99 = CHAR(37), F99*G99/100,F99*G99) -> 0.00
A101: 23874 | B101: 17.2.2 | D101: INTERIOR WALLS(GROUND LEVEL)
A103: 23875 | D103: Surface Repairs
A105: 23876 | B105: 17.2.2.1 | D105: Crack injection with Sika epoxy resin or similar approved to (tank roof and other areas identified by the Engineer) | E105: m | F105: 5.00 | G105: 0.00 | H105: =IF(E105 = CHAR(37), F105*G105/100,F105*G105) -> 0.00
A107: 23877 | B107: 17.2.2.2 | D107: Cracking Filling using SikaGrout-295 Non-Shrink grout or similar approved | E107: m | F107: 5.00 | G107: 0.00 | H107: =IF(E107 = CHAR(37), F107*G107/100,F107*G107) -> 0.00
A109: 23878 | B109: 17.2.3 | D109: INTERIOR CONCRETE ROOF CEILING(GROUND LEVEL)
A111: 23879 | D111: Surface Repairs
A113: 23880 | B113: 17.2.3.1 | D113: Crack injection with Sika epoxy resin or similar approved to (tank roof and other areas identified by the Engineer) | E113: m | F113: 5.00 | G113: 0.00 | H113: =IF(E113 = CHAR(37), F113*G113/100,F113*G113) -> 0.00
A115: 23881 | B115: 17.2.3.2 | D115: Cracking Filling using SikaGrout-295 Non-Shrink grout or similar approved | E115: m | F115: 5.00 | G115: 0.00 | H115: =IF(E115 = CHAR(37), F115*G115/100,F115*G115) -> 0.00
A117: 23882 | B117: 17.2.4 | D117: INTERIOR CONCRETE FLOOR SLAB(GROUND LEVEL)
A119: 23883 | D119: Surface Repairs
B123: Total Carried Forward | H123: =SUM(H85:H122) -> 0.00
B124: SCHEDULE 17: STRUCTURAL REPAIRS/IMPROVEMENTS
H125: SECTION 17.2: CHEMICAL BUILDING
B126: ITEM NO | C126: PAYMENT | D126: DESCRIPTION | E126: UNIT | F126: QTY | G126: RATE | H126: AMOUNT (RAND)
B127: Brought Forward | H127: =H123 -> 0.00
A128: 23884 | B128: 17.2.4.1 | D128: Crack injection with Sika epoxy resin or similar approved to (tank roof and other areas identified by the Engineer) | E128: m | F128: 5.00 | G128: 0.00 | H128: =IF(E128 = CHAR(37), F128*G128/100,F128*G128) -> 0.00
A130: 23885 | B130: 17.2.4.2 | D130: Cracking Filling using SikaGrout-295 Non-Shrink grout or similar approved | E130: m | F130: 5.00 | G130: 0.00 | H130: =IF(E130 = CHAR(37), F130*G130/100,F130*G130) -> 0.00
A132: 23886 | B132: 17.2.4.3 | D132: Curing of repair surfaces by coating the surface with Sika Antisol curing compounds or similar approved to repaired areas | E132: m² | F132: 180.00 | G132: 0.00 | H132: =IF(E132 = CHAR(37), F132*G132/100,F132*G132) -> 0.00
A134: 23887 | B134: 17.2.4.4 | D134: Application of protective treatment (Sika FerroGard 903+, at an application rate of 0.5kg per square meter or similar approved) | E134: m² | F134: 180.00 | G134: 0.00 | H134: =IF(E134 = CHAR(37), F134*G134/100,F134*G134) -> 0.00
A136: 23888 | B136: 17.2.4.5 | D136: Replace existing shutter flooring with Steel galvanized graters | E136: m² | F136: 30.00 | G136: 0.00 | H136: =IF(E136 = CHAR(37), F136*G136/100,F136*G136) -> 0.00
B177: Total Carried Forward To Summary | H177: =SUM(H127:H176) -> 0.00
B178: SCHEDULE 17: STRUCTURAL REPAIRS/IMPROVEMENTS
H179: SECTION 17.3: CLARIFIERS 1 - 6
B180: ITEM NO | C180: PAYMENT | D180: DESCRIPTION | E180: UNIT | F180: QTY | G180: RATE | H180: AMOUNT (RAND)
A181: 23945 | B181: 17.3 | D181: CLARIFIERS 1 - 6
A183: 23946 | B183: 17.3.1 | D183: CLARIFIERS
A185: 23947 | D185: Allow for draining of raw water, surface cleaning, drying and structural repairs of the clarifiers foundation and floor slab as instructed by the engineer
A187: 23951 | B187: 17.3.1.1 | D187: Structural Repairs | E187: Prov Sum | F187: 1.00 | G187: 100,000.00 | H187: 100,000.00
A189: 23952 | D189: Surface Repairs
A191: 23953 | B191: 17.3.1.2 | D191: Cleaning and preparation of Clarifiers External Walls (Water jetting of structure to remove all loose debris, spall and scum) | E191: m² | F191: 400.00 | G191: 0.00 | H191: =IF(E191 = CHAR(37), F191*G191/100,F191*G191) -> 0.00
A193: 23954 | B193: 17.3.1.3 | D193: Proprietary cemetitious repair compound Sika 212 or similar approved (Repair systems) to spall areas identified by the Engineer | E193: m² | F193: 400.00 | G193: 0.00 | H193: =IF(E193 = CHAR(37), F193*G193/100,F193*G193) -> 0.00
A195: 23955 | B195: 17.3.1.4 | D195: Curing of repair surfaces by coating the surface with Sika Antisol curing compounds or similar approved to repaired areas | E195: m² | F195: 400.00 | G195: 0.00 | H195: =IF(E195 = CHAR(37), F195*G195/100,F195*G195) -> 0.00
A197: 23956 | B197: 17.3.1.5 | D197: Application of protective treatment (Sika FerroGard 903+, at an application rate of 0.5kg per square meter or similar approved) | E197: m² | F197: 400.00 | G197: 0.00 | H197: =IF(E197 = CHAR(37), F197*G197/100,F197*G197) -> 0.00
A199: 23957 | D199: Structural Repairs to RC Walls on Clarifiers
A201: 23958 | B201: 17.3.1.6 | D201: Crack injection with Sika epoxy resin or similar approved to (tank roof and other areas identified by the Engineer) | E201: m | F201: 10.00 | G201: 0.00 | H201: =IF(E201 = CHAR(37), F201*G201/100,F201*G201) -> 0.00
A203: 23959 | B203: 17.3.1.7 | D203: Cracking Filling using SikaGrout-295 Non-Shrink grout or similar approved | E203: m | F203: 10.00 | G203: 0.00 | H203: =IF(E203 = CHAR(37), F203*G203/100,F203*G203) -> 0.00
A205: 23964 | B205: 17.3.2 | D205: CHANNEL FROM HOW TO CLARIFIER INLETS
A207: 23965 | B207: 17.3.2.1 | D207: Allow for draining of raw water, surface cleaning, drying and structural repairs of the clannel foundation and floor slab as instructed by the engineer | E207: Prov Sum | F207: 1.00 | G207: 100,000.00 | H207: 100,000.00
A209: 23966 | D209: Surface Repairs
A211: 23967 | B211: 17.3.2.2 | D211: Cleaning and preparation of External Walls (Water jetting of structure to remove all loose debris, spall and scum) | E211: m² | F211: 160.00 | G211: 0.00 | H211: =IF(E211 = CHAR(37), F211*G211/100,F211*G211) -> 0.00
B214: Total Carried Forward | H214: =SUM(H181:H213) -> 200,000.00
B215: SCHEDULE 17: STRUCTURAL REPAIRS/IMPROVEMENTS
H216: SECTION 17.3: CLARIFIERS 1 - 6
B217: ITEM NO | C217: PAYMENT | D217: DESCRIPTION | E217: UNIT | F217: QTY | G217: RATE | H217: AMOUNT (RAND)
B218: Brought Forward | H218: =H214 -> 200,000.00
A219: 23968 | B219: 17.3.2.3 | D219: Proprietary cemetitious repair compound Sika 212 or similar approved (Repair systems) to spall areas identified by the Engineer | E219: m² | F219: 160.00 | G219: 0.00 | H219: =IF(E219 = CHAR(37), F219*G219/100,F219*G219) -> 0.00
A221: 23969 | B221: 17.3.2.4 | D221: Curing of repair surfaces by coating the surface with Sika Antisol curing compounds or similar approved to repaired areas | E221: m² | F221: 160.00 | G221: 0.00 | H221: =IF(E221 = CHAR(37), F221*G221/100,F221*G221) -> 0.00
A223: 23970 | B223: 17.3.2.5 | D223: Application of protective treatment (Sika FerroGard 903+, at an application rate of 0.5kg per square meter or similar approved) | E223: m² | F223: 160.00 | G223: 0.00 | H223: =IF(E223 = CHAR(37), F223*G223/100,F223*G223) -> 0.00
A225: 23971 | D225: Structural Repairs
A227: 23972 | B227: 17.3.2.6 | D227: Replace Steel Galvanized Grating and Replace with new GRP Fibre Grating (600mm wide x 1m long) | E227: No. | F227: 60.00 | G227: 0.00 | H227: =IF(E227 = CHAR(37), F227*G227/100,F227*G227) -> 0.00
A229: 23973 | B229: 17.3.3 | D229: SIDE CHANNEL FROM CLARIFIER OUTLET TO SAND FILTERS
A231: 23974 | B231: 17.3.3.1 | D231: Allow for draining of raw water, surface cleaning, drying and structural repairs of the clannel foundation and floor slab as instructed by the engineer | E231: Prov Sum | F231: 1.00 | G231: 100,000.00 | H231: 100,000.00
A233: 23975 | B233: 17.3.3.2 | D233: Cleaning and preparation of External Walls (Water jetting of structure to remove all loose debris, spall and scum) | E233: m² | F233: 200.00 | G233: 0.00 | H233: =IF(E233 = CHAR(37), F233*G233/100,F233*G233) -> 0.00
A235: 23976 | B235: 17.3.3.3 | D235: Proprietary cemetitious repair compound Sika 212 or similar approved (Repair systems) to spall areas identified by the Engineer | E235: m² | F235: 200.00 | G235: 0.00 | H235: =IF(E235 = CHAR(37), F235*G235/100,F235*G235) -> 0.00
A237: 23977 | B237: 17.3.3.4 | D237: Curing of repair surfaces by coating the surface with Sika Antisol curing compounds or similar approved to repaired areas | E237: m² | F237: 200.00 | G237: 0.00 | H237: =IF(E237 = CHAR(37), F237*G237/100,F237*G237) -> 0.00
A239: 23978 | B239: 17.3.3.5 | D239: Application of protective treatment (Sika FerroGard 903+, at an application rate of 0.5kg per square meter or similar approved) | E239: m² | F239: 200.00 | G239: 0.00 | H239: =IF(E239 = CHAR(37), F239*G239/100,F239*G239) -> 0.00
B251: Total Carried Forward To Summary | H251: =SUM(H218:H250) -> 300,000.00
B252: SCHEDULE 17: STRUCTURAL REPAIRS/IMPROVEMENTS
H253: SECTION 17.4: SAND FILTERS 1 - 5
B254: ITEM NO | C254: PAYMENT | D254: DESCRIPTION | E254: UNIT | F254: QTY | G254: RATE | H254: AMOUNT (RAND)
A255: 23816 | B255: 17.4 | D255: SAND FILTERS 1 - 6
A257: 23936 | B257: 17.4.1 | D257: SAND FILTERS
A259: 23941 | B259: 17.4.1.1 | D259: Structural Repairs | E259: Prov Sum | F259: 1.00 | G259: 100,000.00 | H259: 100,000.00
B314: Total Carried Forward To Summary | H314: =SUM(H255:H313) -> 100,000.00
B315: SCHEDULE 17: STRUCTURAL REPAIRS/IMPROVEMENTS
H316: SECTION 17.6: ADMIN BUILDING
B317: ITEM NO | C317: PAYMENT | D317: DESCRIPTION | E317: UNIT | F317: QTY | G317: RATE | H317: AMOUNT (RAND)
A318: 23817 | B318: 17.5 | D318: ADMIN BUILDING
A320: 23942 | D320: Surface Repairs
A322: 23943 | B322: 17.5.1 | D322: Crack injection with Sika epoxy resin or similar approved to (tank roof and other areas identified by the Engineer) | E322: m | F322: 5.00 | G322: 0.00 | H322: =IF(E322 = CHAR(37), F322*G322/100,F322*G322) -> 0.00
A324: 23944 | B324: 17.5.2 | D324: Cracking Filling using SikaGrout-295 Non-Shrink grout or similar approved | E324: m | F324: 5.00 | G324: 0.00 | H324: =IF(E324 = CHAR(37), F324*G324/100,F324*G324) -> 0.00
B375: Total Carried Forward To Summary | H375: =SUM(H318:H374) -> 0.00
B376: SCHEDULE 17: STRUCTURAL REPAIRS/IMPROVEMENTS
H377: SECTION 17.7: OTHER
B378: ITEM NO | C378: PAYMENT | D378: DESCRIPTION | E378: UNIT | F378: QTY | G378: RATE | H378: AMOUNT (RAND)
A379: 24177 | B379: 17.6 | D379: OTHER
A381: 24178 | B381: 17.6.1 | D381: Provisional sum for the design, supply, associated ancillary works and installation of new pipework within Clarifiers, including associated supports and brackets achored to clarifier walls. | E381: Prov Sum | F381: 1.00 | G381: 250,000.00 | H381: 250,000.00
A383: 24182 | B383: 17.6.2 | D383: Overheads & profit on above item | E383: % | F383: =H381 -> 250,000.00 | G383: 0.00 | H383: =IF(E383 = CHAR(37), F383*G383/100,F383*G383) -> 0.00
A385: 24181 | B385: 17.6.3 | D385: Provisional sum for the design, supply, associated ancillary works and installation of brickwork within main inlet channel, including associated achorage to channel walls. | E385: Prov Sum | F385: 1.00 | G385: 10,000.00 | H385: 10,000.00
A387: 24183 | B387: 17.6.4 | D387: Overheads & profit on above item | E387: % | F387: =H385 -> 10,000.00 | G387: 0.00 | H387: =IF(E387 = CHAR(37), F387*G387/100,F387*G387) -> 0.00
A389: 24179 | B389: 17.6.5 | D389: Provisional sum for the design, supply, associated ancillary works and installation of an overflow from the clear wate reservoir to the backwash recovery tank. | E389: Prov Sum | F389: 1.00 | G389: 75,000.00 | H389: 75,000.00
A391: 24180 | B391: 17.6.6 | D391: Overheads & profit on above item | E391: % | F391: 10,000.00 | G391: 0.00 | H391: =IF(E391 = CHAR(37), F391*G391/100,F391*G391) -> 0.00
B426: Total Carried Forward To Summary | H426: =SUM(H379:H425) -> 335,000.00
B427: SCHEDULE 17: STRUCTURAL REPAIRS/IMPROVEMENTS
D428: SUMMARY OF SECTIONS
C429: SECTION | D429: DESCRIPTION | H429: AMOUNT (RAND)
C430: 17.1 | D430: SECTION 17.1: CHAMBERS | H430: =H81 -> 0.00
C432: 17.2 | D432: SECTION 17.2: CHEMICAL BUILDING | H432: =H177 -> 0.00
C434: 17.3 | D434: SECTION 17.3: CLARIFIERS 1 - 6 | H434: =H251 -> 300,000.00
C436: 17.4 | D436: SECTION 17.4: SAND FILTERS 1 - 5 | H436: =H314 -> 100,000.00
C438: 17.5 | D438: SECTION 17.6: ADMIN BUILDING | H438: =H375 -> 0.00
C440: 17.6 | D440: SECTION 17.7: OTHER | H440: =H426 -> 335,000.00
C488: Total Carried Forward To Summary Of Schedules | D488: Total Carried Forward To Summary Of Schedules | H488: =SUM(H430:H487) -> 735,000.00

Sheet Schedule 18
A1: Rate=G | B1: SCHEDULE 18 - CHEMICAL BUILDING
H2: SECTION 18.1: ALTERATIONS
B3: ITEM NO | C3: PAYMENT | D3: DESCRIPTION | E3: UNIT | F3: QTY | G3: RATE | H3: AMOUNT (RAND)
A4: 23527 | B4: 18.1 | D4: ALTERATIONS
A6: 23528 | D6: NOTES:
A8: 23529 | D8: Items described as to be re-used or to be handed over to the Client are to be carefully dismantled where necessary and stacked on site where directed, and the Contractor will be responsible for their removal and storage until required, and shall make good all items missing, damaged or broken at his own expense
A10: 23749 | D10: Alterations to the fabric of existing structures will be executed in stages concurrently with the construction of the new work to ensure that the waterproofing integrity of the structures is maintained.
A12: 23530 | D12: Unless otherwise described, no materials from the alterations shall be re-used in any new work without the written approval of the client, with the exception of facing bricks required in filling to openings, etc., which may be re-used if free of cracks and chips and properly cleaned of all mortar
A14: 23531 | D14: The Contractor is to take all dimensions affecting the existing buildings on the site as he will be solely responsible for all new work being to the correct sizes. The Engineer's Representative is to be notified immediately of any discrepancies between the drawings and the existing work and all work affected by these discrepancies is to be suspended until such time as the Engineer's Representative shall authorise its continuance
A16: 23535 | D16: Prices are to include for carting away from site all materials not specifically mentioned as being stored on site for re-use or handed over to the client and all rubbish, debris, etc., arising from the alterations, etc., and for making good all work damaged or disturbed to the approval of the client
B19: Total Carried Forward | H19: =SUM(H4:H18) -> 0.00
B20: SCHEDULE 18 - CHEMICAL BUILDING
H21: SECTION 18.1: ALTERATIONS
B22: ITEM NO | C22: PAYMENT | D22: DESCRIPTION | E22: UNIT | F22: QTY | G22: RATE | H22: AMOUNT (RAND)
B23: Brought Forward | H23: =H19 -> 0.00
A24: 23536 | D24: Tenderers are to include in pricing for the statutory requirements with regard to the demolition and disposal of asbestos cement material arising from the works
A26: 23537 | B26: 18.1.1 | D26: GENERAL
A28: 23538 | B28: 18.1.1.1 | D28: Allow for protecting all existing work liable to suffer damage (i.e. walls, finishes, floors, windows, etc.) from damage during the building operations, alterations, etc., and make good all work damaged with new material to match existing to the approval of the client | E28: Sum | F28: 1.0 | G28: 0.00 | H28: =IF(E28 = CHAR(37), F28*G28/100,F28*G28) -> 0.00
A30: 23540 | B30: 18.1.2 | D30: REMOVAL OF EXISTING WORK
A32: 23543 | D32: Taking out and removing doors, windows, etc., from brickwork to remain (building up or altering opening elsewhere measured)
A34: 23683 | B34: 18.1.2.1 | D34: Hardwood single door and frame not exceeding 2,5m² | E34: No. | F34: 2.0 | G34: 0.00 | H34: =IF(E34 = CHAR(37), F34*G34/100,F34*G34) -> 0.00
A36: 23544 | B36: 18.1.2.2 | D36: Glazed steel window not exceeding 2,5m² | E36: No. | F36: 14.0 | G36: 0.00 | H36: =IF(E36 = CHAR(37), F36*G36/100,F36*G36) -> 0.00
A38: 23792 | B38: 18.1.2.3 | D38: Roller Shutter Garage Door | E38: No. | F38: 1.00 | G38: 0.00 | H38: =IF(E38 = CHAR(37), F38*G38/100,F38*G38) -> 0.00
A40: 23545 | D40: Taking out doors, windows, etc including thresholds, sills, etc from brickwork to be demolished and stored for reuse as directed by the Engineer.
A42: 23547 | B42: 18.1.2.4 | D42: Provisional Sum for the Removal of applicable items from the building | E42: Prov Sum | F42: 1.0 | G42: 10,000.00 | H42: 10,000.00
A44: 23684 | B44: 18.1.2.5 | D44: Overheads and Profit on the above | E44: % | F44: =H42 -> 10,000.0 | G44: 0.00 | H44: =IF(E44 = CHAR(37), F44*G44/100,F44*G44) -> 0.00
A46: 23568 | B46: 18.1.3 | D46: PREPARATORY WORK TO EXISTING SURFACES
A48: 23569 | D48: Preparatory work to existing surfaces
A50: 23572 | B50: 18.1.3.1 | D50: Remove paint and plaster surface from existing walls | E50: m² | F50: 380.0 | G50: 0.00 | H50: =IF(E50 = CHAR(37), F50*G50/100,F50*G50) -> 0.00
B57: Total Carried Forward To Summary | H57: =SUM(H23:H56) -> 10,000.00
B58: SCHEDULE 18 - CHEMICAL BUILDING
H59: SECTION 18.3: METALWORK
B60: ITEM NO | C60: PAYMENT | D60: DESCRIPTION | E60: UNIT | F60: QTY | G60: RATE | H60: AMOUNT (RAND)
A61: 23579 | B61: 18.2 | C61: SANS 1200 H, PSHA, PACP | D61: METALWORK
A63: 23705 | B63: 18.2.1 | C63: SANS 1200 H | D63: STRUCTURAL STEEL
A65: 23725 | C65: 8.3.7 | D65: HANDRAILS
A67: 23773 | B67: 18.2.1.1 | D67: Removal of the existing handrails | E67: m | F67: 20.0 | G67: 0.00 | H67: =IF(E67 = CHAR(37), F67*G67/100,F67*G67) -> 0.00
A69: 23726 | C69: 8.3.7 b) | D69: Supply and install stainless steel handrail assembly complete with stanchions, bends and ends with chemical anchors
A71: 23727 | B71: 18.2.1.2 | C71: 8.3.7 b) 1) | D71: Horizontal (hand and knee rails) | E71: m | F71: 20.0 | G71: 0.00 | H71: =IF(E71 = CHAR(37), F71*G71/100,F71*G71) -> 0.00
A73: 23728 | B73: 18.2.1.3 | C73: 8.3.7 b) 2) | D73: Sloping | E73: m | F73: 10.0 | G73: 0.00 | H73: =IF(E73 = CHAR(37), F73*G73/100,F73*G73) -> 0.00
A75: 23729 | B75: 18.2.1.4 | C75: 8.3.7 b) 3) | D75: Shaped ends and bends | E75: No. | F75: 8.0 | G75: 0.00 | H75: =IF(E75 = CHAR(37), F75*G75/100,F75*G75) -> 0.00
B117: Total Carried Forward To Summary | H117: =SUM(H61:H116) -> 0.00
B118: SCHEDULE 18 - CHEMICAL BUILDING
H119: SECTION 18.3: PLASTERING
B120: ITEM NO | C120: PAYMENT | D120: DESCRIPTION | E120: UNIT | F120: QTY | G120: RATE | H120: AMOUNT (RAND)
A121: 23580 | B121: 18.3 | C121: PABR 5.3.1 | D121: PLASTERING
A123: 23650 | B123: 18.3.1 | D123: PRICES
A125: 23651 | D125: The prices of mouldings, weathering, skirting, labours, etc. shall include for forming mitres, stops, etc. unless otherwise described
A127: 23652 | D127: The prices of all rendering shall include for working around pipes, balusters, etc
A129: 23653 | D129: Rates for plaster are to include for all filling to and working around electrical conduits, etc., prior to plastering
A131: 23654 | B131: 18.3.2 | D131: SCREEDS
A133: 23655 | D133: Screeds steel trowelled to falls, on concrete
A135: 23656 | B135: 18.3.2.1 | D135: 1:3 cement plaster, 30mm min thick on floors and landings | E135: m² | F135: 110.0 | G135: 0.00 | H135: =IF(E135 = CHAR(37), F135*G135/100,F135*G135) -> 0.00
A137: 23657 | B137: 18.3.3 | D137: INTERNAL PLASTER
A139: 23658 | D139: One coat cement plaster on brickwork:
A141: 23659 | B141: 18.3.3.1 | D141: Walls | E141: m² | F141: 380.0 | G141: 0.00 | H141: =IF(E141 = CHAR(37), F141*G141/100,F141*G141) -> 0.00
B169: Total Carried Forward To Summary | H169: =SUM(H121:H168) -> 0.00
B170: SCHEDULE 18 - CHEMICAL BUILDING
H171: SECTION 18.4: PAINTING
B172: ITEM NO | C172: PAYMENT | D172: DESCRIPTION | E172: UNIT | F172: QTY | G172: RATE | H172: AMOUNT (RAND)
A173: 23582 | B173: 18.4 | D173: PAINTING
A175: 23670 | B175: 18.4.1 | D175: PREPARATORY WORK TO EXISTING WORK
A177: 23671 | D177: Previously painted plastered surfaces:
A179: 23672 | D179: Surfaces shall be thoroughly washed down and allowed to dry completely before any paint is applied. Blistered or peeling paint shall be completely removed and cracks shall be opened, filled with a suitable filler and finished smooth
A181: 23673 | D181: Previously painted metal surfaces:
A183: 23674 | D183: Surfaces shall be thoroughly rubbed and cleaned down. Blistered or peeling paint shall be completely removed down to bare metal
A185: 23675 | D185: Previously painted wood surfaces:
A187: 23676 | D187: Surfaces shall be thoroughly cleaned down. Blistered or peeling paint shall be completely removed and cracks and crevices shall be primed, filled with suitable filler and finished smooth
A189: 23677 | B189: 18.4.2 | D189: PAINTWORK ETC TO PREVIOUSLY PAINTED WORK ON FLOATED PLASTER
A191: 23678 | D191: Prepare and brush surface to remove all loose contaminants and apply and two coats interior quality acrylic emulsion paint
A193: 23679 | B193: 18.4.2.1 | D193: On existing internal walls | E193: m² | F193: 380.0 | G193: 0.00 | H193: =IF(E193 = CHAR(37), F193*G193/100,F193*G193) -> 0.00
A195: 23680 | B195: 18.4.3 | D195: PAINTWORK, ETC. TO NEW WORK ON INTERNAL FLOATED PLASTERED SURFACES
A197: 23681 | D197: One coat plaster primer, one undercoat and two finishing coats non drip enamel for interior application
A199: 23682 | B199: 18.4.3.1 | D199: On internal Walls | E199: m² | F199: 380.0 | G199: 0.00 | H199: =IF(E199 = CHAR(37), F199*G199/100,F199*G199) -> 0.00
A201: 23765 | B201: 18.4.4 | D201: PAINTWORK, ETC. TO NEW WORK ON INTERNAL CEILING SURFACES
B205: Total Carried Forward | H205: =SUM(H173:H204) -> 0.00
B206: SCHEDULE 18 - CHEMICAL BUILDING
H207: SECTION 18.4: PAINTING
B208: ITEM NO | C208: PAYMENT | D208: DESCRIPTION | E208: UNIT | F208: QTY | G208: RATE | H208: AMOUNT (RAND)
B209: Brought Forward | H209: =H205 -> 0.00
A210: 23766 | D210: One coat plaster primer, one undercoat and two finishing coats non drip enamel for interior application
A212: 23779 | B212: 18.4.4.1 | D212: On ceiling of existing building | E212: m² | F212: 110.00 | G212: 0.00 | H212: =IF(E212 = CHAR(37), F212*G212/100,F212*G212) -> 0.00
B265: Total Carried Forward To Summary | H265: =SUM(H209:H264) -> 0.00
B266: SCHEDULE 18 - CHEMICAL BUILDING
H267: SECTION 18.5: PROVISIONAL SUMS
B268: ITEM NO | C268: PAYMENT | D268: DESCRIPTION | E268: UNIT | F268: QTY | G268: RATE | H268: AMOUNT (RAND)
A269: 23709 | B269: 18.5 | D269: PROVISIONAL SUMS
A271: 23710 | D271: Windows and Doors
A273: 23711 | B273: 18.5.1 | D273: Replacement of all windows with aluminium windows and replacement of doors | E273: Prov Sum | F273: 1.0 | G273: 50,000.00 | H273: 50,000.00
A275: 23712 | B275: 18.5.2 | D275: Overheads, charges and profit on above item 18.5.1 | E275: % | F275: =H273 -> 50,000.0 | G275: 0.00 | H275: =IF(E275 = CHAR(37), F275*G275/100,F275*G275) -> 0.00
A277: 23746 | D277: Furniture
A279: 23747 | B279: 18.5.3 | D279: Supply and install furniture for workshop, storage room and associated rooms | E279: Prov Sum | F279: 1.0 | G279: 50,000.00 | H279: 50,000.00
A281: 23748 | B281: 18.5.4 | D281: Overheads, charges and profit on above item 18.5.3 | E281: % | F281: =H279 -> 50,000.0 | G281: 0.00 | H281: =IF(E281 = CHAR(37), F281*G281/100,F281*G281) -> 0.00
A283: 23791 | D283: Ancillary items
A285: 23789 | B285: 18.5.5 | D285: Supply and install ancillary items | E285: Prov Sum | F285: 1.00 | G285: 75,000.00 | H285: 75,000.00
A287: 23790 | B287: 18.5.6 | D287: Overheads, charges and profit on above item 18.5.5 | E287: % | F287: =H285 -> 75,000.00 | G287: 0.00 | H287: =IF(E287 = CHAR(37), F287*G287/100,F287*G287) -> 0.00
B321: Total Carried Forward To Summary | H321: =SUM(H269:H320) -> 175,000.00
B322: SCHEDULE 18 - CHEMICAL BUILDING
D323: SUMMARY OF SECTIONS
C324: SECTION | D324: DESCRIPTION | H324: AMOUNT (RAND)
C325: 18.1 | D325: SECTION 18.1: ALTERATIONS | H325: =H57 -> 10,000.00
C327: 18.2 | D327: SECTION 18.2: METALWORK | H327: =H117 -> 0.00
C329: 18.3 | D329: SECTION 18.3: PLASTERING | H329: =H169 -> 0.00
C331: 18.4 | D331: SECTION 18.4: PAINTING | H331: =H265 -> 0.00
C333: 18.5 | D333: SECTION 18.5: PROVISIONAL SUMS | H333: =H321 -> 175,000.00
C383: Total Carried Forward To Summary Of Schedules | D383: Total Carried Forward To Summary Of Schedules | H383: =SUM(H325:H382) -> 185,000.00

Sheet Schedule 19
A1: Rate=G | B1: SCHEDULE 19: COMMISSIONING & DOCUMENTATION
H2: SECTION 19.1: COMMISSIOINING & DOCUMENTATION
B3: ITEM NO | C3: PAYMENT | D3: DESCRIPTION | E3: UNIT | F3: QTY | G3: RATE | H3: AMOUNT (RAND)
A4: 20080 | B4: 19.1 | C4: PSCOM | D4: COMMISSIONING & DOCUMENTATION
A6: 20084 | B6: 19.1.1 | C6: PSCOM | D6: TONGAAT WTW
A8: 20110 | B8: 19.1.1.1 | D8: Commissioning of the system including the preparation and submission of a comprehensive commissioning plan covering all applicable disciplines and works. | E8: Sum | F8: 1.00 | G8: 0.00 | H8: =IF(E8 = CHAR(37), F8*G8/100,F8*G8) -> 0.00
A10: 20867 | B10: 19.1.1.2 | C10: PSCOM 5 | D10: Appointment of a commissioning engineer (Professionally Registered) for the entire commissioning period | E10: Sum | F10: 1.00 | G10: 0.00 | H10: =IF(E10 = CHAR(37), F10*G10/100,F10*G10) -> 0.00
A12: 20111 | D12: Site testing, commissioning, and adjusting the plant and equipment:
A14: 20112 | B14: 19.1.1.3 | D14: All equipment including checking, starting up, pre- commissioning testing and commissioning of the Works; including reports | E14: Sum | F14: 1.00 | G14: 0.00 | H14: =IF(E14 = CHAR(37), F14*G14/100,F14*G14) -> 0.00
A16: 20115 | B16: 19.1.2 | C16: PSCOM | D16: ELECTRICAL & INSTRUMENTATION
A18: 20116 | B18: 19.1.2.1 | D18: Test the entire installation including issue of the Certificate of Compliance certificates in accordance with SANS 10142 | E18: Sum | F18: 1.00 | G18: 0.00 | H18: =IF(E18 = CHAR(37), F18*G18/100,F18*G18) -> 0.00
A20: 20163 | B20: 19.1.2.2 | D20: Commissioning of the system | E20: Sum | F20: 1.00 | G20: 0.00 | H20: =IF(E20 = CHAR(37), F20*G20/100,F20*G20) -> 0.00
A22: 20117 | B22: 19.1.3 | C22: PSCOM | D22: MECHANICAL
A24: 20118 | B24: 19.1.3.1 | D24: Test and commission all mechanical works within the TWTW site boundary (Valves, control valves, actuated valves, dosing systems, etc) | E24: Sum | F24: 1.00 | G24: 0.00 | H24: =IF(E24 = CHAR(37), F24*G24/100,F24*G24) -> 0.00
A26: 20164 | B26: 19.1.3.2 | D26: Commissioning of the system | E26: Sum | F26: 1.00 | G26: 0.00 | H26: =IF(E26 = CHAR(37), F26*G26/100,F26*G26) -> 0.00
A28: 20119 | B28: 19.1.4 | C28: PSCOM | D28: PROCESS
A30: 20120 | B30: 19.1.4.1 | D30: Test and commission all equipment, process elements and ancillary elements within the TWTW site boundary | E30: Sum | F30: 1.00 | G30: 0.00 | H30: =IF(E30 = CHAR(37), F30*G30/100,F30*G30) -> 0.00
A32: 20893 | B32: 19.1.4.2 | D32: Supply of materials, chemicals and ancillary items for commissioning purposes, the amount is to be determined by the Contractor | E32: Sum | F32: 1.00 | G32: 0.00 | H32: =IF(E32 = CHAR(37), F32*G32/100,F32*G32) -> 0.00
A34: 20121 | B34: 19.1.5 | D34: O&M MANUALS, STANDARD OPERATING PROCEDURE'S AND MAINTENANCE SCHEDULES
A36: 20892 | B36: 19.1.5.1 | C36: PS SOP 10 | D36: Preparation and submission of Maintenance Schedules | E36: Sum | F36: 1.00 | G36: 0.00 | H36: =IF(E36 = CHAR(37), F36*G36/100,F36*G36) -> 0.00
B38: Total Carried Forward | H38: =SUM(H4:H37) -> 0.00
B39: SCHEDULE 19: COMMISSIONING & DOCUMENTATION
H40: SECTION 19.1: COMMISSIOINING & DOCUMENTATION
